Local authority department which incurred the expenditure,Service Division,Cost Centre,Summary of the Purpose of Expenditure,Expense Type,Expense Code,Detailed Expense Type,Date of Transaction,Transaction Number,Beneficiary,Merchant Category Number,Merchant Category,Gross Amount,VAT,Net Amount
Children and Young Peoples Services,Head of Childrens Social Care,085352,Tow Law CU,Supplies and Services,324117,Provisions E324,01-Sep-2019,000008766046335,TESCO STORES 6186,5411,Catering costs - provisions,8.60,0.00,8.60
Children and Young Peoples Services,Head of Childrens Social Care,085352,Tow Law CU,Supplies and Services,324117,Provisions E324,01-Sep-2019,000008766046341,WELCOME BREAK KFC,5499,Catering costs - provisions,19.37,0.00,19.37
Children and Young Peoples Services,Head of Childrens Social Care,085333,Coxhoe Satelite Home,Supplies and Services,324117,Provisions E324,01-Sep-2019,000008766046645,CO-OP GROUP 310016,5411,Catering costs - provisions,7.65,0.00,7.65
Regeneration and Local Services,Culture Sport and Tourism,054813,Gala Theatre - Technical,Supplies and Services,384999,Miscellaneous Expenses,01-Sep-2019,000008766046819,Amazon.co.uk MA2T86TX4,5969,Other expenses,100.42,0.00,100.42
Children and Young Peoples Services,Head of Childrens Social Care,085334,West Rainton Satelite Home,Supplies and Services,304259,Equipment and Materials,01-Sep-2019,000008766046857,SP ROXFIT,5732,Equipment-purchase and rental,11.95,0.00,11.95
Children and Young Peoples Services,Head of Childrens Social Care,085334,West Rainton Satelite Home,Supplies and Services,328041,Clothing uniforms and laundry E328,01-Sep-2019,000008766046861,SHOE ZONE 1860,5661,Clothing uniforms and laundry,12.99,0.00,12.99
Children and Young Peoples Services,Head of Childrens Social Care,085334,West Rainton Satelite Home,Supplies and Services,328041,Clothing uniforms and laundry E328,01-Sep-2019,000008766046865,B & M RETAIL,5310,Clothing uniforms and laundry,4.99,0.00,4.99
Children and Young Peoples Services,Head of Childrens Social Care,085334,West Rainton Satelite Home,Supplies and Services,324117,Provisions E324,01-Sep-2019,000008766046867,SAINSBURY`S,5411,Catering costs - provisions,-16.00,0.00,-16.00
Children and Young Peoples Services,Head of Early Help Inclusion & Vulnerable Children.,085954,Walworth,Supplies and Services,324117,Provisions E324,01-Sep-2019,000008766046995,TESCO STORES 6329,5411,Catering costs - provisions,75.09,0.00,75.09
Children and Young Peoples Services,Head of Childrens Social Care,085352,Tow Law CU,Supplies and Services,348037,Subsistence E348,01-Sep-2019,000008766047231,KASPAS NEWCASTLE,5812,Subsistence,14.90,0.00,14.90
Children and Young Peoples Services,Head of Childrens Social Care,085342,9 Cedar Drive Aycliffe,Supplies and Services,328041,Clothing uniforms and laundry E328,01-Sep-2019,000008766047463,W BOYES & CO LTD NEWTO,5310,Clothing uniforms and laundry,3.24,0.00,3.24
Children and Young Peoples Services,Head of Childrens Social Care,085342,9 Cedar Drive Aycliffe,Supplies and Services,304999,Equipment and Materials,01-Sep-2019,000008766047469,SAVERS HEALTH & BEAUTY,5912,Misc equipment tools and materials,4.97,0.00,4.97
Children and Young Peoples Services,Head of Childrens Social Care,085342,9 Cedar Drive Aycliffe,Supplies and Services,304259,Equipment and Materials,01-Sep-2019,000008766047475,WILKO RETAIL LIMIT,5722,Equipment-purchase and rental,7.75,0.00,7.75
Children and Young Peoples Services,Head of Childrens Social Care,085352,Tow Law CU,Supplies and Services,384999,Miscellaneous Expenses,01-Sep-2019,000008766047837,iZ Roxy Brow Bar,7230,Other expenses,12.00,0.00,12.00
Children and Young Peoples Services,Head of Childrens Social Care,085352,Tow Law CU,Supplies and Services,304999,Equipment and Materials,01-Sep-2019,000008766047841,PLANET LEISURE,7933,Misc equipment tools and materials,8.65,0.00,8.65
Children and Young Peoples Services,Head of Childrens Social Care,085352,Tow Law CU,Supplies and Services,324117,Provisions E324,01-Sep-2019,000008766047847,ASDA SUPERSTORE 4987,5411,Catering costs - provisions,215.75,0.00,215.75
Children and Young Peoples Services,Head of Childrens Social Care,085332,Middlestone Moor CU,Supplies and Services,384984,Miscellaneous Expenses,01-Sep-2019,000008766047965,WWW.LABEEBY.CO.UK,5691,Other school expenses,23.49,0.00,23.49
Children and Young Peoples Services,Head of Education and Skills,071801,Selby Cottage Childcare Centre,Supplies and Services,324117,Provisions E324,02-Sep-2019,000008773042365,TESCO STORES 2278,5411,Catering costs - provisions,45.25,0.00,45.25
Children and Young Peoples Services,Head of Education and Skills,054640,Durham Learning Resources 054640,Supplies and Services,304999,Equipment and Materials,02-Sep-2019,000008773042383,Amazon Prime,5968,Misc equipment tools and materials,-7.99,0.00,-7.99
Children and Young Peoples Services,Head of Education and Skills,075021,Youth Employment Initiative,Supplies and Services,384199,Miscellaneous Expenses,02-Sep-2019,000008773042459,SUNDERLAND CC,7523,Other hired and contracted services,11.00,0.00,11.00
Children and Young Peoples Services,Head of Education and Skills,075021,Youth Employment Initiative,Supplies and Services,384199,Miscellaneous Expenses,02-Sep-2019,000008773042467,WWW.DURHAM.GOV.UK,9399,Other hired and contracted services,11.00,0.00,11.00
Regeneration and Local Services,Environmental Services,031201,Earthworks,Supplies and Services,342053,Computers and Communications,02-Sep-2019,000008773042475,WOOBOX,5045,Computer software,30.74,0.00,30.74
Regeneration and Local Services,Culture Sport and Tourism,030708,VCD - Marketing & Information,Supplies and Services,384199,Miscellaneous Expenses,02-Sep-2019,000008773042495,MAILCHIMP MONTHLY,5968,Other hired and contracted services,249.14,41.52,207.62
Regeneration and Local Services,Environmental Services,010367,C&G - South Grounds Maintenance,Supplies and Services,304221,Equipment and Materials,02-Sep-2019,000008773042563,SCREWFIX PETERLEE,5211,Direct materials,32.40,5.40,27.00
Regeneration and Local Services,Environmental Services,010367,C&G - South Grounds Maintenance,Supplies and Services,304221,Equipment and Materials,02-Sep-2019,000008773042631,SCREWFIX BISHOP AUCKLA,5211,Direct materials,12.99,2.17,10.82
Regeneration and Local Services,Corporate Property and Land,021242,Catering - County Hall,Supplies and Services,324117,Provisions E324,02-Sep-2019,000008773042693,SAINSBURYS 0776,5411,Catering costs - provisions,44.98,0.00,44.98
Regeneration and Local Services,Development and Housing,030773,CLLD North,Transport,215995,Running Costs of Vehicles,02-Sep-2019,000008773042721,MORRISON PETROL,5541,Vehicle running expenses,45.01,0.00,45.01
Children and Young Peoples Services,Head of Childrens Social Care,085362,LAC & Permanence Team 2,Supplies and Services,384871,Miscellaneous Expenses,02-Sep-2019,000008773042729,DCC Theatres,9399,Training-other activities,58.00,0.00,58.00
Children and Young Peoples Services,Head of Childrens Social Care,085333,Coxhoe Satelite Home,Supplies and Services,324117,Provisions E324,02-Sep-2019,000008773042741,CO-OP GROUP 310016,5411,Catering costs - provisions,10.05,0.00,10.05
Children and Young Peoples Services,Head of Childrens Social Care,085334,West Rainton Satelite Home,Supplies and Services,304999,Equipment and Materials,02-Sep-2019,000008773042785,HOME BARGAINS,5251,Misc equipment tools and materials,37.72,0.00,37.72
Children and Young Peoples Services,Head of Childrens Social Care,085334,West Rainton Satelite Home,Supplies and Services,324117,Provisions E324,02-Sep-2019,000008773042791,ALDI 12 774,5411,Catering costs - provisions,30.38,0.00,30.38
Children and Young Peoples Services,Head of Education and Skills,071732,Dean Bank Childcare,Supplies and Services,324117,Provisions E324,02-Sep-2019,000008773042811,SAINSBURYS SACAT (2303,5411,Catering costs - provisions,21.40,0.00,21.40
Children and Young Peoples Services,Head of Education and Skills,071732,Dean Bank Childcare,Supplies and Services,324117,Provisions E324,02-Sep-2019,000008773042817,ASDA GROCERIES ONLINE,5411,Catering costs - provisions,43.49,0.00,43.49
Regeneration and Local Services,Environmental Services,010314,Nei.Prot - Bereavement Services,Supplies and Services,304259,Equipment and Materials,02-Sep-2019,000008773042829,Durham County CNCL,9399,Equipment-purchase and rental,11.00,0.00,11.00
Regeneration and Local Services,Business Durham CL0850,030671,Business Space 030671,Supplies and Services,324117,Provisions E324,02-Sep-2019,000008773042929,ASDA SUPERSTORE,5411,Catering costs - provisions,11.00,0.00,11.00
Regeneration and Local Services,Business Durham CL0850,030674,Business Services General,Supplies and Services,304403,Equipment and Materials,02-Sep-2019,000008773042951,ADOBE CREATIVE CLOUD,5734,Other consumables,49.94,8.32,41.62
Children and Young Peoples Services,Head of Early Help Inclusion & Vulnerable Children.,085952,Secure Education,Supplies and Services,324117,Provisions E324,02-Sep-2019,000008773042965,TESCO STORES 6329,5411,Catering costs - provisions,155.52,0.00,155.52
Regeneration and Local Services,Culture Sport and Tourism,054813,Gala Theatre - Technical,Supplies and Services,308011,Furniture,02-Sep-2019,000008773042977,BARKER&STONEHOUSE,5712,Furniture repair and replacement,200.00,0.00,200.00
Children and Young Peoples Services,Head of Childrens Social Care,085551,Short Break Services-Park Hse Sher,Supplies and Services,324117,Provisions E324,02-Sep-2019,000008773043131,ALDI 15 774,5411,Catering costs - provisions,38.46,6.41,32.05
Children and Young Peoples Services,Head of Childrens Social Care,085551,Short Break Services-Park Hse Sher,Supplies and Services,324117,Provisions E324,02-Sep-2019,000008773043131 - 1,ALDI 15 774,5411,Catering costs - provisions,2.40,,2.40
Adult and Health Services,Head of Adults,055301,Stanley Pathways,Supplies and Services,304259,Equipment and Materials,02-Sep-2019,000008773043219,WILKO DURHAM 426,5722,Equipment-purchase and rental,20.00,0.00,20.00
Children and Young Peoples Services,Head of Childrens Social Care,085352,Tow Law CU,Supplies and Services,324117,Provisions E324,02-Sep-2019,000008773043321,SAINSBURYS 2199,5411,Catering costs - provisions,32.05,0.00,32.05
Transformation and Partnerships,Business Support,052986,CYPS - Locality and Operational Support,Supplies and Services,304259,Equipment and Materials,02-Sep-2019,000008773043447,SUNDERLAND CC,9399,Equipment-purchase and rental,11.00,0.00,11.00
Adult and Health Services,Head of Adults,055301,Stanley Pathways,Supplies and Services,304259,Equipment and Materials,02-Sep-2019,000008773043465,WILKO DURHAM 426,5722,Equipment-purchase and rental,34.00,0.00,34.00
Children and Young Peoples Services,Head of Childrens Social Care,085352,Tow Law CU,Supplies and Services,324117,Provisions E324,02-Sep-2019,000008773043519,TESCO STORES 6329,5411,Catering costs - provisions,4.00,0.00,4.00
Children and Young Peoples Services,Head of Childrens Social Care,085333,Coxhoe Satelite Home,Supplies and Services,324117,Provisions E324,02-Sep-2019,000008773043529,TESCO STORES 2916,5411,Catering costs - provisions,66.99,0.00,66.99
Children and Young Peoples Services,Head of Education and Skills,071802,Louisa Cent Nursery,Supplies and Services,324117,Provisions E324,02-Sep-2019,000008773043541,ALDI STORES,5411,Catering costs - provisions,97.39,0.00,97.39
Children and Young Peoples Services,Head of Early Help Inclusion & Vulnerable Children.,088107,Ferryhill & Newton Aycliffe 0-19 Community Family Hub,Supplies and Services,304403,Equipment and Materials,02-Sep-2019,000008773043619,AMZNMktplace,5999,Other consumables,10.99,0.00,10.99
Regeneration and Local Services,Culture Sport and Tourism,054820,Gala Theatre - Overheads,Supplies and Services,324117,Provisions E324,02-Sep-2019,000008773043667,TESCO STORES 6029,5411,Catering costs - provisions,5.45,0.00,5.45
Adult and Health Services,Head of Adults,055310,Positive Journeys (Tudhoe),Supplies and Services,324117,Provisions E324,02-Sep-2019,000008773043679,ASDA SUPERSTORE 4987,5411,Catering costs - provisions,1.00,0.00,1.00
Regeneration and Local Services,Development and Housing,031500,Housing Solutions - Core Team,Supplies and Services,364320,Grants to Voluntary Organisations,02-Sep-2019,000008775846325,PREMIER INN,3811,Accommodation assistance,363.50,60.58,302.92
Regeneration and Local Services,Culture Sport and Tourism,054812,Gala Theatre - Catering etc,Supplies and Services,324117,Provisions E324,02-Sep-2019,000008775846403,BATLEYS PERTH,5300,Catering costs - provisions,24.66,4.11,20.55
Regeneration and Local Services,Culture Sport and Tourism,054812,Gala Theatre - Catering etc,Supplies and Services,324117,Provisions E324,02-Sep-2019,000008775846403 - 1,BATLEYS PERTH,5300,Catering costs - provisions,154.26,,154.26
Children and Young Peoples Services,Head of Childrens Social Care,085334,West Rainton Satelite Home,Supplies and Services,332047,Printing Stationery and Gen Off Exps,02-Sep-2019,000008775846463,ODEON/BOOKIT,7832,Stationery,27.00,0.00,27.00
Regeneration and Local Services,Environmental Services,011060,C&G - Hardwick Park Catering,Supplies and Services,324117,Provisions E324,02-Sep-2019,000008775846663,BATLEYS PERTH,5300,Catering costs - provisions,-39.79,-6.63,-33.16
Regeneration and Local Services,Culture Sport and Tourism,054815,Gala Theatre Stage School,Supplies and Services,304403,Equipment and Materials,02-Sep-2019,000008775846675,AMZNMKTPLACE AMAZON.CO,5999,Other consumables,19.98,0.00,19.98
Regeneration and Local Services,Corporate Property and Land,030691,Catering - Durham Dales Centre,Supplies and Services,324117,Provisions E324,02-Sep-2019,000008775846769,BATLEYS PERTH,5300,Catering costs - provisions,151.14,25.19,125.95
Regeneration and Local Services,Corporate Property and Land,030691,Catering - Durham Dales Centre,Supplies and Services,324117,Provisions E324,02-Sep-2019,000008775846769 - 1,BATLEYS PERTH,5300,Catering costs - provisions,232.70,,232.70
Regeneration and Local Services,Corporate Property and Land,030691,Catering - Durham Dales Centre,Supplies and Services,324117,Provisions E324,02-Sep-2019,000008775846789,BATLEYS PERTH,5300,Catering costs - provisions,-9.65,-1.61,-8.04
Regeneration and Local Services,Corporate Property and Land,021235,Catering - Wharton Park,Supplies and Services,324117,Provisions E324,02-Sep-2019,000008775847005,BATLEYS PERTH,5300,Catering costs - provisions,74.94,12.49,62.45
Regeneration and Local Services,Corporate Property and Land,021235,Catering - Wharton Park,Supplies and Services,324117,Provisions E324,02-Sep-2019,000008775847005 - 1,BATLEYS PERTH,5300,Catering costs - provisions,13.58,,13.58
Regeneration and Local Services,Environmental Services,031201,Earthworks,Supplies and Services,342053,Computers and Communications,03-Sep-2019,000008773042481,WOOBOX,5045,Computer software,0.85,0.00,0.85
Children and Young Peoples Services,Head of Education and Skills,071801,Selby Cottage Childcare Centre,Supplies and Services,328041,Clothing uniforms and laundry E328,03-Sep-2019,000008775846283,THE RANGE,5311,Clothing uniforms and laundry,30.64,0.00,30.64
Children and Young Peoples Services,Head of Education and Skills,071801,Selby Cottage Childcare Centre,Supplies and Services,324117,Provisions E324,03-Sep-2019,000008775846285,TESCO STORES 2278,5411,Catering costs - provisions,6.80,0.00,6.80
Resources BK0010,Finance & Transactional Services,065180,Collections,Charges,720130,Fees and Charges,03-Sep-2019,000008775846295,HMCOURT-SERVICES.G,9222,Fees-legal,110.00,0.00,110.00
Adult and Health Services,Head of Adults,052760,OP Management,Charges,720130,Fees and Charges,03-Sep-2019,000008775846297,WWW.MONEYCLAIM.GOV,9399,Fees-legal,410.00,0.00,410.00
Adult and Health Services,Head of Adults,052720,Mental Health S28A and Central,Charges,720130,Fees and Charges,03-Sep-2019,000008775846301,WWW.MONEYCLAIM.GOV,9399,Fees-legal,410.00,0.00,410.00
Children and Young Peoples Services,Head of Education and Skills,075021,Youth Employment Initiative,Supplies and Services,338064,Services,03-Sep-2019,000008775846331,EAST DURHAM COLLEGE,8220,Disclosure & Barring (DBS) Fees,59.00,0.00,59.00
Regeneration and Local Services,Environmental Services,031202,North Pennines - Peatscapes,Supplies and Services,342053,Computers and Communications,03-Sep-2019,000008775846333,PIX4D SA,5045,Computer software,237.82,0.00,237.82
Resources BK0010,Finance & Transactional Services,065116,Creditors/Purchasing,Supplies and Services,372009,Subscriptions E372,03-Sep-2019,000008775846393,AMAZON PRIME MA8JY8E44,5968,Subscriptions 372009,720.00,120.00,600.00
Regeneration and Local Services,Corporate Property and Land,021242,Catering - County Hall,Supplies and Services,324117,Provisions E324,03-Sep-2019,000008775846401,FREEMAN CATERING BUTCH,5422,Catering costs - provisions,207.27,0.00,207.27
Regeneration and Local Services,Culture Sport and Tourism,010664,Freemans Quay Leisure Centre,Supplies and Services,304221,Equipment and Materials,03-Sep-2019,000008775846471,SCREWFIX DIRECT,5200,Direct materials,59.53,0.00,59.53
Children and Young Peoples Services,Head of Early Help Inclusion & Vulnerable Children.,088109,Spennymoor & Shildon 0-19 Community Family Hub,Supplies and Services,324117,Provisions E324,03-Sep-2019,000008775846479,ASDA STORES,5411,Catering costs - provisions,13.74,0.00,13.74
Children and Young Peoples Services,Head of Education and Skills,071732,Dean Bank Childcare,Supplies and Services,384999,Miscellaneous Expenses,03-Sep-2019,000008775846503,Amazon.co.uk MA65Y3PI4,5969,Other expenses,14.82,2.47,12.35
Children and Young Peoples Services,Head of Education and Skills,071732,Dean Bank Childcare,Supplies and Services,304403,Equipment and Materials,03-Sep-2019,000008775846507,AMZNMKTPLACE AMAZON.CO,5999,Other consumables,16.98,0.00,16.98
Adult and Health Services,Head of Adults,055807,Newton Aycliffe Pathways,Third Party Payments,474101,Purchase of Care,03-Sep-2019,000008775846515,PIONEERING CARE PARTNE,8050,Nursing care payments,66.00,0.00,66.00
Regeneration and Local Services,Development and Housing,031500,Housing Solutions - Core Team,Supplies and Services,352001,Conference Expenses,03-Sep-2019,000008775846545,AYCLIFFE BIZ,7011,Conferencesseminars fees etc,70.00,0.00,70.00
Children and Young Peoples Services,Head of Early Help Inclusion & Vulnerable Children.,085956,Lumley,Supplies and Services,328041,Clothing uniforms and laundry E328,03-Sep-2019,000008775846593,BOOHOO.COM,5691,Clothing uniforms and laundry,27.20,0.00,27.20
Children and Young Peoples Services,Head of Early Help Inclusion & Vulnerable Children.,085957,Secure Management,Supplies and Services,304999,Equipment and Materials,03-Sep-2019,000008775846597,Amazon Prime MA0007EM4,5968,Misc equipment tools and materials,79.00,0.00,79.00
Children and Young Peoples Services,Head of Early Help Inclusion & Vulnerable Children.,085962,Aycliffe Secure - Durham,Supplies and Services,384999,Miscellaneous Expenses,03-Sep-2019,000008775846599,Amazon.co.uk MA16E5P74,5969,Other expenses,6.41,1.07,5.34
Children and Young Peoples Services,Head of Early Help Inclusion & Vulnerable Children.,085955,Auckland,Supplies and Services,304403,Equipment and Materials,03-Sep-2019,000008775846601,AMZNMktplace,5999,Other consumables,11.09,1.85,9.24
Children and Young Peoples Services,Head of Early Help Inclusion & Vulnerable Children.,085956,Lumley,Supplies and Services,304403,Equipment and Materials,03-Sep-2019,000008775846605,AMZNMktplace,5999,Other consumables,15.69,0.00,15.69
Children and Young Peoples Services,Head of Early Help Inclusion & Vulnerable Children.,085965,Barnard,Supplies and Services,304403,Equipment and Materials,03-Sep-2019,000008775846611,AMZNMktplace,5999,Other consumables,29.99,5.00,24.99
Children and Young Peoples Services,Head of Early Help Inclusion & Vulnerable Children.,085957,Secure Management,Third Party Payments,430100,Rendered by Private Contractors,03-Sep-2019,000008775846615,FAST KEY SERVICES LIMI,7399,Payments to sub-contractors,7.26,1.21,6.05
Children and Young Peoples Services,Head of Early Help Inclusion & Vulnerable Children.,085956,Lumley,Supplies and Services,328041,Clothing uniforms and laundry E328,03-Sep-2019,000008775846619,PRETTYLITTLETHING.COM,5691,Clothing uniforms and laundry,50.99,8.50,42.49
Children and Young Peoples Services,Head of Early Help Inclusion & Vulnerable Children.,085965,Barnard,Supplies and Services,328041,Clothing uniforms and laundry E328,03-Sep-2019,000008775846623,WWW.ARGOS.CO.UK,5310,Clothing uniforms and laundry,20.94,0.00,20.94
Children and Young Peoples Services,Head of Early Help Inclusion & Vulnerable Children.,085956,Lumley,Supplies and Services,328041,Clothing uniforms and laundry E328,03-Sep-2019,000008775846625,JD SPORTS INTERNET,5941,Clothing uniforms and laundry,55.99,0.00,55.99
Regeneration and Local Services,Culture Sport and Tourism,054813,Gala Theatre - Technical,Supplies and Services,304259,Equipment and Materials,03-Sep-2019,000008775846635,Prime Video MA35O1P04,5735,Equipment-purchase and rental,7.49,0.00,7.49
Regeneration and Local Services,Environmental Services,031200,North Pennines Core,Supplies and Services,348037,Subsistence E348,03-Sep-2019,000008775846637,CAFE VISITORS CENTRE,5813,Subsistence,12.80,0.00,12.80
Regeneration and Local Services,Environmental Services,011060,C&G - Hardwick Park Catering,Supplies and Services,324117,Provisions E324,03-Sep-2019,000008775846649,FREEMAN CATERING BUTCH,5422,Catering costs - provisions,46.15,0.00,46.15
Regeneration and Local Services,Environmental Services,011060,C&G - Hardwick Park Catering,Supplies and Services,324117,Provisions E324,03-Sep-2019,000008775846653,FREEMAN CATERING BUTCH,5422,Catering costs - provisions,55.54,0.00,55.54
Regeneration and Local Services,Environmental Services,011060,C&G - Hardwick Park Catering,Premises,145009,Cleaning and Domestic Supplies,03-Sep-2019,000008775846657,ALLIANCE DISPOSABLES L,2842,Other cleaning and domestic costs,144.84,24.14,120.70
Regeneration and Local Services,Environmental Services,011060,C&G - Hardwick Park Catering,Premises,145009,Cleaning and Domestic Supplies,03-Sep-2019,000008775846661,ALLIANCE DISPOSABLES L,2842,Other cleaning and domestic costs,47.70,7.95,39.75
Regeneration and Local Services,Corporate Property and Land,021234,Catering - Locomotion,Supplies and Services,324117,Provisions E324,03-Sep-2019,000008775846679,FREEMAN CATERING BUTCH,5422,Catering costs - provisions,52.22,0.00,52.22
Regeneration and Local Services,Corporate Property and Land,021234,Catering - Locomotion,Supplies and Services,324117,Provisions E324,03-Sep-2019,000008775846681,FREEMAN CATERING BUTCH,5422,Catering costs - provisions,78.73,0.00,78.73
Children and Young Peoples Services,Head of Childrens Social Care,085551,Short Break Services-Park Hse Sher,Supplies and Services,324117,Provisions E324,03-Sep-2019,000008775846705,WWW.GREATBRITISHMEAT.C,5422,Catering costs - provisions,41.99,0.00,41.99
Children and Young Peoples Services,Head of Childrens Social Care,085551,Short Break Services-Park Hse Sher,Supplies and Services,324117,Provisions E324,03-Sep-2019,000008775846709,JR HOLLAND FOODSERVICE,5499,Catering costs - provisions,159.09,0.00,159.09
Children and Young Peoples Services,Head of Early Help Inclusion & Vulnerable Children.,071443,Stanley One Point Hub,Supplies and Services,328041,Clothing uniforms and laundry E328,03-Sep-2019,000008775846713,PAYPAL INCENTIVEPL,5331,Clothing uniforms and laundry,307.54,0.00,307.54
Children and Young Peoples Services,Head of Childrens Social Care,085333,Coxhoe Satelite Home,Supplies and Services,324117,Provisions E324,03-Sep-2019,000008775846743,ASDA SUPERSTORE 4987,5411,Catering costs - provisions,116.40,0.00,116.40
Children and Young Peoples Services,Head of Childrens Social Care,085333,Coxhoe Satelite Home,Supplies and Services,324117,Provisions E324,03-Sep-2019,000008775846747,CO-OP GROUP 310016,5411,Catering costs - provisions,13.50,0.00,13.50
Children and Young Peoples Services,Head of Childrens Social Care,085342,9 Cedar Drive Aycliffe,Supplies and Services,324117,Provisions E324,03-Sep-2019,000008775846753,TESCO STORES 2916,5411,Catering costs - provisions,23.62,0.00,23.62
Children and Young Peoples Services,Head of Childrens Social Care,085352,Tow Law CU,Supplies and Services,324117,Provisions E324,03-Sep-2019,000008775846763,ASDA SUPERSTORE 4987,5411,Catering costs - provisions,81.94,0.00,81.94
Regeneration and Local Services,Corporate Property and Land,030691,Catering - Durham Dales Centre,Supplies and Services,324117,Provisions E324,03-Sep-2019,000008775846775,FREEMAN CATERING BUTCH,5422,Catering costs - provisions,83.01,0.00,83.01
Regeneration and Local Services,Corporate Property and Land,030691,Catering - Durham Dales Centre,Supplies and Services,324117,Provisions E324,03-Sep-2019,000008775846777,FREEMAN CATERING BUTCH,5422,Catering costs - provisions,45.09,0.00,45.09
Regeneration and Local Services,Corporate Property and Land,030691,Catering - Durham Dales Centre,Supplies and Services,324117,Provisions E324,03-Sep-2019,000008775846781,FREEMAN CATERING BUTCH,5422,Catering costs - provisions,118.29,0.00,118.29
Regeneration and Local Services,Corporate Property and Land,030691,Catering - Durham Dales Centre,Premises,145009,Cleaning and Domestic Supplies,03-Sep-2019,000008775846785,ALLIANCE DISPOSABLES L,2842,Other cleaning and domestic costs,136.20,22.70,113.50
Regeneration and Local Services,Corporate Property and Land,030691,Catering - Durham Dales Centre,Premises,145009,Cleaning and Domestic Supplies,03-Sep-2019,000008775846785 - 1,ALLIANCE DISPOSABLES L,2842,Other cleaning and domestic costs,25.47,,25.47
Adult and Health Services,Head of Adults,055643,Hawthorn House LD Respite Unit,Supplies and Services,324117,Provisions E324,03-Sep-2019,000008775846805,FREEMAN CATERING BUTCH,5422,Catering costs - provisions,30.64,0.00,30.64
Children and Young Peoples Services,Head of Early Help Inclusion & Vulnerable Children.,074000,TTF-Attachment and Results,Transfer Payments,525033,Other,03-Sep-2019,000008775846825,ASDA GEORGE COM LEEDS,5411,Grants to individuals,138.50,0.00,138.50
Resources BK0010,Digital and Customer Services,065335,School Services - Implementations,Supplies and Services,304639,Equipment and Materials,03-Sep-2019,000008775846835,AMZNMktplace,5999,Technicians-supplies,10.78,1.80,8.98
Transformation and Partnerships,Business Support,052986,CYPS - Locality and Operational Support,Supplies and Services,304403,Equipment and Materials,03-Sep-2019,000008775846867,AMZNMktplace,5999,Other consumables,51.12,8.52,42.60
Transformation and Partnerships,Business Support,052986,CYPS - Locality and Operational Support,Supplies and Services,304403,Equipment and Materials,03-Sep-2019,000008775846867 - 1,AMZNMktplace,5999,Other consumables,0.04,,0.04
Transformation and Partnerships,Business Support,052986,CYPS - Locality and Operational Support,Supplies and Services,324117,Provisions E324,03-Sep-2019,000008775846869,WILKO.COM,5399,Catering costs - provisions,35.00,5.83,29.17
Regeneration and Local Services,Corporate Property and Land,021324,Catering - Meadowfield,Supplies and Services,324117,Provisions E324,03-Sep-2019,000008775846877,FREEMAN CATERING BUTCH,5422,Catering costs - provisions,63.93,0.00,63.93
Regeneration and Local Services,Corporate Property and Land,021324,Catering - Meadowfield,Supplies and Services,324117,Provisions E324,03-Sep-2019,000008775846881,FREEMAN CATERING BUTCH,5422,Catering costs - provisions,87.30,0.00,87.30
Children and Young Peoples Services,Head of Childrens Social Care,085333,Coxhoe Satelite Home,Supplies and Services,308011,Furniture,03-Sep-2019,000008775846883,"HOMEFAIR BLINDS,",5714,Furniture repair and replacement,454.00,75.67,378.33
Children and Young Peoples Services,Head of Childrens Social Care,085352,Tow Law CU,Supplies and Services,348037,Subsistence E348,03-Sep-2019,000008775846909,MCDONALD`S,5812,Subsistence,5.83,0.00,5.83
Children and Young Peoples Services,Head of Education and Skills,070169,Durham SSP,Supplies and Services,384199,Miscellaneous Expenses,03-Sep-2019,000008775846925,AMZN Digital,5735,Other hired and contracted services,57.00,0.00,57.00
Children and Young Peoples Services,Head of Childrens Social Care,085380,Operations Manager LAC Resources,Supplies and Services,324117,Provisions E324,03-Sep-2019,000008775846957,ASDA STORES,5411,Catering costs - provisions,1.09,0.00,1.09
Regeneration and Local Services,Environmental Services,031200,North Pennines Core,Supplies and Services,324117,Provisions E324,03-Sep-2019,000008775846961,SCOTMID CO-OP STANHOPE,5411,Catering costs - provisions,14.14,0.00,14.14
Regeneration and Local Services,Culture Sport and Tourism,054233,Bishop Auckland Town Hall Library,Employees,040149,Recruitment Instruction and Training,03-Sep-2019,000008775846969,WWW.FILMBANK.CO.UK,7829,Training-all costs,99.60,0.00,99.60
Regeneration and Local Services,Culture Sport and Tourism,054233,Bishop Auckland Town Hall Library,Employees,040149,Recruitment Instruction and Training,03-Sep-2019,000008775846971,WWW.FILMBANK.CO.UK,7829,Training-all costs,99.60,0.00,99.60
Adult and Health Services,Head of Adults,055310,Positive Journeys (Tudhoe),Supplies and Services,324117,Provisions E324,03-Sep-2019,000008775846997,HERON FOODS LTD,5499,Catering costs - provisions,1.09,0.00,1.09
Regeneration and Local Services,Development and Housing,030771,Durham Advance Flexible Fund,Transport,235057,Public Transport,03-Sep-2019,000008775847001,GO NORTH EAST LIMITED,4131,Staff travelling,14.00,0.00,14.00
Children and Young Peoples Services,Head of Education and Skills,076001,Music Service,Supplies and Services,304259,Equipment and Materials,03-Sep-2019,000008775847015,MUSIC STORE profession,5733,Equipment-purchase and rental,41.99,0.00,41.99
Children and Young Peoples Services,Head of Childrens Social Care,085332,Middlestone Moor CU,Supplies and Services,324117,Provisions E324,03-Sep-2019,000008775847027,SAINSBURYS SACAT 2199,5411,Catering costs - provisions,11.74,0.00,11.74
Children and Young Peoples Services,Head of Childrens Social Care,085332,Middlestone Moor CU,Supplies and Services,304259,Equipment and Materials,03-Sep-2019,000008775847031,JD SPORTS PLC,5941,Equipment-purchase and rental,35.05,0.00,35.05
Children and Young Peoples Services,Head of Childrens Social Care,085332,Middlestone Moor CU,Supplies and Services,304259,Equipment and Materials,03-Sep-2019,000008775847033,JD SPORTS PLC,5941,Equipment-purchase and rental,45.05,0.00,45.05
Regeneration and Local Services,Development and Housing,030771,Durham Advance Flexible Fund,Supplies and Services,324117,Provisions E324,03-Sep-2019,000008775847035,ASDA SUPERSTORE,5411,Catering costs - provisions,2.65,0.00,2.65
Regeneration and Local Services,Development and Housing,030771,Durham Advance Flexible Fund,Supplies and Services,328041,Clothing uniforms and laundry E328,03-Sep-2019,000008775847039,ARGOS LTD,5310,Clothing uniforms and laundry,69.95,0.00,69.95
Regeneration and Local Services,Corporate Property and Land,030691,Catering - Durham Dales Centre,Supplies and Services,324117,Provisions E324,03-Sep-2019,000008775847047,SAINSBURYS SACAT 2199,5411,Catering costs - provisions,6.20,0.00,6.20
Children and Young Peoples Services,Head of Education and Skills,071801,Selby Cottage Childcare Centre,Supplies and Services,308011,Furniture,03-Sep-2019,000008779927309,IKEA LTD 143 GATESHEAD,5712,Furniture repair and replacement,176.00,0.00,176.00
Regeneration and Local Services,Culture Sport and Tourism,030712,VCD - Project Delivery,Supplies and Services,384199,Miscellaneous Expenses,03-Sep-2019,000008779927429,THE KINGSLODGE INN,7011,Other hired and contracted services,74.95,0.00,74.95
Regeneration and Local Services,Corporate Property and Land,021242,Catering - County Hall,Supplies and Services,324117,Provisions E324,03-Sep-2019,000008779927503,BATLEYS PERTH,5300,Catering costs - provisions,219.24,36.54,182.70
Regeneration and Local Services,Corporate Property and Land,021242,Catering - County Hall,Supplies and Services,324117,Provisions E324,03-Sep-2019,000008779927503 - 1,BATLEYS PERTH,5300,Catering costs - provisions,120.71,,120.71
Regeneration and Local Services,Corporate Property and Land,021234,Catering - Locomotion,Supplies and Services,324117,Provisions E324,03-Sep-2019,000008779927911,BATLEYS PERTH,5300,Catering costs - provisions,161.10,26.85,134.25
Regeneration and Local Services,Corporate Property and Land,021234,Catering - Locomotion,Supplies and Services,324117,Provisions E324,03-Sep-2019,000008779927911 - 1,BATLEYS PERTH,5300,Catering costs - provisions,45.67,,45.67
Regeneration and Local Services,Corporate Property and Land,010525,Catering - Green Lane,Supplies and Services,324117,Provisions E324,03-Sep-2019,000008779927959,BATLEYS PERTH,5300,Catering costs - provisions,-5.43,0.00,-5.43
Regeneration and Local Services,Corporate Property and Land,021324,Catering - Meadowfield,Supplies and Services,324117,Provisions E324,03-Sep-2019,000008779928219,BATLEYS PERTH,5300,Catering costs - provisions,113.82,18.97,94.85
Regeneration and Local Services,Corporate Property and Land,021324,Catering - Meadowfield,Supplies and Services,324117,Provisions E324,03-Sep-2019,000008779928219 - 1,BATLEYS PERTH,5300,Catering costs - provisions,56.71,,56.71
Regeneration and Local Services,Environmental Services,031202,North Pennines - Peatscapes,Supplies and Services,342053,Computers and Communications,04-Sep-2019,000008775846335,PIX4D SA,5045,Computer software,6.54,0.00,6.54
Transformation and Partnerships,Business Support,052969,Locality and Operational Support AHS 052969,Supplies and Services,304335,Equipment and Materials,04-Sep-2019,000008779927321,AMZNMktplace,5999,ICT supplies etc,66.84,0.00,66.84
Resources BK0010,Digital and Customer Services,065487,ICT Telephony Recharges,Supplies and Services,344033,Telephones,04-Sep-2019,000008779927325,AMZNMKTPLACE AMAZON.CO,5999,Telephones general-all costs,284.50,47.50,237.00
Transformation and Partnerships,Business Support,065461,Business Support 065461,Supplies and Services,342053,Computers and Communications,04-Sep-2019,000008779927329,BITEABLE PTY LTD,7392,Computer software,24.01,0.00,24.01
Regeneration and Local Services,Development and Housing,031500,Housing Solutions - Core Team,Supplies and Services,364320,Grants to Voluntary Organisations,04-Sep-2019,000008779927357,HAYAT HOTEL,7011,Accommodation assistance,400.00,66.67,333.33
Children and Young Peoples Services,Head of Education and Skills,075021,Youth Employment Initiative,Supplies and Services,338035,Services,04-Sep-2019,000008779927367,VIRTUAL COLLEGE LIMITE,8299,Examination fees 338035,24.00,0.00,24.00
Children and Young Peoples Services,Head of Education and Skills,075021,Youth Employment Initiative,Supplies and Services,384199,Miscellaneous Expenses,04-Sep-2019,000008779927373,WWW.DURHAM.GOV.UK,9399,Other hired and contracted services,11.00,0.00,11.00
Children and Young Peoples Services,Head of Education and Skills,075021,Youth Employment Initiative,Supplies and Services,384999,Miscellaneous Expenses,04-Sep-2019,000008779927379,WWW.LABEEBY.CO.UK,5691,Other expenses,99.99,0.00,99.99
Regeneration and Local Services,Culture Sport and Tourism,011219,Office Services 011219,Supplies and Services,332047,Printing Stationery and Gen Off Exps,04-Sep-2019,000008779927419,WWW.UKPACKAGING.COM,5111,Stationery,211.03,35.17,175.86
Regeneration and Local Services,Culture Sport and Tourism,030712,VCD - Project Delivery,Supplies and Services,384199,Miscellaneous Expenses,04-Sep-2019,000008779927433,Gettyimages.com,7333,Other hired and contracted services,330.00,55.00,275.00
Children and Young Peoples Services,Head of Childrens Social Care,085342,9 Cedar Drive Aycliffe,Supplies and Services,324117,Provisions E324,04-Sep-2019,000008779927443,TESCO STORES 2916,5411,Catering costs - provisions,21.59,0.00,21.59
Children and Young Peoples Services,Head of Early Help Inclusion & Vulnerable Children.,088104,BA/BC/Crook 0-19 Targeted Family Support,Supplies and Services,304259,Equipment and Materials,04-Sep-2019,000008779927493,ARGOS RETAIL GROUP,5310,Equipment-purchase and rental,4.00,0.00,4.00
Children and Young Peoples Services,Head of Childrens Social Care,085362,LAC & Permanence Team 2,Supplies and Services,304403,Equipment and Materials,04-Sep-2019,000008779927581,WP-WARWICKSHIRE CO,9399,Other consumables,11.00,0.00,11.00
Children and Young Peoples Services,Head of Childrens Social Care,085362,LAC & Permanence Team 2,Supplies and Services,304403,Equipment and Materials,04-Sep-2019,000008779927583,WWW.DURHAM.GOV.UK,9399,Other consumables,35.00,0.00,35.00
Children and Young Peoples Services,Head of Childrens Social Care,085352,Tow Law CU,Supplies and Services,324117,Provisions E324,04-Sep-2019,000008779927653,TESCO STORES 4358,5411,Catering costs - provisions,13.60,0.00,13.60
Children and Young Peoples Services,Head of Childrens Social Care,085352,Tow Law CU,Supplies and Services,348037,Subsistence E348,04-Sep-2019,000008779927657,MCDONALDS,5812,Subsistence,5.16,0.00,5.16
Regeneration and Local Services,Culture Sport and Tourism,010664,Freemans Quay Leisure Centre,Supplies and Services,328041,Clothing uniforms and laundry E328,04-Sep-2019,000008779927669,ARGOS LTD,5310,Clothing uniforms and laundry,57.98,0.00,57.98
Children and Young Peoples Services,Head of Early Help Inclusion & Vulnerable Children.,088109,Spennymoor & Shildon 0-19 Community Family Hub,Supplies and Services,324117,Provisions E324,04-Sep-2019,000008779927685,WM MORRISONS STORE,5411,Catering costs - provisions,11.10,0.00,11.10
Children and Young Peoples Services,Head of Education and Skills,071732,Dean Bank Childcare,Supplies and Services,324117,Provisions E324,04-Sep-2019,000008779927723,TESCO STORES 2916,5411,Catering costs - provisions,12.84,0.00,12.84
Regeneration and Local Services,Development and Housing,031500,Housing Solutions - Core Team,Supplies and Services,352001,Conference Expenses,04-Sep-2019,000008779927779,HAYAT HOTEL,7011,Conferencesseminars fees etc,445.00,0.00,445.00
Regeneration and Local Services,Development and Housing,030771,Durham Advance Flexible Fund,Supplies and Services,324117,Provisions E324,04-Sep-2019,000008779927789,STARBUCKS,5814,Catering costs - provisions,5.35,0.89,4.46
Regeneration and Local Services,Development and Housing,030771,Durham Advance Flexible Fund,Supplies and Services,324117,Provisions E324,04-Sep-2019,000008779927793,STARBUCKS,5814,Catering costs - provisions,4.90,0.82,4.08
Regeneration and Local Services,Development and Housing,030771,Durham Advance Flexible Fund,Supplies and Services,384700,Miscellaneous Expenses,04-Sep-2019,000008779927799,CAPITA RECRUITMENT VET,8999,Miscellaneous grants,52.10,0.00,52.10
Regeneration and Local Services,Business Durham CL0850,030674,Business Services General,Supplies and Services,342033,Computers and Communications,04-Sep-2019,000008779927831,STK Shutterstock,7333,Computer hardware,19.00,0.00,19.00
Regeneration and Local Services,Business Durham CL0850,030674,Business Services General,Supplies and Services,304259,Equipment and Materials,04-Sep-2019,000008779927843,CANVA 02437-6927661,7221,Equipment-purchase and rental,10.99,0.00,10.99
Children and Young Peoples Services,Head of Childrens Social Care,085363,LAC & Permanence Team 3,Supplies and Services,304259,Equipment and Materials,04-Sep-2019,000008779927855,Durham County CNCL,9399,Equipment-purchase and rental,22.00,0.00,22.00
Children and Young Peoples Services,Head of Early Help Inclusion & Vulnerable Children.,085956,Lumley,Supplies and Services,328041,Clothing uniforms and laundry E328,04-Sep-2019,000008779927859,BOOHOO.COM,5691,Clothing uniforms and laundry,53.00,0.00,53.00
Children and Young Peoples Services,Head of Early Help Inclusion & Vulnerable Children.,085956,Lumley,Supplies and Services,304649,Equipment and Materials,04-Sep-2019,000008779927863,Amazon.co.uk MA64T71U4,5969,Toys,52.49,8.75,43.74
Children and Young Peoples Services,Head of Early Help Inclusion & Vulnerable Children.,085962,Aycliffe Secure - Durham,Supplies and Services,304403,Equipment and Materials,04-Sep-2019,000008779927869,AMZNMktplace,5999,Other consumables,37.14,6.19,30.95
Children and Young Peoples Services,Head of Early Help Inclusion & Vulnerable Children.,085962,Aycliffe Secure - Durham,Supplies and Services,304403,Equipment and Materials,04-Sep-2019,000008779927869 - 1,AMZNMktplace,5999,Other consumables,0.07,,0.07
Children and Young Peoples Services,Head of Early Help Inclusion & Vulnerable Children.,085957,Secure Management,Supplies and Services,324117,Provisions E324,04-Sep-2019,000008779927875,TESCO STORES 6329,5411,Catering costs - provisions,113.41,0.00,113.41
Children and Young Peoples Services,Head of Early Help Inclusion & Vulnerable Children.,085957,Secure Management,Supplies and Services,304403,Equipment and Materials,04-Sep-2019,000008779927879,AMZNMKTPLACE AMAZON.CO,5999,Other consumables,10.56,1.76,8.80
Children and Young Peoples Services,Head of Early Help Inclusion & Vulnerable Children.,085955,Auckland,Supplies and Services,304649,Equipment and Materials,04-Sep-2019,000008779927879 - 1,AMZNMKTPLACE AMAZON.CO,5999,Toys,222.97,,222.97
Children and Young Peoples Services,Head of Early Help Inclusion & Vulnerable Children.,085965,Barnard,Supplies and Services,328041,Clothing uniforms and laundry E328,04-Sep-2019,000008779927883,JD SPORTS INTERNET,5941,Clothing uniforms and laundry,33.99,0.00,33.99
Regeneration and Local Services,Culture Sport and Tourism,054813,Gala Theatre - Technical,Supplies and Services,304999,Equipment and Materials,04-Sep-2019,000008779927889,Prime Video,5968,Misc equipment tools and materials,7.99,0.00,7.99
Regeneration and Local Services,Corporate Property and Land,010525,Catering - Green Lane,Premises,145009,Cleaning and Domestic Supplies,04-Sep-2019,000008779927939,ALLIANCE DISPOSABLES L,2842,Other cleaning and domestic costs,191.64,31.94,159.70
Regeneration and Local Services,Corporate Property and Land,010525,Catering - Green Lane,Premises,145009,Cleaning and Domestic Supplies,04-Sep-2019,000008779927939 - 1,ALLIANCE DISPOSABLES L,2842,Other cleaning and domestic costs,0.05,,0.05
Regeneration and Local Services,Corporate Property and Land,010525,Catering - Green Lane,Premises,145009,Cleaning and Domestic Supplies,04-Sep-2019,000008779927951,ALLIANCE DISPOSABLES L,2842,Other cleaning and domestic costs,15.59,2.60,12.99
Children and Young Peoples Services,Head of Childrens Social Care,085551,Short Break Services-Park Hse Sher,Supplies and Services,324117,Provisions E324,04-Sep-2019,000008779927969,ALDI 15 774,5411,Catering costs - provisions,31.98,5.33,26.65
Children and Young Peoples Services,Head of Childrens Social Care,085551,Short Break Services-Park Hse Sher,Supplies and Services,324117,Provisions E324,04-Sep-2019,000008779927969 - 1,ALDI 15 774,5411,Catering costs - provisions,16.28,,16.28
Regeneration and Local Services,Development and Housing,030554,International Relations 030554,Transport,235057,Public Transport,04-Sep-2019,000008779927989,Trainline.com,4112,Staff travelling,313.84,0.00,313.84
Regeneration and Local Services,Development and Housing,030554,International Relations 030554,Transport,235057,Public Transport,04-Sep-2019,000008779927993,Trainline,4112,Staff travelling,45.02,0.00,45.02
Transformation and Partnerships,Business Support,010832,Business Support 010832,Supplies and Services,304259,Equipment and Materials,04-Sep-2019,000008779928105,JAUPT,9399,Equipment-purchase and rental,252.00,0.00,252.00
Children and Young Peoples Services,Head of Education and Skills,070264,EDC Premises,Supplies and Services,324117,Provisions E324,04-Sep-2019,000008779928145,ASDA SUPERSTORE 4987,5411,Catering costs - provisions,12.00,0.00,12.00
Resources BK0010,Digital and Customer Services,065335,School Services - Implementations,Supplies and Services,304303,Equipment and Materials,04-Sep-2019,000008779928167,CABLES DIRECT LTD,8999,Network for resale,181.49,0.00,181.49
Regeneration and Local Services,Development and Housing,030771,Durham Advance Flexible Fund,Supplies and Services,348037,Subsistence E348,04-Sep-2019,000008779928179,COSTA COFFEE,5814,Subsistence,3.80,0.63,3.17
Children and Young Peoples Services,Head of Childrens Social Care,085501,Child Care Cases Legal Expenses,Supplies and Services,304259,Equipment and Materials,04-Sep-2019,000008779928187,SUNDERLAND CC,9399,Equipment-purchase and rental,11.00,0.00,11.00
Transformation and Partnerships,Business Support,052986,CYPS - Locality and Operational Support,Supplies and Services,304403,Equipment and Materials,04-Sep-2019,000008779928199,AMZNMktplace,5999,Other consumables,43.02,7.17,35.85
Children and Young Peoples Services,Head of Education and Skills,071903,Early Years Sustainability,Supplies and Services,384999,Miscellaneous Expenses,04-Sep-2019,000008779928205,Amazon.co.uk MA32R4PQ4,5969,Other expenses,16.99,0.00,16.99
Regeneration and Local Services,Development and Housing,031576,B& B - Temp Accom,Supplies and Services,364320,Grants to Voluntary Organisations,04-Sep-2019,000008779928245,HAYAT HOTEL,7011,Accommodation assistance,445.00,0.00,445.00
Children and Young Peoples Services,Head of Childrens Social Care,085333,Coxhoe Satelite Home,Supplies and Services,324117,Provisions E324,04-Sep-2019,000008779928269,TESCO STORES 2916,5411,Catering costs - provisions,63.30,0.00,63.30
Children and Young Peoples Services,Head of Childrens Social Care,085333,Coxhoe Satelite Home,Supplies and Services,324117,Provisions E324,04-Sep-2019,000008779928275,TESCO STORES 2916,5411,Catering costs - provisions,56.93,0.00,56.93
Children and Young Peoples Services,Head of Childrens Social Care,085333,Coxhoe Satelite Home,Supplies and Services,324117,Provisions E324,04-Sep-2019,000008779928281,WALKERS BUTCHERS & BAK,5499,Catering costs - provisions,7.37,0.00,7.37
Resources BK0010,Corporate Finance & Commercial Services,069800,Corporate Procurement 069800,Employees,040149,Recruitment Instruction and Training,04-Sep-2019,000008779928309,WWW.CIPS.ORG,8699,Training-all costs,108.00,0.00,108.00
Resources BK0010,Corporate Finance & Commercial Services,069800,Corporate Procurement 069800,Employees,040149,Recruitment Instruction and Training,04-Sep-2019,000008779928317,WWW.CIPS.ORG,8699,Training-all costs,108.00,0.00,108.00
Regeneration and Local Services,Development and Housing,031500,Housing Solutions - Core Team,Supplies and Services,352001,Conference Expenses,04-Sep-2019,000008779928351,HAYAT HOTEL,7011,Conferencesseminars fees etc,34.00,0.00,34.00
Regeneration and Local Services,Development and Housing,031500,Housing Solutions - Core Team,Supplies and Services,352001,Conference Expenses,04-Sep-2019,000008779928355,HAYAT HOTEL,7011,Conferencesseminars fees etc,500.00,0.00,500.00
Regeneration and Local Services,Culture Sport and Tourism,011263,Louisa Centre 011263,Supplies and Services,324117,Provisions E324,04-Sep-2019,000008779928369,ASDA SUPERSTORE,5411,Catering costs - provisions,4.32,0.00,4.32
Adult and Health Services,Head of Adults,055310,Positive Journeys (Tudhoe),Supplies and Services,324117,Provisions E324,04-Sep-2019,000008779928387,ASDA SUPERSTORE 4987,5411,Catering costs - provisions,1.00,0.00,1.00
Regeneration and Local Services,Development and Housing,030771,Durham Advance Flexible Fund,Supplies and Services,304221,Equipment and Materials,04-Sep-2019,000008779928403,SCREWFIX CHESTER L,5211,Direct materials,70.95,11.83,59.12
Regeneration and Local Services,Development and Housing,030771,Durham Advance Flexible Fund,Transport,235057,Public Transport,04-Sep-2019,000008779928445,Trainline.com,4112,Staff travelling,59.64,0.00,59.64
Regeneration and Local Services,Development and Housing,030771,Durham Advance Flexible Fund,Transport,235057,Public Transport,04-Sep-2019,000008779928453,GO NORTH EAST LIMITED,4131,Staff travelling,95.00,0.00,95.00
Children and Young Peoples Services,Head of Education and Skills,071732,Dean Bank Childcare,Supplies and Services,304403,Equipment and Materials,04-Sep-2019,000008784897085,AMZNMKTPLACE AMAZON.CO,5999,Other consumables,29.15,4.87,24.28
Children and Young Peoples Services,Head of Education and Skills,070264,EDC Premises,Supplies and Services,308011,Furniture,04-Sep-2019,000008784897689,IKEA LTD 143 GATESHEAD,5712,Furniture repair and replacement,30.00,0.00,30.00
Transformation and Partnerships,Business Support,052986,CYPS - Locality and Operational Support,Supplies and Services,352001,Conference Expenses,04-Sep-2019,000008784897757,TVLICENSING.CO.UK,7392,Conferencesseminars fees etc,154.50,0.00,154.50
Children and Young Peoples Services,Head of Early Help Inclusion & Vulnerable Children.,085956,Lumley,Supplies and Services,328041,Clothing uniforms and laundry E328,04-Sep-2019,000008831745219,BOOHOO.COM,5691,Clothing uniforms and laundry,-20.80,0.00,-20.80
Transformation and Partnerships,Business Support,065461,Business Support 065461,Supplies and Services,342053,Computers and Communications,05-Sep-2019,000008779927335,BITEABLE PTY LTD,7392,Computer software,0.66,0.00,0.66
Children and Young Peoples Services,Head of Education and Skills,071801,Selby Cottage Childcare Centre,Supplies and Services,324117,Provisions E324,05-Sep-2019,000008784896547,TESCO STORES 2278,5411,Catering costs - provisions,3.70,0.00,3.70
Resources BK0010,Digital and Customer Services,065481,Technical Services 065481,Supplies and Services,304335,Equipment and Materials,05-Sep-2019,000008784896597,AMZNMktplace,5999,ICT supplies etc,218.56,0.00,218.56
Resources BK0010,Legal & Democratic Services,069326,Practice Management,Supplies and Services,384956,Miscellaneous Expenses,05-Sep-2019,000008784896615,WWW.THELAWSOCIETY.ORG,8699,Licences,196.00,0.00,196.00
Children and Young Peoples Services,Head of Childrens Social Care,085100,SGO and CAO costs,Supplies and Services,364359,Grants to Voluntary Organisations,05-Sep-2019,000008784896623,DARLINGTON BC INTERNET,9399,Childcare Costs,11.00,0.00,11.00
Regeneration and Local Services,Development and Housing,031500,Housing Solutions - Core Team,Supplies and Services,364320,Grants to Voluntary Organisations,05-Sep-2019,000008784896635,NEWCASTLE JEMSOND HOTE,7011,Accommodation assistance,45.50,7.58,37.92
Regeneration and Local Services,Development and Housing,031500,Housing Solutions - Core Team,Supplies and Services,364320,Grants to Voluntary Organisations,05-Sep-2019,000008784896639,NEWCASTLE JEMSOND HOTE,7011,Accommodation assistance,45.50,0.00,45.50
Regeneration and Local Services,Environmental Services,010367,C&G - South Grounds Maintenance,Supplies and Services,304221,Equipment and Materials,05-Sep-2019,000008784896805,HARELAW SAWMILL,5211,Direct materials,4.98,0.00,4.98
Children and Young Peoples Services,Head of Early Help Inclusion & Vulnerable Children.,088105,BA/BC/Crook 0-19 Community Family Hub,Supplies and Services,304259,Equipment and Materials,05-Sep-2019,000008784896855,Amazon.co.uk MA6KN5GD4,5969,Equipment-purchase and rental,5.00,0.83,4.17
Resources BK0010,Digital and Customer Services,070204,School Services - Systems,Supplies and Services,372009,Subscriptions E372,05-Sep-2019,000008784896897,WEB NETWORKSOLUTIONS,5968,Subscriptions 372009,113.14,0.00,113.14
Resources BK0010,Digital and Customer Services,065481,Technical Services 065481,Supplies and Services,372009,Subscriptions E372,05-Sep-2019,000008784896907,WEB NETWORKSOLUTIONS,5968,Subscriptions 372009,7.87,0.00,7.87
Regeneration and Local Services,Environmental Services,010367,C&G - South Grounds Maintenance,Supplies and Services,304221,Equipment and Materials,05-Sep-2019,000008784896921,JT ATKINSON & SONS LTD,5211,Direct materials,20.16,3.36,16.80
Children and Young Peoples Services,Head of Childrens Social Care,085362,LAC & Permanence Team 2,Supplies and Services,304403,Equipment and Materials,05-Sep-2019,000008784896971,HM PASSPORT OFFICE,9399,Other consumables,75.50,0.00,75.50
Children and Young Peoples Services,Head of Childrens Social Care,085362,LAC & Permanence Team 2,Supplies and Services,304403,Equipment and Materials,05-Sep-2019,000008784896977,HM PASSPORT OFFICE,9399,Other consumables,49.00,0.00,49.00
Children and Young Peoples Services,Head of Childrens Social Care,085361,LAC & Permanence Team 1,Supplies and Services,304403,Equipment and Materials,05-Sep-2019,000008784896985,WWW.DURHAM.GOV.UK,9399,Other consumables,35.00,0.00,35.00
Children and Young Peoples Services,Head of Early Help Inclusion & Vulnerable Children.,088109,Spennymoor & Shildon 0-19 Community Family Hub,Supplies and Services,304999,Equipment and Materials,05-Sep-2019,000008784897061,HOME BARGAINS SPENNYMO,5251,Misc equipment tools and materials,17.89,0.00,17.89
Adult and Health Services,Commissioning inc Supporting People,052100,Supporting the Provider Market,Supplies and Services,312009,Newspapers books and periodicals E312,05-Sep-2019,000008784897119,WWW.JKP.COM/UK/TERMS/,5965,Newspapers books and periodicals,20.10,0.00,20.10
Regeneration and Local Services,Development and Housing,030771,Durham Advance Flexible Fund,Supplies and Services,384700,Miscellaneous Expenses,05-Sep-2019,000008784897261,GO NORTH EAST LIMITED,4131,Miscellaneous grants,10.60,0.00,10.60
Regeneration and Local Services,Development and Housing,030771,Durham Advance Flexible Fund,Transport,235057,Public Transport,05-Sep-2019,000008784897269,WALKERGATE CAR PAR,7523,Staff travelling,5.00,0.83,4.17
Regeneration and Local Services,Business Durham CL0850,030674,Business Services General,Supplies and Services,342222,Computers and Communications,05-Sep-2019,000008784897283,FASTHOSTS INTERNET,4816,Comp hardware purch-network servers,6.34,1.06,5.28
Regeneration and Local Services,Business Durham CL0850,030674,Business Services General,Supplies and Services,342222,Computers and Communications,05-Sep-2019,000008784897289,FASTHOSTS INTERNET,4816,Comp hardware purch-network servers,66.30,11.05,55.25
Regeneration and Local Services,Business Durham CL0850,030674,Business Services General,Supplies and Services,342222,Computers and Communications,05-Sep-2019,000008784897293,FASTHOSTS INTERNET,4816,Comp hardware purch-network servers,72.66,12.11,60.55
Regeneration and Local Services,Development and Housing,030771,Durham Advance Flexible Fund,Supplies and Services,340001,Postages E340,05-Sep-2019,000008784897301,POST OFFICE COUNTER,9402,Postages,330.00,0.00,330.00
Children and Young Peoples Services,Head of Early Help Inclusion & Vulnerable Children.,085955,Auckland,Supplies and Services,304649,Equipment and Materials,05-Sep-2019,000008784897327,Amazon.co.uk MA0JG6E84,5969,Toys,25.74,4.29,21.45
Children and Young Peoples Services,Head of Early Help Inclusion & Vulnerable Children.,085955,Auckland,Supplies and Services,304649,Equipment and Materials,05-Sep-2019,000008784897327 - 1,Amazon.co.uk MA0JG6E84,5969,Toys,11.14,,11.14
Children and Young Peoples Services,Head of Early Help Inclusion & Vulnerable Children.,085955,Auckland,Supplies and Services,304649,Equipment and Materials,05-Sep-2019,000008784897333,AMZNMktplace,5999,Toys,34.04,0.00,34.04
Children and Young Peoples Services,Head of Early Help Inclusion & Vulnerable Children.,085955,Auckland,Supplies and Services,324117,Provisions E324,05-Sep-2019,000008784897337,TESCO STORES 6329,5411,Catering costs - provisions,43.37,0.00,43.37
Regeneration and Local Services,Culture Sport and Tourism,054813,Gala Theatre - Technical,Supplies and Services,384999,Miscellaneous Expenses,05-Sep-2019,000008784897343,Amazon.co.uk MA60Q5G94,5969,Other expenses,19.77,0.00,19.77
Regeneration and Local Services,Environmental Services,026591,C&G - Hardwick Park,Supplies and Services,304245,Equipment and Materials,05-Sep-2019,000008784897355,SAINSBURYS SACAT (2303,5411,Materials,10.00,0.00,10.00
Regeneration and Local Services,Development and Housing,030552,ATLAS Regional Network,Supplies and Services,324117,Provisions E324,05-Sep-2019,000008784897465,TESCO STORES 2371,5411,Catering costs - provisions,48.00,0.00,48.00
Children and Young Peoples Services,Head of Early Help Inclusion & Vulnerable Children.,071443,Stanley One Point Hub,Supplies and Services,324117,Provisions E324,05-Sep-2019,000008784897471,BESTWAY WHOLESALE,5451,Catering costs - provisions,20.68,0.00,20.68
Children and Young Peoples Services,Head of Early Help Inclusion & Vulnerable Children.,071443,Stanley One Point Hub,Supplies and Services,324117,Provisions E324,05-Sep-2019,000008784897481,BESTWAY WHOLESALE,5451,Catering costs - provisions,70.89,0.00,70.89
Children and Young Peoples Services,Head of Early Help Inclusion & Vulnerable Children.,071443,Stanley One Point Hub,Supplies and Services,328041,Clothing uniforms and laundry E328,05-Sep-2019,000008784897487,WWW.ARGOS.CO.UK,5310,Clothing uniforms and laundry,12.95,0.00,12.95
Regeneration and Local Services,Development and Housing,030770,Durham Advance,Supplies and Services,332048,Printing Stationery and Gen Off Exps,05-Sep-2019,000008784897595,HARRISON & SON LTD,7399,Administrative stationery etc,150.00,0.00,150.00
Regeneration and Local Services,Development and Housing,030771,Durham Advance Flexible Fund,Supplies and Services,348037,Subsistence E348,05-Sep-2019,000008784897735,COSTA COFFEE,5814,Subsistence,5.40,0.90,4.50
Resources BK0010,People & Talent Management,069820,Durham Manager Programme,Employees,040149,Recruitment Instruction and Training,05-Sep-2019,000008784897741,SP MINDSPRING2,8999,Training-all costs,36.48,0.00,36.48
Regeneration and Local Services,Environmental Services,031081,Heritage Coast 031081,Employees,040149,Recruitment Instruction and Training,05-Sep-2019,000008784897745,PAYPAL JASMINEBARN,8999,Training-all costs,99.00,0.00,99.00
Transformation and Partnerships,Business Support,052986,CYPS - Locality and Operational Support,Supplies and Services,328041,Clothing uniforms and laundry E328,05-Sep-2019,000008784897763,ARGOS RETAIL GROUP,5310,Clothing uniforms and laundry,29.99,0.00,29.99
Adult and Health Services,Head of Adults,055301,Stanley Pathways,Supplies and Services,304259,Equipment and Materials,05-Sep-2019,000008784897831,WILKO DURHAM 426,5722,Equipment-purchase and rental,13.00,0.00,13.00
Regeneration and Local Services,Environmental Services,010301,C&G - North Grounds Maintenance,Supplies and Services,304403,Equipment and Materials,05-Sep-2019,000008784897837,TIMPSON LTD,7251,Other consumables,15.00,0.00,15.00
Children and Young Peoples Services,Head of Childrens Social Care,085333,Coxhoe Satelite Home,Supplies and Services,324117,Provisions E324,05-Sep-2019,000008784897891,TESCO STORES 2916,5411,Catering costs - provisions,111.60,0.00,111.60
Children and Young Peoples Services,Head of Childrens Social Care,085333,Coxhoe Satelite Home,Supplies and Services,324117,Provisions E324,05-Sep-2019,000008784897895,TESCO STORES 2916,5411,Catering costs - provisions,24.34,0.00,24.34
Children and Young Peoples Services,Head of Education and Skills,071802,Louisa Cent Nursery,Supplies and Services,324117,Provisions E324,05-Sep-2019,000008784897901,ASDA SUPERSTORE,5411,Catering costs - provisions,13.98,0.00,13.98
Regeneration and Local Services,Development and Housing,031500,Housing Solutions - Core Team,Supplies and Services,352001,Conference Expenses,05-Sep-2019,000008784897925,HAYAT HOTEL,7011,Conferencesseminars fees etc,445.00,0.00,445.00
Adult and Health Services,Head of Adults,055310,Positive Journeys (Tudhoe),Supplies and Services,324117,Provisions E324,05-Sep-2019,000008784897989,ASDA SUPERSTORE 4987,5411,Catering costs - provisions,5.01,0.00,5.01
Children and Young Peoples Services,Head of Childrens Social Care,085334,West Rainton Satelite Home,Supplies and Services,324117,Provisions E324,05-Sep-2019,000008784898027,TESCO STORES 2371,5411,Catering costs - provisions,6.71,0.00,6.71
Regeneration and Local Services,Development and Housing,030771,Durham Advance Flexible Fund,Transport,235057,Public Transport,05-Sep-2019,000008784898065,GO NORTH EAST LIMITED,4131,Staff travelling,7.00,0.00,7.00
Resources BK0010,Legal & Democratic Services,067910,Democratic Representation 067910,Supplies and Services,344033,Telephones,05-Sep-2019,000008791532913,AMZNMKTPLACE AMAZON.CO,5999,Telephones general-all costs,11.58,1.93,9.65
Regeneration and Local Services,Corporate Property and Land,021242,Catering - County Hall,Supplies and Services,324117,Provisions E324,05-Sep-2019,000008791533161,BATLEYS PERTH,5300,Catering costs - provisions,587.82,97.97,489.85
Regeneration and Local Services,Corporate Property and Land,021242,Catering - County Hall,Supplies and Services,324117,Provisions E324,05-Sep-2019,000008791533161 - 1,BATLEYS PERTH,5300,Catering costs - provisions,136.84,,136.84
Regeneration and Local Services,Environmental Services,011060,C&G - Hardwick Park Catering,Supplies and Services,324117,Provisions E324,05-Sep-2019,000008791533913,BATLEYS PERTH,5300,Catering costs - provisions,299.22,49.87,249.35
Regeneration and Local Services,Environmental Services,011060,C&G - Hardwick Park Catering,Supplies and Services,324117,Provisions E324,05-Sep-2019,000008791533913 - 1,BATLEYS PERTH,5300,Catering costs - provisions,281.70,,281.70
Regeneration and Local Services,Corporate Property and Land,030691,Catering - Durham Dales Centre,Supplies and Services,324117,Provisions E324,05-Sep-2019,000008791534559,BATLEYS PERTH,5300,Catering costs - provisions,-13.79,-2.30,-11.49
Regeneration and Local Services,Development and Housing,031576,B& B - Temp Accom,Supplies and Services,364320,Grants to Voluntary Organisations,05-Sep-2019,000008791534591,PREMIER INN,3811,Accommodation assistance,-76.00,0.00,-76.00
Regeneration and Local Services,Development and Housing,030771,Durham Advance Flexible Fund,Supplies and Services,328041,Clothing uniforms and laundry E328,05-Sep-2019,000008799762309,NEW LOOK INTERNET,5621,Clothing uniforms and laundry,25.98,0.00,25.98
Resources BK0010,Digital and Customer Services,070204,School Services - Systems,Supplies and Services,372009,Subscriptions E372,06-Sep-2019,000008784896911,WEB NETWORKSOLUTIONS,5968,Subscriptions 372009,3.11,0.00,3.11
Transformation and Partnerships,Business Support,065461,Business Support 065461,Supplies and Services,372009,Subscriptions E372,06-Sep-2019,000008784896917,WEB NETWORKSOLUTIONS,5968,Subscriptions 372009,0.22,0.00,0.22
Children and Young Peoples Services,Head of Education and Skills,071801,Selby Cottage Childcare Centre,Supplies and Services,324117,Provisions E324,06-Sep-2019,000008791532869,TESCO STORES 2278,5411,Catering costs - provisions,6.19,0.00,6.19
Regeneration and Local Services,Development and Housing,031576,B& B - Temp Accom,Supplies and Services,352001,Conference Expenses,06-Sep-2019,000008791532903,HAYAT HOTEL,7011,Conferencesseminars fees etc,178.00,0.00,178.00
Resources BK0010,Legal & Democratic Services,067910,Democratic Representation 067910,Supplies and Services,344033,Telephones,06-Sep-2019,000008791532911,AMZNMktplace,5999,Telephones general-all costs,5.95,0.99,4.96
Children and Young Peoples Services,Head of Education and Skills,070264,EDC Premises,Supplies and Services,324117,Provisions E324,06-Sep-2019,000008791532921,HOPWELLS LTD,5811,Catering costs - provisions,32.52,5.42,27.10
Children and Young Peoples Services,Head of Education and Skills,070264,EDC Premises,Supplies and Services,324117,Provisions E324,06-Sep-2019,000008791532921 - 1,HOPWELLS LTD,5811,Catering costs - provisions,397.00,,397.00
Children and Young Peoples Services,Head of Education and Skills,070264,EDC Premises,Supplies and Services,324117,Provisions E324,06-Sep-2019,000008791532927,HOPWELLS LTD,5811,Catering costs - provisions,-99.20,0.00,-99.20
Children and Young Peoples Services,Head of Education and Skills,070264,EDC Premises,Supplies and Services,324117,Provisions E324,06-Sep-2019,000008791532933,BATLEYS PERTH,5300,Catering costs - provisions,9.66,1.61,8.05
Children and Young Peoples Services,Head of Education and Skills,070264,EDC Premises,Supplies and Services,324117,Provisions E324,06-Sep-2019,000008791532933 - 1,BATLEYS PERTH,5300,Catering costs - provisions,80.09,,80.09
Regeneration and Local Services,Environmental Services,010383,C&G - South Street Cleansing,Supplies and Services,304221,Equipment and Materials,06-Sep-2019,000008791532971,CARRS BILLINGTON SPENN,5599,Direct materials,30.00,5.00,25.00
Children and Young Peoples Services,Head of Childrens Social Care,085342,9 Cedar Drive Aycliffe,Supplies and Services,344033,Telephones,06-Sep-2019,000008791532997,MIP VODAFONE TOPUP,4814,Telephones general-all costs,10.00,0.00,10.00
Children and Young Peoples Services,Head of Childrens Social Care,085621,Families First Aycliffe,Supplies and Services,304403,Equipment and Materials,06-Sep-2019,000008791533015,AMZNMktplace,5999,Other consumables,27.98,0.00,27.98
Regeneration and Local Services,Culture Sport and Tourism,011263,Louisa Centre 011263,Supplies and Services,324117,Provisions E324,06-Sep-2019,000008791533023,JR HOLLAND FOODSERVICE,5499,Catering costs - provisions,37.74,0.00,37.74
Regeneration and Local Services,Environmental Services,010367,C&G - South Grounds Maintenance,Supplies and Services,304221,Equipment and Materials,06-Sep-2019,000008791533111,WWW.ARCO.CO.UK,5085,Direct materials,-313.20,-52.20,-261.00
Regeneration and Local Services,Environmental Services,010367,C&G - South Grounds Maintenance,Supplies and Services,304221,Equipment and Materials,06-Sep-2019,000008791533119,WWW.ARCO.CO.UK,5085,Direct materials,-417.60,-69.60,-348.00
Regeneration and Local Services,Corporate Property and Land,021242,Catering - County Hall,Supplies and Services,324117,Provisions E324,06-Sep-2019,000008791533177,HOPWELLS LTD,5811,Catering costs - provisions,278.83,0.00,278.83
Regeneration and Local Services,Corporate Property and Land,021242,Catering - County Hall,Supplies and Services,324117,Provisions E324,06-Sep-2019,000008791533179,HOPWELLS LTD,5811,Catering costs - provisions,410.09,0.00,410.09
Regeneration and Local Services,Corporate Property and Land,021242,Catering - County Hall,Supplies and Services,324117,Provisions E324,06-Sep-2019,000008791533187,HOPWELLS LTD,5811,Catering costs - provisions,225.86,0.00,225.86
Regeneration and Local Services,Corporate Property and Land,021242,Catering - County Hall,Premises,145009,Cleaning and Domestic Supplies,06-Sep-2019,000008791533193,ALLIANCE DISPOSABLES L,2842,Other cleaning and domestic costs,523.68,87.28,436.40
Regeneration and Local Services,Corporate Property and Land,021242,Catering - County Hall,Premises,145009,Cleaning and Domestic Supplies,06-Sep-2019,000008791533193 - 1,ALLIANCE DISPOSABLES L,2842,Other cleaning and domestic costs,0.06,,0.06
Regeneration and Local Services,Corporate Property and Land,021242,Catering - County Hall,Supplies and Services,324117,Provisions E324,06-Sep-2019,000008791533199,JR HOLLAND FOODSERVICE,5499,Catering costs - provisions,118.11,0.00,118.11
Regeneration and Local Services,Corporate Property and Land,021242,Catering - County Hall,Supplies and Services,324117,Provisions E324,06-Sep-2019,000008791533201,JR HOLLAND FOODSERVICE,5499,Catering costs - provisions,13.80,0.00,13.80
Regeneration and Local Services,Corporate Property and Land,021242,Catering - County Hall,Supplies and Services,324117,Provisions E324,06-Sep-2019,000008791533209,JR HOLLAND FOODSERVICE,5499,Catering costs - provisions,134.31,0.00,134.31
Regeneration and Local Services,Corporate Property and Land,021242,Catering - County Hall,Supplies and Services,324117,Provisions E324,06-Sep-2019,000008791533211,JR HOLLAND FOODSERVICE,5499,Catering costs - provisions,6.90,0.00,6.90
Regeneration and Local Services,Corporate Property and Land,021242,Catering - County Hall,Supplies and Services,324117,Provisions E324,06-Sep-2019,000008791533213,JR HOLLAND FOODSERVICE,5499,Catering costs - provisions,130.47,21.75,108.72
Regeneration and Local Services,Corporate Property and Land,021242,Catering - County Hall,Supplies and Services,324117,Provisions E324,06-Sep-2019,000008791533223,JR HOLLAND FOODSERVICE,5499,Catering costs - provisions,122.30,0.00,122.30
Regeneration and Local Services,Corporate Property and Land,021242,Catering - County Hall,Supplies and Services,324117,Provisions E324,06-Sep-2019,000008791533227,JR HOLLAND FOODSERVICE,5499,Catering costs - provisions,37.44,0.00,37.44
Regeneration and Local Services,Corporate Property and Land,021242,Catering - County Hall,Supplies and Services,324117,Provisions E324,06-Sep-2019,000008791533233,JR HOLLAND FOODSERVICE,5499,Catering costs - provisions,209.37,0.00,209.37
Regeneration and Local Services,Corporate Property and Land,021242,Catering - County Hall,Supplies and Services,324117,Provisions E324,06-Sep-2019,000008791533239,JR HOLLAND FOODSERVICE,5499,Catering costs - provisions,31.51,0.00,31.51
Regeneration and Local Services,Corporate Property and Land,021242,Catering - County Hall,Supplies and Services,324117,Provisions E324,06-Sep-2019,000008791533245,JR HOLLAND FOODSERVICE,5499,Catering costs - provisions,151.87,0.00,151.87
Children and Young Peoples Services,Head of Childrens Social Care,085380,Operations Manager LAC Resources,Supplies and Services,328041,Clothing uniforms and laundry E328,06-Sep-2019,000008791533249,WWW.ARGOS.CO.UK,5310,Clothing uniforms and laundry,9.99,0.00,9.99
Children and Young Peoples Services,Head of Childrens Social Care,085380,Operations Manager LAC Resources,Supplies and Services,328041,Clothing uniforms and laundry E328,06-Sep-2019,000008791533255,WWW.ARGOS.CO.UK,5310,Clothing uniforms and laundry,170.39,0.00,170.39
Children and Young Peoples Services,Head of Childrens Social Care,085380,Operations Manager LAC Resources,Supplies and Services,328041,Clothing uniforms and laundry E328,06-Sep-2019,000008791533259,MOTHERCARE DIRECT-E-CO,5311,Clothing uniforms and laundry,44.95,7.49,37.46
Regeneration and Local Services,Environmental Services,010367,C&G - South Grounds Maintenance,Supplies and Services,304221,Equipment and Materials,06-Sep-2019,000008791533283,HARELAW SAWMILL,5211,Direct materials,32.26,5.38,26.88
Regeneration and Local Services,Culture Sport and Tourism,054812,Gala Theatre - Catering etc,Supplies and Services,324117,Provisions E324,06-Sep-2019,000008791533315,HOPWELLS LTD,5811,Catering costs - provisions,36.65,0.00,36.65
Regeneration and Local Services,Culture Sport and Tourism,054812,Gala Theatre - Catering etc,Supplies and Services,324117,Provisions E324,06-Sep-2019,000008791533319,JR HOLLAND FOODSERVICE,5499,Catering costs - provisions,73.64,0.00,73.64
Regeneration and Local Services,Development and Housing,030773,CLLD North,Supplies and Services,304259,Equipment and Materials,06-Sep-2019,000008791533373,Durham County CNCL,9399,Equipment-purchase and rental,35.00,0.00,35.00
Children and Young Peoples Services,Head of Childrens Social Care,085362,LAC & Permanence Team 2,Supplies and Services,304403,Equipment and Materials,06-Sep-2019,000008791533387,HM PASSPORT OFFICE,9399,Other consumables,49.00,0.00,49.00
Children and Young Peoples Services,Head of Childrens Social Care,085334,West Rainton Satelite Home,Supplies and Services,324117,Provisions E324,06-Sep-2019,000008791533473,TESCO STORES 2371,5411,Catering costs - provisions,40.63,0.00,40.63
Children and Young Peoples Services,Head of Childrens Social Care,085334,West Rainton Satelite Home,Supplies and Services,304999,Equipment and Materials,06-Sep-2019,000008791533477,HOME BARGAINS,5251,Misc equipment tools and materials,15.35,2.56,12.79
Children and Young Peoples Services,Head of Childrens Social Care,085334,West Rainton Satelite Home,Supplies and Services,324117,Provisions E324,06-Sep-2019,000008791533483,ALDI 12 774,5411,Catering costs - provisions,1.15,0.00,1.15
Children and Young Peoples Services,Head of Childrens Social Care,085334,West Rainton Satelite Home,Supplies and Services,324117,Provisions E324,06-Sep-2019,000008791533489,ALDI 12 774,5411,Catering costs - provisions,2.99,0.00,2.99
Children and Young Peoples Services,Head of Childrens Social Care,085334,West Rainton Satelite Home,Supplies and Services,324117,Provisions E324,06-Sep-2019,000008791533493,ALDI 12 774,5411,Catering costs - provisions,80.38,0.00,80.38
Regeneration and Local Services,Culture Sport and Tourism,010664,Freemans Quay Leisure Centre,Supplies and Services,328041,Clothing uniforms and laundry E328,06-Sep-2019,000008791533531,ARGOS LTD,5310,Clothing uniforms and laundry,8.00,0.00,8.00
Children and Young Peoples Services,Head of Education and Skills,071732,Dean Bank Childcare,Supplies and Services,324117,Provisions E324,06-Sep-2019,000008791533565,CO-OP GROUP 310027,5411,Catering costs - provisions,2.20,0.00,2.20
Regeneration and Local Services,Development and Housing,030771,Durham Advance Flexible Fund,Transport,235057,Public Transport,06-Sep-2019,000008791533641,ARRIVA NORTH EAST,4131,Staff travelling,90.00,0.00,90.00
Regeneration and Local Services,Development and Housing,030771,Durham Advance Flexible Fund,Supplies and Services,304259,Equipment and Materials,06-Sep-2019,000008791533647,GEN REGISTER OFFICE,9399,Equipment-purchase and rental,14.00,0.00,14.00
Regeneration and Local Services,Development and Housing,030771,Durham Advance Flexible Fund,Supplies and Services,304259,Equipment and Materials,06-Sep-2019,000008791533657,GEN REGISTER OFFICE,9399,Equipment-purchase and rental,14.00,0.00,14.00
Regeneration and Local Services,Development and Housing,030771,Durham Advance Flexible Fund,Supplies and Services,384700,Miscellaneous Expenses,06-Sep-2019,000008791533705,PAYPAL DOITSOLUTIO,8244,Miscellaneous grants,20.00,0.00,20.00
Regeneration and Local Services,Development and Housing,030771,Durham Advance Flexible Fund,Supplies and Services,324117,Provisions E324,06-Sep-2019,000008791533711,TESCO STORES 2371,5411,Catering costs - provisions,4.40,0.73,3.67
Regeneration and Local Services,Development and Housing,030771,Durham Advance Flexible Fund,Supplies and Services,324117,Provisions E324,06-Sep-2019,000008791533715,COSTA COFFEE 43038640,5814,Catering costs - provisions,2.40,0.40,2.00
Regeneration and Local Services,Development and Housing,031500,Housing Solutions - Core Team,Supplies and Services,340001,Postages E340,06-Sep-2019,000008791533753,BROWN AND ILLINGWORTH,4214,Postages,285.07,0.00,285.07
Regeneration and Local Services,Development and Housing,031500,Housing Solutions - Core Team,Supplies and Services,352001,Conference Expenses,06-Sep-2019,000008791533757,HAYAT HOTEL,7011,Conferencesseminars fees etc,500.00,0.00,500.00
Regeneration and Local Services,Development and Housing,031500,Housing Solutions - Core Team,Supplies and Services,352001,Conference Expenses,06-Sep-2019,000008791533761,HAYAT HOTEL,7011,Conferencesseminars fees etc,20.00,0.00,20.00
Regeneration and Local Services,Business Durham CL0850,030674,Business Services General,Supplies and Services,342222,Computers and Communications,06-Sep-2019,000008791533769,FASTHOSTS INTERNET,4816,Comp hardware purch-network servers,30.00,5.00,25.00
Children and Young Peoples Services,Head of Early Help Inclusion & Vulnerable Children.,085965,Barnard,Supplies and Services,324117,Provisions E324,06-Sep-2019,000008791533799,TESCO STORES 6329,5411,Catering costs - provisions,88.74,0.00,88.74
Children and Young Peoples Services,Head of Early Help Inclusion & Vulnerable Children.,085957,Secure Management,Supplies and Services,304999,Equipment and Materials,06-Sep-2019,000008791533805,TESCO DELIVERY SAVER2,5968,Misc equipment tools and materials,6.99,0.00,6.99
Regeneration and Local Services,Culture Sport and Tourism,054813,Gala Theatre - Technical,Supplies and Services,304259,Equipment and Materials,06-Sep-2019,000008791533835,Prime Video MA5AO4X64,5735,Equipment-purchase and rental,6.99,0.00,6.99
Regeneration and Local Services,Culture Sport and Tourism,054813,Gala Theatre - Technical,Supplies and Services,304259,Equipment and Materials,06-Sep-2019,000008791533839,Prime Video MA45U0V24,5735,Equipment-purchase and rental,5.99,0.00,5.99
Regeneration and Local Services,Culture Sport and Tourism,054813,Gala Theatre - Technical,Supplies and Services,304221,Equipment and Materials,06-Sep-2019,000008791533847,WWW.RECLAIMTILECOMPANY,5211,Direct materials,250.08,0.00,250.08
Regeneration and Local Services,Environmental Services,011060,C&G - Hardwick Park Catering,Supplies and Services,324117,Provisions E324,06-Sep-2019,000008791533931,HOPWELLS LTD,5811,Catering costs - provisions,217.56,36.26,181.30
Regeneration and Local Services,Environmental Services,011060,C&G - Hardwick Park Catering,Supplies and Services,324117,Provisions E324,06-Sep-2019,000008791533931 - 1,HOPWELLS LTD,5811,Catering costs - provisions,70.69,,70.69
Regeneration and Local Services,Environmental Services,011060,C&G - Hardwick Park Catering,Supplies and Services,324117,Provisions E324,06-Sep-2019,000008791533943,HOPWELLS LTD,5811,Catering costs - provisions,59.30,0.00,59.30
Regeneration and Local Services,Environmental Services,011060,C&G - Hardwick Park Catering,Supplies and Services,324117,Provisions E324,06-Sep-2019,000008791533949,HOPWELLS LTD,5811,Catering costs - provisions,76.50,12.75,63.75
Regeneration and Local Services,Environmental Services,011060,C&G - Hardwick Park Catering,Supplies and Services,324117,Provisions E324,06-Sep-2019,000008791533949 - 1,HOPWELLS LTD,5811,Catering costs - provisions,93.00,,93.00
Regeneration and Local Services,Environmental Services,011060,C&G - Hardwick Park Catering,Supplies and Services,324117,Provisions E324,06-Sep-2019,000008791533959,HOPWELLS LTD,5811,Catering costs - provisions,433.14,72.19,360.95
Regeneration and Local Services,Environmental Services,011060,C&G - Hardwick Park Catering,Supplies and Services,324117,Provisions E324,06-Sep-2019,000008791533959 - 1,HOPWELLS LTD,5811,Catering costs - provisions,0.11,,0.11
Regeneration and Local Services,Environmental Services,011060,C&G - Hardwick Park Catering,Premises,145009,Cleaning and Domestic Supplies,06-Sep-2019,000008791533975,ALLIANCE DISPOSABLES L,2842,Other cleaning and domestic costs,97.25,16.21,81.04
Regeneration and Local Services,Environmental Services,011060,C&G - Hardwick Park Catering,Supplies and Services,324117,Provisions E324,06-Sep-2019,000008791533979,JR HOLLAND FOODSERVICE,5499,Catering costs - provisions,85.88,0.00,85.88
Regeneration and Local Services,Environmental Services,011060,C&G - Hardwick Park Catering,Supplies and Services,324117,Provisions E324,06-Sep-2019,000008791533985,JR HOLLAND FOODSERVICE,5499,Catering costs - provisions,12.15,0.00,12.15
Regeneration and Local Services,Environmental Services,011060,C&G - Hardwick Park Catering,Supplies and Services,324117,Provisions E324,06-Sep-2019,000008791533991,JR HOLLAND FOODSERVICE,5499,Catering costs - provisions,44.44,0.00,44.44
Regeneration and Local Services,Environmental Services,011060,C&G - Hardwick Park Catering,Supplies and Services,324117,Provisions E324,06-Sep-2019,000008791533997,JR HOLLAND FOODSERVICE,5499,Catering costs - provisions,42.37,0.00,42.37
Regeneration and Local Services,Environmental Services,011060,C&G - Hardwick Park Catering,Supplies and Services,324117,Provisions E324,06-Sep-2019,000008791534001,JR HOLLAND FOODSERVICE,5499,Catering costs - provisions,28.40,0.00,28.40
Regeneration and Local Services,Environmental Services,011060,C&G - Hardwick Park Catering,Supplies and Services,324117,Provisions E324,06-Sep-2019,000008791534005,BATLEYS PERTH,5300,Catering costs - provisions,210.42,35.07,175.35
Regeneration and Local Services,Environmental Services,011060,C&G - Hardwick Park Catering,Supplies and Services,324117,Provisions E324,06-Sep-2019,000008791534005 - 1,BATLEYS PERTH,5300,Catering costs - provisions,179.81,,179.81
Regeneration and Local Services,Environmental Services,011060,C&G - Hardwick Park Catering,Supplies and Services,324117,Provisions E324,06-Sep-2019,000008791534023,BATLEYS PERTH,5300,Catering costs - provisions,8.91,0.00,8.91
Regeneration and Local Services,Culture Sport and Tourism,054815,Gala Theatre Stage School,Supplies and Services,304403,Equipment and Materials,06-Sep-2019,000008791534063,AMZNMktplace,5999,Other consumables,14.99,0.00,14.99
Regeneration and Local Services,Culture Sport and Tourism,054815,Gala Theatre Stage School,Supplies and Services,328041,Clothing uniforms and laundry E328,06-Sep-2019,000008791534071,NEXT RETAIL LTD,5651,Clothing uniforms and laundry,40.00,0.00,40.00
Regeneration and Local Services,Culture Sport and Tourism,054815,Gala Theatre Stage School,Supplies and Services,328041,Clothing uniforms and laundry E328,06-Sep-2019,000008791534079,ZARA,5691,Clothing uniforms and laundry,141.95,0.00,141.95
Regeneration and Local Services,Development and Housing,030755,Durham Employment & Skills - Other Training,Employees,040149,Recruitment Instruction and Training,06-Sep-2019,000008791534087,WWW.CSKILLS.ORG,8249,Training-all costs,36.00,6.00,30.00
Regeneration and Local Services,Corporate Property and Land,021234,Catering - Locomotion,Supplies and Services,324117,Provisions E324,06-Sep-2019,000008791534113,HOPWELLS LTD,5811,Catering costs - provisions,107.88,17.98,89.90
Regeneration and Local Services,Corporate Property and Land,021234,Catering - Locomotion,Supplies and Services,324117,Provisions E324,06-Sep-2019,000008791534113 - 1,HOPWELLS LTD,5811,Catering costs - provisions,181.84,,181.84
Regeneration and Local Services,Corporate Property and Land,021234,Catering - Locomotion,Supplies and Services,324117,Provisions E324,06-Sep-2019,000008791534125,HOPWELLS LTD,5811,Catering costs - provisions,89.34,14.89,74.45
Regeneration and Local Services,Corporate Property and Land,021234,Catering - Locomotion,Supplies and Services,324117,Provisions E324,06-Sep-2019,000008791534125 - 1,HOPWELLS LTD,5811,Catering costs - provisions,158.88,,158.88
Regeneration and Local Services,Corporate Property and Land,021234,Catering - Locomotion,Supplies and Services,324117,Provisions E324,06-Sep-2019,000008791534135,HOPWELLS LTD,5811,Catering costs - provisions,76.44,12.74,63.70
Regeneration and Local Services,Corporate Property and Land,021234,Catering - Locomotion,Supplies and Services,324117,Provisions E324,06-Sep-2019,000008791534135 - 1,HOPWELLS LTD,5811,Catering costs - provisions,458.34,,458.34
Regeneration and Local Services,Corporate Property and Land,021234,Catering - Locomotion,Supplies and Services,324117,Provisions E324,06-Sep-2019,000008791534145,HOPWELLS LTD,5811,Catering costs - provisions,103.68,17.28,86.40
Regeneration and Local Services,Corporate Property and Land,021234,Catering - Locomotion,Supplies and Services,324117,Provisions E324,06-Sep-2019,000008791534145 - 1,HOPWELLS LTD,5811,Catering costs - provisions,175.84,,175.84
Regeneration and Local Services,Corporate Property and Land,021234,Catering - Locomotion,Supplies and Services,324117,Provisions E324,06-Sep-2019,000008791534155,HOPWELLS LTD,5811,Catering costs - provisions,-22.46,0.00,-22.46
Regeneration and Local Services,Development and Housing,031576,B& B - Temp Accom,Supplies and Services,364320,Grants to Voluntary Organisations,06-Sep-2019,000008791534259,PREMIER INN,3811,Accommodation assistance,346.00,0.00,346.00
Regeneration and Local Services,Corporate Property and Land,010525,Catering - Green Lane,Supplies and Services,324117,Provisions E324,06-Sep-2019,000008791534265,HOPWELLS LTD,5811,Catering costs - provisions,134.05,0.00,134.05
Regeneration and Local Services,Corporate Property and Land,010525,Catering - Green Lane,Supplies and Services,324117,Provisions E324,06-Sep-2019,000008791534273,JR HOLLAND FOODSERVICE,5499,Catering costs - provisions,80.70,0.00,80.70
Regeneration and Local Services,Corporate Property and Land,010525,Catering - Green Lane,Supplies and Services,324117,Provisions E324,06-Sep-2019,000008791534277,JR HOLLAND FOODSERVICE,5499,Catering costs - provisions,51.41,0.00,51.41
Regeneration and Local Services,Corporate Property and Land,010525,Catering - Green Lane,Supplies and Services,324117,Provisions E324,06-Sep-2019,000008791534281,BATLEYS PERTH,5300,Catering costs - provisions,133.80,22.30,111.50
Regeneration and Local Services,Corporate Property and Land,010525,Catering - Green Lane,Supplies and Services,324117,Provisions E324,06-Sep-2019,000008791534281 - 1,BATLEYS PERTH,5300,Catering costs - provisions,88.14,,88.14
Children and Young Peoples Services,Head of Early Help Inclusion & Vulnerable Children.,071443,Stanley One Point Hub,Supplies and Services,324117,Provisions E324,06-Sep-2019,000008791534335,ASDA GROCERIES ONLINE,5411,Catering costs - provisions,47.50,0.00,47.50
Children and Young Peoples Services,Head of Early Help Inclusion & Vulnerable Children.,071443,Stanley One Point Hub,Supplies and Services,324117,Provisions E324,06-Sep-2019,000008791534339,ASDA GROCERIES ONLINE,5411,Catering costs - provisions,-8.00,0.00,-8.00
Children and Young Peoples Services,Head of Childrens Social Care,085331,New Lea Childrens Home,Supplies and Services,328041,Clothing uniforms and laundry E328,06-Sep-2019,000008791534345,RAWCLIFFES STOCKTON,5137,Clothing uniforms and laundry,51.49,0.00,51.49
Regeneration and Local Services,Environmental Services,010367,C&G - South Grounds Maintenance,Supplies and Services,304221,Equipment and Materials,06-Sep-2019,000008791534387,B & Q 1120,5200,Direct materials,24.00,0.00,24.00
Children and Young Peoples Services,Head of Childrens Social Care,085333,Coxhoe Satelite Home,Supplies and Services,324117,Provisions E324,06-Sep-2019,000008791534427,TESCO STORES 5457,5411,Catering costs - provisions,178.81,0.00,178.81
Children and Young Peoples Services,Head of Childrens Social Care,085333,Coxhoe Satelite Home,Supplies and Services,328041,Clothing uniforms and laundry E328,06-Sep-2019,000008791534429,B & M RETAIL,5310,Clothing uniforms and laundry,154.87,0.00,154.87
Children and Young Peoples Services,Head of Childrens Social Care,085333,Coxhoe Satelite Home,Supplies and Services,328041,Clothing uniforms and laundry E328,06-Sep-2019,000008791534433,B & M RETAIL,5310,Clothing uniforms and laundry,16.43,0.00,16.43
Children and Young Peoples Services,Head of Childrens Social Care,085352,Tow Law CU,Supplies and Services,324117,Provisions E324,06-Sep-2019,000008791534511,TESCO STORES 2371,5411,Catering costs - provisions,169.37,0.00,169.37
Regeneration and Local Services,Corporate Property and Land,030691,Catering - Durham Dales Centre,Supplies and Services,324117,Provisions E324,06-Sep-2019,000008791534519,HOPWELLS LTD,5811,Catering costs - provisions,132.42,22.07,110.35
Regeneration and Local Services,Corporate Property and Land,030691,Catering - Durham Dales Centre,Supplies and Services,324117,Provisions E324,06-Sep-2019,000008791534519 - 1,HOPWELLS LTD,5811,Catering costs - provisions,278.44,,278.44
Regeneration and Local Services,Corporate Property and Land,030691,Catering - Durham Dales Centre,Supplies and Services,324117,Provisions E324,06-Sep-2019,000008791534529,HOPWELLS LTD,5811,Catering costs - provisions,226.57,0.00,226.57
Regeneration and Local Services,Corporate Property and Land,030691,Catering - Durham Dales Centre,Supplies and Services,324117,Provisions E324,06-Sep-2019,000008791534533,JR HOLLAND FOODSERVICE,5499,Catering costs - provisions,19.20,0.00,19.20
Regeneration and Local Services,Corporate Property and Land,030691,Catering - Durham Dales Centre,Supplies and Services,324117,Provisions E324,06-Sep-2019,000008791534537,JR HOLLAND FOODSERVICE,5499,Catering costs - provisions,135.10,0.00,135.10
Regeneration and Local Services,Corporate Property and Land,030691,Catering - Durham Dales Centre,Supplies and Services,324117,Provisions E324,06-Sep-2019,000008791534541,JR HOLLAND FOODSERVICE,5499,Catering costs - provisions,18.84,0.00,18.84
Regeneration and Local Services,Corporate Property and Land,030691,Catering - Durham Dales Centre,Supplies and Services,324117,Provisions E324,06-Sep-2019,000008791534547,JR HOLLAND FOODSERVICE,5499,Catering costs - provisions,170.34,0.00,170.34
Regeneration and Local Services,Corporate Property and Land,030691,Catering - Durham Dales Centre,Supplies and Services,324117,Provisions E324,06-Sep-2019,000008791534553,JR HOLLAND FOODSERVICE,5499,Catering costs - provisions,5.46,0.00,5.46
Adult and Health Services,Head of Adults,055643,Hawthorn House LD Respite Unit,Supplies and Services,324117,Provisions E324,06-Sep-2019,000008791534595,JR HOLLAND FOODSERVICE,5499,Catering costs - provisions,19.67,0.00,19.67
Adult and Health Services,Head of Adults,055643,Hawthorn House LD Respite Unit,Supplies and Services,324117,Provisions E324,06-Sep-2019,000008791534601,JR HOLLAND FOODSERVICE,5499,Catering costs - provisions,5.03,0.00,5.03
Adult and Health Services,Head of Adults,055643,Hawthorn House LD Respite Unit,Supplies and Services,324117,Provisions E324,06-Sep-2019,000008791534603,JR HOLLAND FOODSERVICE,5499,Catering costs - provisions,10.58,0.00,10.58
Adult and Health Services,Head of Adults,055643,Hawthorn House LD Respite Unit,Supplies and Services,324117,Provisions E324,06-Sep-2019,000008791534609,JR HOLLAND FOODSERVICE,5499,Catering costs - provisions,17.38,0.00,17.38
Adult and Health Services,Head of Adults,055643,Hawthorn House LD Respite Unit,Supplies and Services,324117,Provisions E324,06-Sep-2019,000008791534613,JR HOLLAND FOODSERVICE,5499,Catering costs - provisions,10.55,0.00,10.55
Adult and Health Services,Head of Adults,055643,Hawthorn House LD Respite Unit,Supplies and Services,324117,Provisions E324,06-Sep-2019,000008791534617,JR HOLLAND FOODSERVICE,5499,Catering costs - provisions,20.28,0.00,20.28
Adult and Health Services,Head of Adults,055643,Hawthorn House LD Respite Unit,Supplies and Services,324117,Provisions E324,06-Sep-2019,000008791534623,JR HOLLAND FOODSERVICE,5499,Catering costs - provisions,7.72,0.00,7.72
Adult and Health Services,Head of Adults,055643,Hawthorn House LD Respite Unit,Supplies and Services,324117,Provisions E324,06-Sep-2019,000008791534627,BATLEYS PERTH,5300,Catering costs - provisions,16.92,2.82,14.10
Adult and Health Services,Head of Adults,055643,Hawthorn House LD Respite Unit,Supplies and Services,324117,Provisions E324,06-Sep-2019,000008791534627 - 1,BATLEYS PERTH,5300,Catering costs - provisions,99.77,,99.77
Regeneration and Local Services,Culture Sport and Tourism,011263,Louisa Centre 011263,Supplies and Services,324117,Provisions E324,06-Sep-2019,000008791534643,ASDA SUPERSTORE,5411,Catering costs - provisions,4.36,0.00,4.36
Regeneration and Local Services,Environmental Services,010301,C&G - North Grounds Maintenance,Supplies and Services,304403,Equipment and Materials,06-Sep-2019,000008791534659,BESCOL,5231,Other consumables,56.22,0.00,56.22
Children and Young Peoples Services,Head of Early Help Inclusion & Vulnerable Children.,088100,Durham West & CLS 0-19 Targeted Family Support,Supplies and Services,328041,Clothing uniforms and laundry E328,06-Sep-2019,000008791534663,WWW.ARGOS.CO.UK,5310,Clothing uniforms and laundry,5.94,0.00,5.94
Children and Young Peoples Services,Head of Childrens Social Care,085342,9 Cedar Drive Aycliffe,Supplies and Services,384999,Miscellaneous Expenses,06-Sep-2019,000008791534687,Amazon.co.uk MA7ET0XB4,5969,Other expenses,23.26,0.00,23.26
Children and Young Peoples Services,Head of Childrens Social Care,085342,9 Cedar Drive Aycliffe,Supplies and Services,324117,Provisions E324,06-Sep-2019,000008791534691,TESCO STORES 2916,5411,Catering costs - provisions,78.03,0.00,78.03
Children and Young Peoples Services,Head of Childrens Social Care,085342,9 Cedar Drive Aycliffe,Employees,040149,Recruitment Instruction and Training,06-Sep-2019,000008791534695,PARENTPAY E-COM R,8220,Training-all costs,40.00,0.00,40.00
Regeneration and Local Services,Development and Housing,031500,Housing Solutions - Core Team,Supplies and Services,352001,Conference Expenses,06-Sep-2019,000008791534761,HAYAT HOTEL,7011,Conferencesseminars fees etc,15.00,0.00,15.00
Regeneration and Local Services,Development and Housing,031500,Housing Solutions - Core Team,Supplies and Services,352001,Conference Expenses,06-Sep-2019,000008791534767,HAYAT HOTEL,7011,Conferencesseminars fees etc,356.00,0.00,356.00
Regeneration and Local Services,Development and Housing,031500,Housing Solutions - Core Team,Supplies and Services,352001,Conference Expenses,06-Sep-2019,000008791534771,GRAINGER HOTEL,7011,Conferencesseminars fees etc,396.00,0.00,396.00
Regeneration and Local Services,Development and Housing,031500,Housing Solutions - Core Team,Supplies and Services,352001,Conference Expenses,06-Sep-2019,000008791534777,GRAINGER HOTEL,7011,Conferencesseminars fees etc,29.70,0.00,29.70
Transformation and Partnerships,Business Support,052986,CYPS - Locality and Operational Support,Transport,235057,Public Transport,06-Sep-2019,000008791534793,ARRIVA NORTH EAST,4131,Staff travelling,19.10,0.00,19.10
Transformation and Partnerships,Business Support,052986,CYPS - Locality and Operational Support,Supplies and Services,324117,Provisions E324,06-Sep-2019,000008791534799,ASDA STORES LTD,5411,Catering costs - provisions,11.98,0.00,11.98
Regeneration and Local Services,Culture Sport and Tourism,054235,Bishop Auckland Town Hall Cafe,Supplies and Services,324117,Provisions E324,06-Sep-2019,000008791534803,JR HOLLAND FOODSERVICE,5499,Catering costs - provisions,91.49,0.00,91.49
Regeneration and Local Services,Corporate Property and Land,021324,Catering - Meadowfield,Supplies and Services,324117,Provisions E324,06-Sep-2019,000008791534813,HOPWELLS LTD,5811,Catering costs - provisions,86.60,0.00,86.60
Regeneration and Local Services,Corporate Property and Land,021324,Catering - Meadowfield,Supplies and Services,324117,Provisions E324,06-Sep-2019,000008791534817,JR HOLLAND FOODSERVICE,5499,Catering costs - provisions,69.91,0.00,69.91
Regeneration and Local Services,Corporate Property and Land,021324,Catering - Meadowfield,Supplies and Services,324117,Provisions E324,06-Sep-2019,000008791534821,JR HOLLAND FOODSERVICE,5499,Catering costs - provisions,14.19,0.00,14.19
Regeneration and Local Services,Corporate Property and Land,021324,Catering - Meadowfield,Supplies and Services,324117,Provisions E324,06-Sep-2019,000008791534823,JR HOLLAND FOODSERVICE,5499,Catering costs - provisions,10.35,0.00,10.35
Children and Young Peoples Services,Head of Education and Skills,070169,Durham SSP,Supplies and Services,384199,Miscellaneous Expenses,06-Sep-2019,000008791534895,AMZNMKTPLACE AMAZON.CO,5999,Other hired and contracted services,61.58,0.00,61.58
Regeneration and Local Services,Development and Housing,030552,ATLAS Regional Network,Supplies and Services,384926,Miscellaneous Expenses,06-Sep-2019,000008791534975,DCC Theatres,9399,International visits,403.00,0.00,403.00
Adult and Health Services,Head of Adults,055310,Positive Journeys (Tudhoe),Supplies and Services,324117,Provisions E324,06-Sep-2019,000008791535147,ASDA SUPERSTORE 4987,5411,Catering costs - provisions,2.48,0.00,2.48
Regeneration and Local Services,Development and Housing,030771,Durham Advance Flexible Fund,Supplies and Services,344033,Telephones,06-Sep-2019,000008791535191,VESTA VODAFONE TOPUP,4814,Telephones general-all costs,10.00,0.00,10.00
Regeneration and Local Services,Corporate Property and Land,021235,Catering - Wharton Park,Supplies and Services,324117,Provisions E324,06-Sep-2019,000008791535205,JR HOLLAND FOODSERVICE,5499,Catering costs - provisions,36.42,0.00,36.42
Regeneration and Local Services,Corporate Property and Land,021235,Catering - Wharton Park,Supplies and Services,324117,Provisions E324,06-Sep-2019,000008791535207,JR HOLLAND FOODSERVICE,5499,Catering costs - provisions,20.02,0.00,20.02
Adult and Health Services,Head of Adults,055309,Peterlee Pathways,Supplies and Services,304259,Equipment and Materials,06-Sep-2019,000008791535219,CURRYS ONLINE,5732,Equipment-purchase and rental,299.00,0.00,299.00
Adult and Health Services,Head of Adults,055309,Peterlee Pathways,Supplies and Services,304259,Equipment and Materials,06-Sep-2019,000008791535227,CURRYS ONLINE,5732,Equipment-purchase and rental,299.00,0.00,299.00
Adult and Health Services,Head of Adults,055309,Peterlee Pathways,Supplies and Services,304259,Equipment and Materials,06-Sep-2019,000008791535231,CURRYS ONLINE,5732,Equipment-purchase and rental,299.00,0.00,299.00
Regeneration and Local Services,Culture Sport and Tourism,011265,Empire Theatre (Operations),Supplies and Services,340001,Postages E340,06-Sep-2019,000008791535361,POST OFFICE COUNTER,9402,Postages,122.00,0.00,122.00
Regeneration and Local Services,Development and Housing,030771,Durham Advance Flexible Fund,Supplies and Services,304259,Equipment and Materials,06-Sep-2019,000008791535365,DISCLOSURE & BARRING,9399,Equipment-purchase and rental,13.00,0.00,13.00
Regeneration and Local Services,Development and Housing,030771,Durham Advance Flexible Fund,Transport,235057,Public Transport,06-Sep-2019,000008791535369,GO NORTH EAST LIMITED,4131,Staff travelling,7.00,0.00,7.00
Regeneration and Local Services,Corporate Property and Land,030691,Catering - Durham Dales Centre,Supplies and Services,384999,Miscellaneous Expenses,06-Sep-2019,000008791535395,WWW.CAFFEVINCI.COM,5046,Other expenses,380.10,0.00,380.10
Children and Young Peoples Services,Head of Education and Skills,054640,Durham Learning Resources 054640,Supplies and Services,312011,Newspapers books and periodicals E312,07-Sep-2019,000008791532891,Amazon.co.uk MA9K70XQ4,5969,Books-school library,214.57,0.00,214.57
Children and Young Peoples Services,Head of Childrens Social Care,085342,9 Cedar Drive Aycliffe,Supplies and Services,324117,Provisions E324,07-Sep-2019,000008791532999,SAINSBURYS (2303),5411,Catering costs - provisions,5.45,0.00,5.45
Children and Young Peoples Services,Head of Childrens Social Care,085342,9 Cedar Drive Aycliffe,Supplies and Services,324117,Provisions E324,07-Sep-2019,000008791533005,TESCO STORES 2916,5411,Catering costs - provisions,17.46,0.00,17.46
Children and Young Peoples Services,Head of Childrens Social Care,085333,Coxhoe Satelite Home,Supplies and Services,324117,Provisions E324,07-Sep-2019,000008791533105,CO-OP GROUP 310016,5411,Catering costs - provisions,23.34,0.00,23.34
Children and Young Peoples Services,Head of Childrens Social Care,085511,Emergency Duty Team,Supplies and Services,352001,Conference Expenses,07-Sep-2019,000008791533355,TRAVELODGE,3615,Conferencesseminars fees etc,204.00,0.00,204.00
Children and Young Peoples Services,Head of Childrens Social Care,085352,Tow Law CU,Supplies and Services,324117,Provisions E324,07-Sep-2019,000008791533505,TESCO STORES 2371,5411,Catering costs - provisions,11.34,0.00,11.34
Children and Young Peoples Services,Head of Early Help Inclusion & Vulnerable Children.,085956,Lumley,Supplies and Services,324117,Provisions E324,07-Sep-2019,000008791533807,TESCO STORES 6329,5411,Catering costs - provisions,50.52,0.00,50.52
Regeneration and Local Services,Culture Sport and Tourism,054813,Gala Theatre - Technical,Supplies and Services,304259,Equipment and Materials,07-Sep-2019,000008791533855,Prime Video MA2GA2VY4,5735,Equipment-purchase and rental,4.99,0.00,4.99
Regeneration and Local Services,Culture Sport and Tourism,054813,Gala Theatre - Technical,Supplies and Services,312009,Newspapers books and periodicals E312,07-Sep-2019,000008791533861,THE POST OFFICE,5994,Newspapers books and periodicals,19.00,0.00,19.00
Regeneration and Local Services,Culture Sport and Tourism,054813,Gala Theatre - Technical,Supplies and Services,328041,Clothing uniforms and laundry E328,07-Sep-2019,000008791533863,WWW.ARGOS.CO.UK,5310,Clothing uniforms and laundry,75.95,0.00,75.95
Regeneration and Local Services,Culture Sport and Tourism,054813,Gala Theatre - Technical,Supplies and Services,328041,Clothing uniforms and laundry E328,07-Sep-2019,000008791533865,caronan,5621,Clothing uniforms and laundry,24.40,0.00,24.40
Regeneration and Local Services,Culture Sport and Tourism,054813,Gala Theatre - Technical,Supplies and Services,304259,Equipment and Materials,07-Sep-2019,000008791533871,HMV RETAIL LTD,5735,Equipment-purchase and rental,11.99,0.00,11.99
Children and Young Peoples Services,Head of Early Help Inclusion & Vulnerable Children.,085962,Aycliffe Secure - Durham,Supplies and Services,324117,Provisions E324,07-Sep-2019,000008791534103,TESCO STORES 2916,5411,Catering costs - provisions,24.80,0.00,24.80
Children and Young Peoples Services,Head of Childrens Social Care,085333,Coxhoe Satelite Home,Supplies and Services,328041,Clothing uniforms and laundry E328,07-Sep-2019,000008791534435,ARGOS,5310,Clothing uniforms and laundry,19.99,0.00,19.99
Children and Young Peoples Services,Head of Childrens Social Care,085333,Coxhoe Satelite Home,Supplies and Services,328041,Clothing uniforms and laundry E328,07-Sep-2019,000008791534439,POUNDLAND LTD 1717,5310,Clothing uniforms and laundry,4.00,0.00,4.00
Children and Young Peoples Services,Head of Childrens Social Care,085333,Coxhoe Satelite Home,Supplies and Services,328041,Clothing uniforms and laundry E328,07-Sep-2019,000008791534445,POUNDLAND LTD 1717,5310,Clothing uniforms and laundry,9.00,0.00,9.00
Resources BK0010,Resources Management CK0450,069000,Resources Management 069000,Supplies and Services,324117,Provisions E324,07-Sep-2019,000008791534453,CO-OP GROUP 010830,5411,Catering costs - provisions,8.70,0.00,8.70
Regeneration and Local Services,Development and Housing,031500,Housing Solutions - Core Team,Supplies and Services,352001,Conference Expenses,07-Sep-2019,000008791535047,TRAVELODGE,3615,Conferencesseminars fees etc,307.50,0.00,307.50
Children and Young Peoples Services,Head of Childrens Social Care,085332,Middlestone Moor CU,Supplies and Services,304259,Equipment and Materials,07-Sep-2019,000008791535337,CAR PARK,9399,Equipment-purchase and rental,6.00,0.00,6.00
Children and Young Peoples Services,Head of Childrens Social Care,085332,Middlestone Moor CU,Supplies and Services,304259,Equipment and Materials,07-Sep-2019,000008791535343,CAR PARK,9399,Equipment-purchase and rental,6.00,0.00,6.00
Children and Young Peoples Services,Head of Childrens Social Care,085332,Middlestone Moor CU,Supplies and Services,324117,Provisions E324,07-Sep-2019,000008791535345,TESCO STORES 2971,5411,Catering costs - provisions,81.02,0.00,81.02
Regeneration and Local Services,Corporate Property and Land,021234,Catering - Locomotion,Supplies and Services,324117,Provisions E324,08-Sep-2019,000006585162042,BATLEYS PERTH,5300,Catering costs - provisions,125.22,20.87,104.35
Regeneration and Local Services,Corporate Property and Land,021234,Catering - Locomotion,Supplies and Services,324117,Provisions E324,08-Sep-2019,000006585162042 - 1,BATLEYS PERTH,5300,Catering costs - provisions,63.38,,63.38
Children and Young Peoples Services,Head of Education and Skills,071801,Selby Cottage Childcare Centre,Supplies and Services,304999,Equipment and Materials,08-Sep-2019,000008791532875,Amazon Prime MA7761MA4,5968,Misc equipment tools and materials,7.99,0.00,7.99
Children and Young Peoples Services,Head of Early Help Inclusion & Vulnerable Children.,079599,Psychological-HQ,Supplies and Services,384999,Miscellaneous Expenses,08-Sep-2019,000008791533341,Amazon.co.uk MA80L8MM4,5969,Other expenses,14.59,0.00,14.59
Children and Young Peoples Services,Head of Early Help Inclusion & Vulnerable Children.,085954,Walworth,Supplies and Services,324117,Provisions E324,08-Sep-2019,000008791533811,TESCO STORES 6329,5411,Catering costs - provisions,74.27,0.00,74.27
Regeneration and Local Services,Culture Sport and Tourism,054813,Gala Theatre - Technical,Supplies and Services,304259,Equipment and Materials,08-Sep-2019,000008791533875,Prime Video MA0NR2MH4,5735,Equipment-purchase and rental,2.49,0.00,2.49
Regeneration and Local Services,Culture Sport and Tourism,054813,Gala Theatre - Technical,Supplies and Services,304259,Equipment and Materials,08-Sep-2019,000008791533879,Prime Video MA1Y42MC4,5735,Equipment-purchase and rental,2.49,0.00,2.49
Regeneration and Local Services,Culture Sport and Tourism,054813,Gala Theatre - Technical,Supplies and Services,304259,Equipment and Materials,08-Sep-2019,000008791533891,Prime Video MA6719M04,5735,Equipment-purchase and rental,3.49,0.00,3.49
Regeneration and Local Services,Culture Sport and Tourism,054813,Gala Theatre - Technical,Supplies and Services,304259,Equipment and Materials,08-Sep-2019,000008791533897,Prime Video MA9Y52M44,5735,Equipment-purchase and rental,7.99,0.00,7.99
Children and Young Peoples Services,Head of Early Help Inclusion & Vulnerable Children.,085962,Aycliffe Secure - Durham,Supplies and Services,304259,Equipment and Materials,08-Sep-2019,000008791534107,WILKO RETAIL LIMIT,5722,Equipment-purchase and rental,61.80,0.00,61.80
Children and Young Peoples Services,Head of Childrens Social Care,085333,Coxhoe Satelite Home,Supplies and Services,304999,Equipment and Materials,08-Sep-2019,000008791534447,HOME BARGAINS,5251,Misc equipment tools and materials,5.37,0.00,5.37
Children and Young Peoples Services,Head of Childrens Social Care,085342,9 Cedar Drive Aycliffe,Supplies and Services,304259,Equipment and Materials,08-Sep-2019,000008791534701,GO OUTDOORS,5941,Equipment-purchase and rental,12.00,0.00,12.00
Children and Young Peoples Services,Head of Early Help Inclusion & Vulnerable Children.,079581,Emotional Wellbeing Team,Supplies and Services,304403,Equipment and Materials,08-Sep-2019,000008791534787,AMZNMktplace,5999,Other consumables,52.66,8.79,43.87
Adult and Health Services,Head of Adults,055309,Peterlee Pathways,Supplies and Services,384999,Miscellaneous Expenses,08-Sep-2019,000008791535235,Amazon.co.uk MA4JD6XH4,5969,Other expenses,17.99,3.00,14.99
Children and Young Peoples Services,Head of Childrens Social Care,085332,Middlestone Moor CU,Supplies and Services,324117,Provisions E324,08-Sep-2019,000008791535349,SAINSBURYS 2199,5411,Catering costs - provisions,348.82,0.00,348.82
Children and Young Peoples Services,Head of Childrens Social Care,085332,Middlestone Moor CU,Supplies and Services,328041,Clothing uniforms and laundry E328,08-Sep-2019,000008791535351,TK MAXX,5331,Clothing uniforms and laundry,19.05,0.00,19.05
Children and Young Peoples Services,Head of Childrens Social Care,085334,West Rainton Satelite Home,Supplies and Services,328041,Clothing uniforms and laundry E328,08-Sep-2019,000008799761411,ARGOS LTD,5310,Clothing uniforms and laundry,44.98,0.00,44.98
Children and Young Peoples Services,Head of Childrens Social Care,085333,Coxhoe Satelite Home,Supplies and Services,308011,Furniture,08-Sep-2019,000008799762407,IKEA LTD 143 GATESHEAD,5712,Furniture repair and replacement,36.00,0.00,36.00
Regeneration and Local Services,Culture Sport and Tourism,054812,Gala Theatre - Catering etc,Supplies and Services,324117,Provisions E324,09-Sep-2019,000006585161128,BATLEYS PERTH,5300,Catering costs - provisions,42.54,7.09,35.45
Regeneration and Local Services,Culture Sport and Tourism,054812,Gala Theatre - Catering etc,Supplies and Services,324117,Provisions E324,09-Sep-2019,000006585161128 - 1,BATLEYS PERTH,5300,Catering costs - provisions,93.17,,93.17
Regeneration and Local Services,Corporate Property and Land,030691,Catering - Durham Dales Centre,Supplies and Services,324117,Provisions E324,09-Sep-2019,000006585162638,BATLEYS PERTH,5300,Catering costs - provisions,29.40,4.90,24.50
Regeneration and Local Services,Corporate Property and Land,030691,Catering - Durham Dales Centre,Supplies and Services,324117,Provisions E324,09-Sep-2019,000006585162638 - 1,BATLEYS PERTH,5300,Catering costs - provisions,149.67,,149.67
Regeneration and Local Services,Corporate Property and Land,030691,Catering - Durham Dales Centre,Supplies and Services,324117,Provisions E324,09-Sep-2019,000006585162656,BATLEYS PERTH,5300,Catering costs - provisions,9.65,1.61,8.04
Regeneration and Local Services,Corporate Property and Land,021235,Catering - Wharton Park,Supplies and Services,324117,Provisions E324,09-Sep-2019,000006585163368,BATLEYS PERTH,5300,Catering costs - provisions,146.88,24.48,122.40
Regeneration and Local Services,Corporate Property and Land,021235,Catering - Wharton Park,Supplies and Services,324117,Provisions E324,09-Sep-2019,000006585163398,BATLEYS PERTH,5300,Catering costs - provisions,9.38,0.00,9.38
Regeneration and Local Services,Culture Sport and Tourism,054813,Gala Theatre - Technical,Supplies and Services,328041,Clothing uniforms and laundry E328,09-Sep-2019,000008791533903,caronan,5621,Clothing uniforms and laundry,0.67,0.00,0.67
Children and Young Peoples Services,Head of Education and Skills,071801,Selby Cottage Childcare Centre,Supplies and Services,324117,Provisions E324,09-Sep-2019,000008799760703,TESCO STORES 2278,5411,Catering costs - provisions,17.65,0.00,17.65
Children and Young Peoples Services,Head of Childrens Social Care,085100,SGO and CAO costs,Supplies and Services,384199,Miscellaneous Expenses,09-Sep-2019,000008799760741,GEN REGISTER OFFICE,9399,Other hired and contracted services,14.00,0.00,14.00
Children and Young Peoples Services,Head of Childrens Social Care,085100,SGO and CAO costs,Supplies and Services,384199,Miscellaneous Expenses,09-Sep-2019,000008799760747,GEN REGISTER OFFICE,9399,Other hired and contracted services,42.00,0.00,42.00
Children and Young Peoples Services,Head of Education and Skills,075021,Youth Employment Initiative,Supplies and Services,384999,Miscellaneous Expenses,09-Sep-2019,000008799760761,SPORTSDIRECT.COM,5941,Other expenses,106.98,0.00,106.98
Children and Young Peoples Services,Head of Education and Skills,075021,Youth Employment Initiative,Supplies and Services,384199,Miscellaneous Expenses,09-Sep-2019,000008799760769,WWW.DURHAM.GOV.UK,9399,Other hired and contracted services,11.00,0.00,11.00
Regeneration and Local Services,Environmental Services,031233,North Pennines - Pennine Peatlife,Transport,235057,Public Transport,09-Sep-2019,000008799760791,EASYJET,3245,Staff travelling,111.82,0.00,111.82
Children and Young Peoples Services,Head of Childrens Social Care,085342,9 Cedar Drive Aycliffe,Supplies and Services,324117,Provisions E324,09-Sep-2019,000008799760817,TESCO STORES 2916,5411,Catering costs - provisions,21.13,0.00,21.13
Children and Young Peoples Services,Head of Childrens Social Care,085342,9 Cedar Drive Aycliffe,Supplies and Services,328041,Clothing uniforms and laundry E328,09-Sep-2019,000008799760823,ARGOS LTD,5310,Clothing uniforms and laundry,34.99,0.00,34.99
Children and Young Peoples Services,Head of Childrens Social Care,085342,9 Cedar Drive Aycliffe,Supplies and Services,328041,Clothing uniforms and laundry E328,09-Sep-2019,000008799760831,ARGOS LTD,5310,Clothing uniforms and laundry,10.00,0.00,10.00
Regeneration and Local Services,Culture Sport and Tourism,011263,Louisa Centre 011263,Supplies and Services,324117,Provisions E324,09-Sep-2019,000008799760863,JR HOLLAND FOODSERVICE,5499,Catering costs - provisions,54.46,0.00,54.46
Regeneration and Local Services,Environmental Services,010367,C&G - South Grounds Maintenance,Supplies and Services,304221,Equipment and Materials,09-Sep-2019,000008799760977,SCREWFIX PETERLEE,5211,Direct materials,39.99,6.67,33.32
Children and Young Peoples Services,Head of Early Help Inclusion & Vulnerable Children.,088105,BA/BC/Crook 0-19 Community Family Hub,Supplies and Services,304259,Equipment and Materials,09-Sep-2019,000008799761059,ARGOS RETAIL GROUP,5310,Equipment-purchase and rental,16.99,0.00,16.99
Regeneration and Local Services,Development and Housing,030544,Rural Employability - Client Engagement,Supplies and Services,324117,Provisions E324,09-Sep-2019,000008799761067,NEWCASTLE COLLEGE-PARS,8220,Catering costs - provisions,7.65,0.00,7.65
Regeneration and Local Services,Corporate Property and Land,021242,Catering - County Hall,Supplies and Services,324117,Provisions E324,09-Sep-2019,000008799761077,JR HOLLAND FOODSERVICE,5499,Catering costs - provisions,6.90,0.00,6.90
Regeneration and Local Services,Corporate Property and Land,021242,Catering - County Hall,Supplies and Services,324117,Provisions E324,09-Sep-2019,000008799761083,JR HOLLAND FOODSERVICE,5499,Catering costs - provisions,97.24,0.00,97.24
Regeneration and Local Services,Culture Sport and Tourism,054812,Gala Theatre - Catering etc,Supplies and Services,324117,Provisions E324,09-Sep-2019,000008799761117,JR HOLLAND FOODSERVICE,5499,Catering costs - provisions,23.29,0.00,23.29
Regeneration and Local Services,Development and Housing,031576,B& B - Temp Accom,Supplies and Services,352001,Conference Expenses,09-Sep-2019,000008799761129,TRAVELODGE,3615,Conferencesseminars fees etc,105.50,0.00,105.50
Children and Young Peoples Services,Head of Childrens Social Care,085511,Emergency Duty Team,Supplies and Services,352001,Conference Expenses,09-Sep-2019,000008799761223,HI NEWCASTLE WASHI,7011,Conferencesseminars fees etc,317.00,0.00,317.00
Children and Young Peoples Services,Head of Childrens Social Care,085511,Emergency Duty Team,Supplies and Services,352001,Conference Expenses,09-Sep-2019,000008799761231,HI NEWCASTLE WASHI,7011,Conferencesseminars fees etc,104.00,0.00,104.00
Children and Young Peoples Services,Head of Childrens Social Care,085361,LAC & Permanence Team 1,Supplies and Services,304403,Equipment and Materials,09-Sep-2019,000008799761251,WWW.DURHAM.GOV.UK,9399,Other consumables,11.00,0.00,11.00
Regeneration and Local Services,Environmental Services,010900,Fleet - Meadowfield Fleet,Transport,215013,Running Costs of Vehicles,09-Sep-2019,000008799761339,DVLA VEHICLE TAX,9399,Vehicle Excise Duty (VED),167.50,0.00,167.50
Regeneration and Local Services,Environmental Services,010561,Fleet - Morrison Busty Fleet,Transport,215013,Running Costs of Vehicles,09-Sep-2019,000008799761345,DVLA VEHICLE TAX,9399,Vehicle Excise Duty (VED),165.00,0.00,165.00
Regeneration and Local Services,Environmental Services,010561,Fleet - Morrison Busty Fleet,Transport,215013,Running Costs of Vehicles,09-Sep-2019,000008799761353,DVLA VEHICLE TAX,9399,Vehicle Excise Duty (VED),167.50,0.00,167.50
Children and Young Peoples Services,Head of Education and Skills,071732,Dean Bank Childcare,Supplies and Services,324117,Provisions E324,09-Sep-2019,000008799761399,ASDA GROCERIES ONLINE,5411,Catering costs - provisions,40.96,0.00,40.96
Children and Young Peoples Services,Head of Education and Skills,071732,Dean Bank Childcare,Supplies and Services,324117,Provisions E324,09-Sep-2019,000008799761405,ASDA GROCERIES ONLINE,5411,Catering costs - provisions,-2.02,0.00,-2.02
Children and Young Peoples Services,Head of Childrens Social Care,085334,West Rainton Satelite Home,Supplies and Services,304403,Equipment and Materials,09-Sep-2019,000008799761415,TIMPSON LTD,7251,Other consumables,15.50,0.00,15.50
Children and Young Peoples Services,Head of Childrens Social Care,085334,West Rainton Satelite Home,Supplies and Services,328041,Clothing uniforms and laundry E328,09-Sep-2019,000008799761419,ARGOS LTD,5310,Clothing uniforms and laundry,5.00,0.00,5.00
Regeneration and Local Services,Business Durham CL0850,030674,Business Services General,Supplies and Services,304999,Equipment and Materials,09-Sep-2019,000008799761559,MAILCHIMP MONTHLY,5968,Misc equipment tools and materials,65.37,0.00,65.37
Regeneration and Local Services,Business Durham CL0850,030674,Business Services General,Supplies and Services,348037,Subsistence E348,09-Sep-2019,000008799761565,FINBARR`S,5812,Subsistence,48.73,0.00,48.73
Regeneration and Local Services,Business Durham CL0850,030674,Business Services General,Supplies and Services,342033,Computers and Communications,09-Sep-2019,000008799761573,SLICKPLAN.COM,7372,Computer hardware,8.16,0.00,8.16
Regeneration and Local Services,Development and Housing,030771,Durham Advance Flexible Fund,Supplies and Services,324117,Provisions E324,09-Sep-2019,000008799761587,TESCO STORES 2371,5411,Catering costs - provisions,100.00,0.00,100.00
Regeneration and Local Services,Culture Sport and Tourism,054813,Gala Theatre - Technical,Supplies and Services,312009,Newspapers books and periodicals E312,09-Sep-2019,000008799761603,THE POST OFFICE,5994,Newspapers books and periodicals,21.98,0.00,21.98
Regeneration and Local Services,Environmental Services,011060,C&G - Hardwick Park Catering,Supplies and Services,324117,Provisions E324,09-Sep-2019,000008799761617,JR HOLLAND FOODSERVICE,5499,Catering costs - provisions,21.51,0.00,21.51
Regeneration and Local Services,Environmental Services,011060,C&G - Hardwick Park Catering,Supplies and Services,324117,Provisions E324,09-Sep-2019,000008799761623,JR HOLLAND FOODSERVICE,5499,Catering costs - provisions,3.68,0.00,3.68
Regeneration and Local Services,Environmental Services,011060,C&G - Hardwick Park Catering,Supplies and Services,324117,Provisions E324,09-Sep-2019,000008799761631,JR HOLLAND FOODSERVICE,5499,Catering costs - provisions,86.06,0.00,86.06
Regeneration and Local Services,Corporate Property and Land,021234,Catering - Locomotion,Supplies and Services,324117,Provisions E324,09-Sep-2019,000008799761695,JR HOLLAND FOODSERVICE,5499,Catering costs - provisions,82.86,0.00,82.86
Regeneration and Local Services,Corporate Property and Land,021234,Catering - Locomotion,Supplies and Services,324117,Provisions E324,09-Sep-2019,000008799761705,JR HOLLAND FOODSERVICE,5499,Catering costs - provisions,73.21,0.00,73.21
Regeneration and Local Services,Corporate Property and Land,021234,Catering - Locomotion,Supplies and Services,324117,Provisions E324,09-Sep-2019,000008799761713,JR HOLLAND FOODSERVICE,5499,Catering costs - provisions,12.75,0.00,12.75
Regeneration and Local Services,Corporate Property and Land,021234,Catering - Locomotion,Supplies and Services,324117,Provisions E324,09-Sep-2019,000008799761723,JR HOLLAND FOODSERVICE,5499,Catering costs - provisions,91.47,0.00,91.47
Regeneration and Local Services,Corporate Property and Land,021234,Catering - Locomotion,Supplies and Services,324117,Provisions E324,09-Sep-2019,000008799761731,JR HOLLAND FOODSERVICE,5499,Catering costs - provisions,25.56,0.00,25.56
Regeneration and Local Services,Corporate Property and Land,021234,Catering - Locomotion,Supplies and Services,324117,Provisions E324,09-Sep-2019,000008799761737,JR HOLLAND FOODSERVICE,5499,Catering costs - provisions,9.20,0.00,9.20
Regeneration and Local Services,Corporate Property and Land,021234,Catering - Locomotion,Supplies and Services,324117,Provisions E324,09-Sep-2019,000008799761749,JR HOLLAND FOODSERVICE,5499,Catering costs - provisions,17.20,0.00,17.20
Regeneration and Local Services,Corporate Property and Land,021234,Catering - Locomotion,Supplies and Services,324117,Provisions E324,09-Sep-2019,000008799761755,JR HOLLAND FOODSERVICE,5499,Catering costs - provisions,146.17,0.00,146.17
Regeneration and Local Services,Corporate Property and Land,021234,Catering - Locomotion,Supplies and Services,324117,Provisions E324,09-Sep-2019,000008799761759,JR HOLLAND FOODSERVICE,5499,Catering costs - provisions,21.00,0.00,21.00
Regeneration and Local Services,Corporate Property and Land,021234,Catering - Locomotion,Supplies and Services,324117,Provisions E324,09-Sep-2019,000008799761769,JR HOLLAND FOODSERVICE,5499,Catering costs - provisions,16.68,0.00,16.68
Children and Young Peoples Services,Head of Childrens Social Care,085352,Tow Law CU,Supplies and Services,304403,Equipment and Materials,09-Sep-2019,000008799761823,AMZNMktplace,5999,Other consumables,10.19,0.00,10.19
Children and Young Peoples Services,Head of Childrens Social Care,085333,Coxhoe Satelite Home,Supplies and Services,324117,Provisions E324,09-Sep-2019,000008799762013,TESCO STORES 5457,5411,Catering costs - provisions,8.45,0.00,8.45
Children and Young Peoples Services,Head of Childrens Social Care,085333,Coxhoe Satelite Home,Supplies and Services,324117,Provisions E324,09-Sep-2019,000008799762033,ASDA SUPERSTORE 4987,5411,Catering costs - provisions,85.32,0.00,85.32
Children and Young Peoples Services,Head of Childrens Social Care,085333,Coxhoe Satelite Home,Supplies and Services,324117,Provisions E324,09-Sep-2019,000008799762047,LIDL GB SPENNYMOOR,5411,Catering costs - provisions,8.69,0.00,8.69
Adult and Health Services,Head of Adults,055301,Stanley Pathways,Supplies and Services,324117,Provisions E324,09-Sep-2019,000008799762063,SAINSBURYS SACAT 0776,5411,Catering costs - provisions,12.70,0.00,12.70
Regeneration and Local Services,Corporate Property and Land,030691,Catering - Durham Dales Centre,Supplies and Services,324117,Provisions E324,09-Sep-2019,000008799762145,JR HOLLAND FOODSERVICE,5499,Catering costs - provisions,3.70,0.00,3.70
Regeneration and Local Services,Corporate Property and Land,030691,Catering - Durham Dales Centre,Supplies and Services,324117,Provisions E324,09-Sep-2019,000008799762153,JR HOLLAND FOODSERVICE,5499,Catering costs - provisions,88.26,0.00,88.26
Regeneration and Local Services,Corporate Property and Land,030691,Catering - Durham Dales Centre,Supplies and Services,324117,Provisions E324,09-Sep-2019,000008799762161,JR HOLLAND FOODSERVICE,5499,Catering costs - provisions,15.48,0.00,15.48
Adult and Health Services,Head of Adults,055643,Hawthorn House LD Respite Unit,Supplies and Services,324117,Provisions E324,09-Sep-2019,000008799762215,JR HOLLAND FOODSERVICE,5499,Catering costs - provisions,20.28,0.00,20.28
Adult and Health Services,Head of Adults,055643,Hawthorn House LD Respite Unit,Supplies and Services,324117,Provisions E324,09-Sep-2019,000008799762223,JR HOLLAND FOODSERVICE,5499,Catering costs - provisions,28.01,0.00,28.01
Resources BK0010,Digital and Customer Services,065335,School Services - Implementations,Supplies and Services,304639,Equipment and Materials,09-Sep-2019,000008799762281,REPLACEBASE,5732,Technicians-supplies,32.10,5.35,26.75
Children and Young Peoples Services,Head of Childrens Social Care,085342,9 Cedar Drive Aycliffe,Supplies and Services,324117,Provisions E324,09-Sep-2019,000008799762291,TESCO STORES 2916,5411,Catering costs - provisions,17.71,0.00,17.71
Resources BK0010,Corporate Finance & Commercial Services,069800,Corporate Procurement 069800,Employees,040149,Recruitment Instruction and Training,09-Sep-2019,000008799762335,WWW.CIPS.ORG,8699,Training-all costs,20.00,0.00,20.00
Regeneration and Local Services,Development and Housing,031500,Housing Solutions - Core Team,Supplies and Services,352001,Conference Expenses,09-Sep-2019,000008799762343,GRAINGER HOTEL,7011,Conferencesseminars fees etc,100.00,0.00,100.00
Transformation and Partnerships,Business Support,052986,CYPS - Locality and Operational Support,Supplies and Services,328041,Clothing uniforms and laundry E328,09-Sep-2019,000008799762357,WWW.ARGOS.CO.UK,5310,Clothing uniforms and laundry,120.92,0.00,120.92
Regeneration and Local Services,Corporate Property and Land,021324,Catering - Meadowfield,Supplies and Services,324117,Provisions E324,09-Sep-2019,000008799762379,JR HOLLAND FOODSERVICE,5499,Catering costs - provisions,51.11,0.00,51.11
Children and Young Peoples Services,Head of Education and Skills,071802,Louisa Cent Nursery,Supplies and Services,324117,Provisions E324,09-Sep-2019,000008799762537,ASDA SUPERSTORE,5411,Catering costs - provisions,37.62,0.00,37.62
Children and Young Peoples Services,Head of Education and Skills,071802,Louisa Cent Nursery,Supplies and Services,324117,Provisions E324,09-Sep-2019,000008799762543,ALDI STORES,5411,Catering costs - provisions,91.81,35.04,56.77
Children and Young Peoples Services,Head of Childrens Social Care,085332,Middlestone Moor CU,Supplies and Services,324117,Provisions E324,09-Sep-2019,000008799762605,ASDA SUPERSTORE 4987,5411,Catering costs - provisions,28.23,0.00,28.23
Children and Young Peoples Services,Head of Childrens Social Care,085332,Middlestone Moor CU,Premises,115125,Repairs to Grounds,09-Sep-2019,000008799762611,HOMEBASE LTD 822,5200,General maintenance,14.25,0.00,14.25
Children and Young Peoples Services,Head of Childrens Social Care,085332,Middlestone Moor CU,Supplies and Services,308011,Furniture,09-Sep-2019,000008799762617,ARGOS BISHOP AUCKL,5310,Furniture repair and replacement,34.99,0.00,34.99
Children and Young Peoples Services,Head of Early Help Inclusion & Vulnerable Children.,085962,Aycliffe Secure - Durham,Supplies and Services,304403,Equipment and Materials,09-Sep-2019,000008799762693,AMZNMktplace,5999,Other consumables,89.13,0.00,89.13
Children and Young Peoples Services,Head of Early Help Inclusion & Vulnerable Children.,085962,Aycliffe Secure - Durham,Supplies and Services,348037,Subsistence E348,09-Sep-2019,000008799762701,WWW.JUST-EAT.CO.UK,5812,Subsistence,51.70,0.00,51.70
Adult and Health Services,Head of Adults,055310,Positive Journeys (Tudhoe),Supplies and Services,324117,Provisions E324,09-Sep-2019,000008799762727,EARLY NOON & NIGHT,5411,Catering costs - provisions,1.00,0.00,1.00
Regeneration and Local Services,Corporate Property and Land,021235,Catering - Wharton Park,Supplies and Services,324117,Provisions E324,09-Sep-2019,000008799762743,JR HOLLAND FOODSERVICE,5499,Catering costs - provisions,9.37,0.00,9.37
Adult and Health Services,Head of Adults,055309,Peterlee Pathways,Supplies and Services,328041,Clothing uniforms and laundry E328,09-Sep-2019,000008799762759,POUNDSTRETCHER 396,5331,Clothing uniforms and laundry,4.98,0.00,4.98
Children and Young Peoples Services,Head of Education and Skills,076001,Music Service,Supplies and Services,384999,Miscellaneous Expenses,09-Sep-2019,000008799762767,Amazon.co.uk MA0WU75E4,5969,Other expenses,74.00,24.68,49.32
Children and Young Peoples Services,Head of Early Help Inclusion & Vulnerable Children.,085810,CDYJS - Interventions Team,Supplies and Services,384999,Miscellaneous Expenses,09-Sep-2019,000008799762883,Amazon.co.uk MA88B1PV4,5969,Other expenses,19.99,3.33,16.66
Regeneration and Local Services,Development and Housing,031500,Housing Solutions - Core Team,Employees,040149,Recruitment Instruction and Training,09-Sep-2019,000008804396383,PREMIER INN,3811,Training-all costs,340.00,0.00,340.00
Regeneration and Local Services,Development and Housing,030554,International Relations 030554,Transport,235057,Public Transport,09-Sep-2019,000008804396791,AIR FRANCE,3007,Staff travelling,112.07,0.00,112.07
Resources BK0010,Legal & Democratic Services,067910,Democratic Representation 067910,Supplies and Services,384926,Miscellaneous Expenses,09-Sep-2019,000008804397695,AIR FRANCE,3007,International visits,304.49,0.00,304.49
Resources BK0010,Legal & Democratic Services,067910,Democratic Representation 067910,Supplies and Services,384926,Miscellaneous Expenses,09-Sep-2019,000008804397705,AIR FRANCE,3007,International visits,304.49,0.00,304.49
Regeneration and Local Services,Development and Housing,030554,International Relations 030554,Supplies and Services,384926,Miscellaneous Expenses,09-Sep-2019,000008804397713,AIR FRANCE,3007,International visits,304.49,50.75,253.74
Regeneration and Local Services,Development and Housing,030554,International Relations 030554,Supplies and Services,384926,Miscellaneous Expenses,09-Sep-2019,000008804397721,AIR FRANCE,3007,International visits,304.49,0.00,304.49
Regeneration and Local Services,Development and Housing,030554,International Relations 030554,Supplies and Services,384926,Miscellaneous Expenses,09-Sep-2019,000008804397725,AIR FRANCE,3007,International visits,304.49,0.00,304.49
Regeneration and Local Services,Development and Housing,030554,International Relations 030554,Supplies and Services,384926,Miscellaneous Expenses,09-Sep-2019,000008804397737,AIR FRANCE,3007,International visits,304.49,0.00,304.49
Regeneration and Local Services,Development and Housing,030554,International Relations 030554,Supplies and Services,384926,Miscellaneous Expenses,09-Sep-2019,000008804397747,AIR FRANCE,3007,International visits,304.49,0.00,304.49
Regeneration and Local Services,Development and Housing,030554,International Relations 030554,Supplies and Services,384926,Miscellaneous Expenses,09-Sep-2019,000008804397757,AIR FRANCE,3007,International visits,304.49,0.00,304.49
Regeneration and Local Services,Corporate Property and Land,021242,Catering - County Hall,Supplies and Services,324117,Provisions E324,10-Sep-2019,000006585161018,BATLEYS PERTH,5300,Catering costs - provisions,158.16,26.36,131.80
Regeneration and Local Services,Corporate Property and Land,021242,Catering - County Hall,Supplies and Services,324117,Provisions E324,10-Sep-2019,000006585161018 - 1,BATLEYS PERTH,5300,Catering costs - provisions,225.34,,225.34
Regeneration and Local Services,Environmental Services,011060,C&G - Hardwick Park Catering,Supplies and Services,324117,Provisions E324,10-Sep-2019,000006585161932,BATLEYS PERTH,5300,Catering costs - provisions,14.22,2.37,11.85
Regeneration and Local Services,Environmental Services,011060,C&G - Hardwick Park Catering,Supplies and Services,324117,Provisions E324,10-Sep-2019,000006585161932 - 1,BATLEYS PERTH,5300,Catering costs - provisions,54.28,,54.28
Regeneration and Local Services,Corporate Property and Land,021234,Catering - Locomotion,Supplies and Services,324117,Provisions E324,10-Sep-2019,000006585162054,BATLEYS PERTH,5300,Catering costs - provisions,-11.27,-1.88,-9.39
Regeneration and Local Services,Corporate Property and Land,021324,Catering - Meadowfield,Supplies and Services,324117,Provisions E324,10-Sep-2019,000006585162936,BATLEYS PERTH,5300,Catering costs - provisions,98.10,16.35,81.75
Regeneration and Local Services,Corporate Property and Land,021324,Catering - Meadowfield,Supplies and Services,324117,Provisions E324,10-Sep-2019,000006585162936 - 1,BATLEYS PERTH,5300,Catering costs - provisions,103.98,,103.98
Regeneration and Local Services,Business Durham CL0850,030674,Business Services General,Supplies and Services,304999,Equipment and Materials,10-Sep-2019,000008799761579,MAILCHIMP MONTHLY,5968,Misc equipment tools and materials,1.80,0.00,1.80
Regeneration and Local Services,Business Durham CL0850,030674,Business Services General,Supplies and Services,342033,Computers and Communications,10-Sep-2019,000008799761583,SLICKPLAN.COM,7372,Computer hardware,0.22,0.00,0.22
Children and Young Peoples Services,Head of Education and Skills,071801,Selby Cottage Childcare Centre,Supplies and Services,328041,Clothing uniforms and laundry E328,10-Sep-2019,000008804395453,THE RANGE,5311,Clothing uniforms and laundry,72.35,0.00,72.35
Children and Young Peoples Services,Head of Education and Skills,071801,Selby Cottage Childcare Centre,Supplies and Services,324117,Provisions E324,10-Sep-2019,000008804395463,ASDA GROCERIES ONLINE,5411,Catering costs - provisions,41.47,0.00,41.47
Resources BK0010,Digital and Customer Services,065481,Technical Services 065481,Supplies and Services,304335,Equipment and Materials,10-Sep-2019,000008804395477,FS.COM LIMITED,5045,ICT supplies etc,150.00,0.00,150.00
Regeneration and Local Services,Environmental Services,010301,C&G - North Grounds Maintenance,Supplies and Services,332047,Printing Stationery and Gen Off Exps,10-Sep-2019,000008804395485,WILKO.COM,5399,Stationery,52.00,8.67,43.33
Transformation and Partnerships,Business Support,010832,Business Support 010832,Supplies and Services,304335,Equipment and Materials,10-Sep-2019,000008804395491,HEAMAR COMPANY LTD,5072,ICT supplies etc,232.80,38.80,194.00
Resources BK0010,Digital and Customer Services,065321,Operations - Digital & Customer Services,Supplies and Services,304259,Equipment and Materials,10-Sep-2019,000008804395499,DISCLOSURE AND BARRING,9399,Equipment-purchase and rental,25.00,0.00,25.00
Transformation and Partnerships,Business Support,065461,Business Support 065461,Supplies and Services,304335,Equipment and Materials,10-Sep-2019,000008804395503,SCREWFIX DIRECT,5200,ICT supplies etc,20.99,3.50,17.49
Resources BK0010,Legal & Democratic Services,069326,Practice Management,Employees,040149,Recruitment Instruction and Training,10-Sep-2019,000008804395537,EB THE ELEVENTH ANNUA,7399,Training-all costs,264.00,44.00,220.00
Children and Young Peoples Services,Head of Education and Skills,075021,Youth Employment Initiative,Supplies and Services,384999,Miscellaneous Expenses,10-Sep-2019,000008804395561,AMZNMktplace,5999,Other expenses,26.10,0.00,26.10
Resources BK0010,Digital and Customer Services,065481,Technical Services 065481,Supplies and Services,372009,Subscriptions E372,10-Sep-2019,000008804395787,NOMINET UK,7392,Subscriptions 372009,36.00,0.00,36.00
Children and Young Peoples Services,Head of Childrens Social Care,085511,Emergency Duty Team,Supplies and Services,352001,Conference Expenses,10-Sep-2019,000008804395827,HI NEWCASTLE WASHI,7011,Conferencesseminars fees etc,105.00,0.00,105.00
Children and Young Peoples Services,Head of Childrens Social Care,085333,Coxhoe Satelite Home,Supplies and Services,324117,Provisions E324,10-Sep-2019,000008804395857,CO-OP GROUP 310016,5411,Catering costs - provisions,8.45,0.00,8.45
Regeneration and Local Services,Environmental Services,010864,Fleet - Hackworth Road Fleet,Transport,215013,Running Costs of Vehicles,10-Sep-2019,000008804395897,DVLA VEHICLE TAX,9399,Vehicle Excise Duty (VED),262.50,0.00,262.50
Regeneration and Local Services,Environmental Services,010900,Fleet - Meadowfield Fleet,Transport,215013,Running Costs of Vehicles,10-Sep-2019,000008804395907,DVLA VEHICLE TAX,9399,Vehicle Excise Duty (VED),262.50,0.00,262.50
Regeneration and Local Services,Environmental Services,010864,Fleet - Hackworth Road Fleet,Transport,215013,Running Costs of Vehicles,10-Sep-2019,000008804395915,DVLA VEHICLE TAX,9399,Vehicle Excise Duty (VED),167.50,0.00,167.50
Regeneration and Local Services,Environmental Services,010900,Fleet - Meadowfield Fleet,Transport,215013,Running Costs of Vehicles,10-Sep-2019,000008804395921,DVLA VEHICLE TAX,9399,Vehicle Excise Duty (VED),262.50,0.00,262.50
Regeneration and Local Services,Environmental Services,010864,Fleet - Hackworth Road Fleet,Transport,215013,Running Costs of Vehicles,10-Sep-2019,000008804395931,DVLA VEHICLE TAX,9399,Vehicle Excise Duty (VED),262.50,0.00,262.50
Regeneration and Local Services,Environmental Services,010900,Fleet - Meadowfield Fleet,Transport,215013,Running Costs of Vehicles,10-Sep-2019,000008804395943,DVLA VEHICLE TAX,9399,Vehicle Excise Duty (VED),262.50,0.00,262.50
Regeneration and Local Services,Environmental Services,010900,Fleet - Meadowfield Fleet,Transport,215013,Running Costs of Vehicles,10-Sep-2019,000008804395953,DVLA VEHICLE TAX,9399,Vehicle Excise Duty (VED),262.50,0.00,262.50
Regeneration and Local Services,Environmental Services,010561,Fleet - Morrison Busty Fleet,Transport,215013,Running Costs of Vehicles,10-Sep-2019,000008804395963,DVLA VEHICLE TAX,9399,Vehicle Excise Duty (VED),262.50,0.00,262.50
Regeneration and Local Services,Environmental Services,010864,Fleet - Hackworth Road Fleet,Transport,215013,Running Costs of Vehicles,10-Sep-2019,000008804395971,DVLA VEHICLE TAX,9399,Vehicle Excise Duty (VED),167.50,0.00,167.50
Regeneration and Local Services,Environmental Services,010900,Fleet - Meadowfield Fleet,Transport,215013,Running Costs of Vehicles,10-Sep-2019,000008804395979,DVLA VEHICLE TAX,9399,Vehicle Excise Duty (VED),262.50,0.00,262.50
Regeneration and Local Services,Environmental Services,010864,Fleet - Hackworth Road Fleet,Transport,215013,Running Costs of Vehicles,10-Sep-2019,000008804395985,DVLA VEHICLE TAX,9399,Vehicle Excise Duty (VED),167.50,0.00,167.50
Regeneration and Local Services,Environmental Services,010900,Fleet - Meadowfield Fleet,Transport,215013,Running Costs of Vehicles,10-Sep-2019,000008804395995,DVLA VEHICLE TAX,9399,Vehicle Excise Duty (VED),262.50,0.00,262.50
Regeneration and Local Services,Environmental Services,010551,Fleet - Chilton Fleet,Transport,215013,Running Costs of Vehicles,10-Sep-2019,000008804396003,DVLA VEHICLE TAX,9399,Vehicle Excise Duty (VED),262.50,0.00,262.50
Regeneration and Local Services,Environmental Services,010900,Fleet - Meadowfield Fleet,Transport,215013,Running Costs of Vehicles,10-Sep-2019,000008804396011,DVLA VEHICLE TAX,9399,Vehicle Excise Duty (VED),262.50,0.00,262.50
Regeneration and Local Services,Environmental Services,010900,Fleet - Meadowfield Fleet,Transport,215013,Running Costs of Vehicles,10-Sep-2019,000008804396019,DVLA VEHICLE TAX,9399,Vehicle Excise Duty (VED),222.50,0.00,222.50
Regeneration and Local Services,Environmental Services,010900,Fleet - Meadowfield Fleet,Transport,215013,Running Costs of Vehicles,10-Sep-2019,000008804396029,DVLA VEHICLE TAX,9399,Vehicle Excise Duty (VED),262.50,0.00,262.50
Regeneration and Local Services,Environmental Services,010900,Fleet - Meadowfield Fleet,Transport,215013,Running Costs of Vehicles,10-Sep-2019,000008804396037,DVLA VEHICLE TAX,9399,Vehicle Excise Duty (VED),262.50,0.00,262.50
Regeneration and Local Services,Environmental Services,010551,Fleet - Chilton Fleet,Transport,215013,Running Costs of Vehicles,10-Sep-2019,000008804396045,DVLA VEHICLE TAX,9399,Vehicle Excise Duty (VED),262.50,0.00,262.50
Regeneration and Local Services,Environmental Services,010900,Fleet - Meadowfield Fleet,Transport,215013,Running Costs of Vehicles,10-Sep-2019,000008804396055,DVLA VEHICLE TAX,9399,Vehicle Excise Duty (VED),262.50,0.00,262.50
Regeneration and Local Services,Environmental Services,010900,Fleet - Meadowfield Fleet,Transport,215013,Running Costs of Vehicles,10-Sep-2019,000008804396063,DVLA VEHICLE TAX,9399,Vehicle Excise Duty (VED),262.50,0.00,262.50
Regeneration and Local Services,Environmental Services,010561,Fleet - Morrison Busty Fleet,Transport,215013,Running Costs of Vehicles,10-Sep-2019,000008804396077,DVLA VEHICLE TAX,9399,Vehicle Excise Duty (VED),262.50,0.00,262.50
Regeneration and Local Services,Environmental Services,010864,Fleet - Hackworth Road Fleet,Transport,215013,Running Costs of Vehicles,10-Sep-2019,000008804396085,DVLA VEHICLE TAX,9399,Vehicle Excise Duty (VED),262.50,0.00,262.50
Regeneration and Local Services,Environmental Services,010900,Fleet - Meadowfield Fleet,Transport,215013,Running Costs of Vehicles,10-Sep-2019,000008804396097,DVLA VEHICLE TAX,9399,Vehicle Excise Duty (VED),262.50,0.00,262.50
Regeneration and Local Services,Environmental Services,010900,Fleet - Meadowfield Fleet,Transport,215013,Running Costs of Vehicles,10-Sep-2019,000008804396109,DVLA VEHICLE TAX,9399,Vehicle Excise Duty (VED),262.50,0.00,262.50
Regeneration and Local Services,Environmental Services,010900,Fleet - Meadowfield Fleet,Transport,215013,Running Costs of Vehicles,10-Sep-2019,000008804396115,DVLA VEHICLE TAX,9399,Vehicle Excise Duty (VED),262.50,0.00,262.50
Regeneration and Local Services,Environmental Services,010900,Fleet - Meadowfield Fleet,Transport,215013,Running Costs of Vehicles,10-Sep-2019,000008804396127,DVLA VEHICLE TAX,9399,Vehicle Excise Duty (VED),262.50,0.00,262.50
Regeneration and Local Services,Environmental Services,010561,Fleet - Morrison Busty Fleet,Transport,215013,Running Costs of Vehicles,10-Sep-2019,000008804396139,DVLA VEHICLE TAX,9399,Vehicle Excise Duty (VED),262.50,0.00,262.50
Regeneration and Local Services,Environmental Services,010900,Fleet - Meadowfield Fleet,Transport,215013,Running Costs of Vehicles,10-Sep-2019,000008804396147,DVLA VEHICLE TAX,9399,Vehicle Excise Duty (VED),262.50,0.00,262.50
Regeneration and Local Services,Environmental Services,010561,Fleet - Morrison Busty Fleet,Transport,215013,Running Costs of Vehicles,10-Sep-2019,000008804396163,DVLA VEHICLE TAX,9399,Vehicle Excise Duty (VED),262.50,0.00,262.50
Regeneration and Local Services,Environmental Services,010900,Fleet - Meadowfield Fleet,Transport,215013,Running Costs of Vehicles,10-Sep-2019,000008804396169,DVLA VEHICLE TAX,9399,Vehicle Excise Duty (VED),262.50,0.00,262.50
Regeneration and Local Services,Environmental Services,010864,Fleet - Hackworth Road Fleet,Transport,215013,Running Costs of Vehicles,10-Sep-2019,000008804396181,DVLA VEHICLE TAX,9399,Vehicle Excise Duty (VED),262.50,0.00,262.50
Regeneration and Local Services,Environmental Services,010900,Fleet - Meadowfield Fleet,Transport,215013,Running Costs of Vehicles,10-Sep-2019,000008804396193,DVLA VEHICLE TAX,9399,Vehicle Excise Duty (VED),262.50,0.00,262.50
Regeneration and Local Services,Environmental Services,010900,Fleet - Meadowfield Fleet,Transport,215013,Running Costs of Vehicles,10-Sep-2019,000008804396203,DVLA VEHICLE TAX,9399,Vehicle Excise Duty (VED),262.50,0.00,262.50
Regeneration and Local Services,Environmental Services,010864,Fleet - Hackworth Road Fleet,Transport,215013,Running Costs of Vehicles,10-Sep-2019,000008804396215,DVLA VEHICLE TAX,9399,Vehicle Excise Duty (VED),262.50,0.00,262.50
Regeneration and Local Services,Environmental Services,010900,Fleet - Meadowfield Fleet,Transport,215013,Running Costs of Vehicles,10-Sep-2019,000008804396223,DVLA VEHICLE TAX,9399,Vehicle Excise Duty (VED),262.50,0.00,262.50
Regeneration and Local Services,Environmental Services,010900,Fleet - Meadowfield Fleet,Transport,215013,Running Costs of Vehicles,10-Sep-2019,000008804396233,DVLA VEHICLE TAX,9399,Vehicle Excise Duty (VED),262.50,0.00,262.50
Regeneration and Local Services,Environmental Services,010561,Fleet - Morrison Busty Fleet,Transport,215013,Running Costs of Vehicles,10-Sep-2019,000008804396237,DVLA VEHICLE TAX,9399,Vehicle Excise Duty (VED),262.50,0.00,262.50
Regeneration and Local Services,Environmental Services,010900,Fleet - Meadowfield Fleet,Transport,215013,Running Costs of Vehicles,10-Sep-2019,000008804396249,DVLA VEHICLE TAX,9399,Vehicle Excise Duty (VED),262.50,0.00,262.50
Regeneration and Local Services,Environmental Services,010551,Fleet - Chilton Fleet,Transport,215013,Running Costs of Vehicles,10-Sep-2019,000008804396255,DVLA VEHICLE TAX,9399,Vehicle Excise Duty (VED),262.50,0.00,262.50
Children and Young Peoples Services,Head of Early Help Inclusion & Vulnerable Children.,088109,Spennymoor & Shildon 0-19 Community Family Hub,Supplies and Services,324117,Provisions E324,10-Sep-2019,000008804396277,TESCO STORES 6329,5411,Catering costs - provisions,10.85,0.00,10.85
Regeneration and Local Services,Business Durham CL0850,030674,Business Services General,Third Party Payments,430100,Rendered by Private Contractors,10-Sep-2019,000008804396441,BLS monday.com,7399,Payments to sub-contractors,144.34,24.06,120.28
Children and Young Peoples Services,Head of Early Help Inclusion & Vulnerable Children.,085956,Lumley,Supplies and Services,328041,Clothing uniforms and laundry E328,10-Sep-2019,000008804396463,BOOHOO.COM,5691,Clothing uniforms and laundry,11.25,0.00,11.25
Children and Young Peoples Services,Head of Early Help Inclusion & Vulnerable Children.,085956,Lumley,Supplies and Services,328041,Clothing uniforms and laundry E328,10-Sep-2019,000008804396473,BOOHOO.COM,5691,Clothing uniforms and laundry,4.50,0.00,4.50
Children and Young Peoples Services,Head of Early Help Inclusion & Vulnerable Children.,085965,Barnard,Supplies and Services,328041,Clothing uniforms and laundry E328,10-Sep-2019,000008804396477,FOOTASYLUM PLC,5691,Clothing uniforms and laundry,49.99,0.00,49.99
Children and Young Peoples Services,Head of Early Help Inclusion & Vulnerable Children.,085965,Barnard,Supplies and Services,328041,Clothing uniforms and laundry E328,10-Sep-2019,000008804396485,FOOTASYLUM PLC,5691,Clothing uniforms and laundry,44.99,0.00,44.99
Children and Young Peoples Services,Head of Early Help Inclusion & Vulnerable Children.,085957,Secure Management,Supplies and Services,304403,Equipment and Materials,10-Sep-2019,000008804396493,BARRINGTON INTERNATION,5734,Other consumables,543.00,0.00,543.00
Children and Young Peoples Services,Head of Early Help Inclusion & Vulnerable Children.,085956,Lumley,Supplies and Services,328041,Clothing uniforms and laundry E328,10-Sep-2019,000008804396501,PRETTYLITTLETHING.COM,5691,Clothing uniforms and laundry,36.00,0.00,36.00
Children and Young Peoples Services,Head of Early Help Inclusion & Vulnerable Children.,085957,Secure Management,Supplies and Services,304221,Equipment and Materials,10-Sep-2019,000008804396505,SCREWFIX DIRECT,5200,Direct materials,118.97,0.00,118.97
Regeneration and Local Services,Environmental Services,026591,C&G - Hardwick Park,Supplies and Services,332047,Printing Stationery and Gen Off Exps,10-Sep-2019,000008804396531,AMZNMktplace,5999,Stationery,117.64,19.61,98.03
Regeneration and Local Services,Environmental Services,026591,C&G - Hardwick Park,Supplies and Services,304245,Equipment and Materials,10-Sep-2019,000008804396541,LINERSBAGSSACKS,5131,Materials,120.91,20.15,100.76
Children and Young Peoples Services,Head of Early Help Inclusion & Vulnerable Children.,085962,Aycliffe Secure - Durham,Supplies and Services,304403,Equipment and Materials,10-Sep-2019,000008804396623,AMZNMktplace,5999,Other consumables,40.46,0.00,40.46
Children and Young Peoples Services,Head of Early Help Inclusion & Vulnerable Children.,085962,Aycliffe Secure - Durham,Supplies and Services,304403,Equipment and Materials,10-Sep-2019,000008804396627,AMZNMktplace,5999,Other consumables,110.36,0.00,110.36
Children and Young Peoples Services,Head of Childrens Social Care,085331,New Lea Childrens Home,Supplies and Services,308011,Furniture,10-Sep-2019,000008804396647,WWW.IKEA.COM,5712,Furniture repair and replacement,174.00,0.00,174.00
Children and Young Peoples Services,Head of Childrens Social Care,085352,Tow Law CU,Supplies and Services,304221,Equipment and Materials,10-Sep-2019,000008804396675,HOMEPLAN DIY,5211,Direct materials,25.83,0.00,25.83
Regeneration and Local Services,Development and Housing,030508,Erasmas plus Grant,Supplies and Services,324117,Provisions E324,10-Sep-2019,000008804396785,SAINSBURYS SACAT 0776,5411,Catering costs - provisions,3.75,0.00,3.75
Regeneration and Local Services,Development and Housing,030508,Erasmas plus Grant,Supplies and Services,324117,Provisions E324,10-Sep-2019,000008804396803,MARKS&SPENCER PLC SACA,5411,Catering costs - provisions,49.43,0.00,49.43
Children and Young Peoples Services,Head of Early Help Inclusion & Vulnerable Children.,071443,Stanley One Point Hub,Supplies and Services,328041,Clothing uniforms and laundry E328,10-Sep-2019,000008804396811,WWW.ARGOS.CO.UK,5310,Clothing uniforms and laundry,301.94,0.00,301.94
Regeneration and Local Services,Corporate Property and Land,020041,Bldg Serv - Business Development - General,Supplies and Services,384999,Miscellaneous Expenses,10-Sep-2019,000008804396931,WWW.FLEX-E-CARD.COM,5947,Other expenses,154.99,0.00,154.99
Children and Young Peoples Services,Head of Childrens Social Care,085342,9 Cedar Drive Aycliffe,Supplies and Services,328041,Clothing uniforms and laundry E328,10-Sep-2019,000008804396969,W BOYES & CO LTD NEWTO,5310,Clothing uniforms and laundry,1.99,0.00,1.99
Children and Young Peoples Services,Head of Childrens Social Care,085342,9 Cedar Drive Aycliffe,Supplies and Services,304999,Equipment and Materials,10-Sep-2019,000008804396977,HOME BARGAINS,5251,Misc equipment tools and materials,22.75,0.00,22.75
Children and Young Peoples Services,Head of Childrens Social Care,085342,9 Cedar Drive Aycliffe,Supplies and Services,304403,Equipment and Materials,10-Sep-2019,000008804396987,CARD FACTORY,5947,Other consumables,6.14,0.00,6.14
Children and Young Peoples Services,Head of Childrens Social Care,085342,9 Cedar Drive Aycliffe,Supplies and Services,304403,Equipment and Materials,10-Sep-2019,000008804396997,CARD FACTORY,5947,Other consumables,1.97,0.00,1.97
Children and Young Peoples Services,Head of Childrens Social Care,085342,9 Cedar Drive Aycliffe,Supplies and Services,304403,Equipment and Materials,10-Sep-2019,000008804397007,CARD FACTORY,5947,Other consumables,2.97,0.00,2.97
Children and Young Peoples Services,Head of Childrens Social Care,085342,9 Cedar Drive Aycliffe,Supplies and Services,328041,Clothing uniforms and laundry E328,10-Sep-2019,000008804397015,POUNDLAND LTD,5310,Clothing uniforms and laundry,5.50,0.00,5.50
Children and Young Peoples Services,Head of Childrens Social Care,085342,9 Cedar Drive Aycliffe,Supplies and Services,304259,Equipment and Materials,10-Sep-2019,000008804397023,WILKO RETAIL LIMIT,5722,Equipment-purchase and rental,5.00,0.00,5.00
Regeneration and Local Services,Environmental Services,031200,North Pennines Core,Supplies and Services,348037,Subsistence E348,10-Sep-2019,000008804397257,Partisan,5812,Subsistence,46.50,7.75,38.75
Children and Young Peoples Services,Head of Education and Skills,070264,EDC Premises,Supplies and Services,304221,Equipment and Materials,10-Sep-2019,000008804397329,HOMEBASE LTD 822,5200,Direct materials,32.99,5.50,27.49
Regeneration and Local Services,Development and Housing,030544,Rural Employability - Client Engagement,Employees,040149,Recruitment Instruction and Training,10-Sep-2019,000008804397419,WWW.ECOSSEHEALTHANDSAF,8299,Training-all costs,150.00,25.00,125.00
Children and Young Peoples Services,Head of Education and Skills,071903,Early Years Sustainability,Supplies and Services,304999,Equipment and Materials,10-Sep-2019,000008804397489,MAGSUBCRIPTIONS COM,5968,Misc equipment tools and materials,119.00,0.00,119.00
Children and Young Peoples Services,Head of Childrens Social Care,085333,Coxhoe Satelite Home,Supplies and Services,324117,Provisions E324,10-Sep-2019,000008804397577,COOPLANDS BAKERY,5462,Catering costs - provisions,5.29,0.00,5.29
Children and Young Peoples Services,Head of Childrens Social Care,085333,Coxhoe Satelite Home,Supplies and Services,324117,Provisions E324,10-Sep-2019,000008804397585,TESCO STORES 2916,5411,Catering costs - provisions,56.91,0.00,56.91
Children and Young Peoples Services,Head of Childrens Social Care,085333,Coxhoe Satelite Home,Supplies and Services,324117,Provisions E324,10-Sep-2019,000008804397593,TESCO STORES 2916,5411,Catering costs - provisions,9.25,0.00,9.25
Children and Young Peoples Services,Head of Childrens Social Care,085333,Coxhoe Satelite Home,Premises,145009,Cleaning and Domestic Supplies,10-Sep-2019,000008804397599,MALCOLMS CLEANING,7349,Other cleaning and domestic costs,52.00,0.00,52.00
Children and Young Peoples Services,Head of Education and Skills,070169,Durham SSP,Supplies and Services,384199,Miscellaneous Expenses,10-Sep-2019,000008804397631,WWW.SOLOPRESS.COM,2741,Other hired and contracted services,33.67,0.00,33.67
Resources BK0010,People & Talent Management,010984,Training and Development,Supplies and Services,304259,Equipment and Materials,10-Sep-2019,000008804397767,DSA THEORY TEST,9399,Equipment-purchase and rental,23.00,0.00,23.00
Regeneration and Local Services,Environmental Services,031200,North Pennines Core,Supplies and Services,328041,Clothing uniforms and laundry E328,10-Sep-2019,000008804397869,WWW.THEWORKS.CO.UK,5310,Clothing uniforms and laundry,54.00,0.00,54.00
Regeneration and Local Services,Development and Housing,030771,Durham Advance Flexible Fund,Transport,235057,Public Transport,10-Sep-2019,000008804398129,Trainline.com,4112,Staff travelling,15.29,0.00,15.29
Children and Young Peoples Services,Head of Education and Skills,071801,Selby Cottage Childcare Centre,Supplies and Services,308011,Furniture,10-Sep-2019,000008810049847,IKEA LTD 143 GATESHEAD,5712,Furniture repair and replacement,98.50,0.00,98.50
Regeneration and Local Services,Development and Housing,031576,B& B - Temp Accom,Supplies and Services,364320,Grants to Voluntary Organisations,10-Sep-2019,000008810050349,PREMIER INN,3811,Accommodation assistance,67.00,0.00,67.00
Regeneration and Local Services,Development and Housing,031500,Housing Solutions - Core Team,Employees,040149,Recruitment Instruction and Training,10-Sep-2019,000008810050763,PREMIER INN,3811,Training-all costs,28.50,4.75,23.75
Children and Young Peoples Services,Head of Early Help Inclusion & Vulnerable Children.,085956,Lumley,Supplies and Services,304403,Equipment and Materials,10-Sep-2019,000008810050883,AMZNMKTPLACE AMAZON.CO,5999,Other consumables,6.89,0.00,6.89
Children and Young Peoples Services,Head of Childrens Social Care,085331,New Lea Childrens Home,Supplies and Services,308011,Furniture,10-Sep-2019,000008810051095,IKEA LTD 143 GATESHEAD,5712,Furniture repair and replacement,155.00,25.83,129.17
Regeneration and Local Services,Corporate Property and Land,015087,Facilities Mgt - Aycliffe Secure Unit,Supplies and Services,304221,Equipment and Materials,10-Sep-2019,000008810051297,PAYPAL CROMWELLTOO,7399,Direct materials,109.48,18.25,91.23
Regeneration and Local Services,Environmental Services,031200,North Pennines Core,Transport,235057,Public Transport,10-Sep-2019,000008816057007,3C_ ECML DURHAM STATIO,7523,Staff travelling,14.50,0.00,14.50
Regeneration and Local Services,Business Durham CL0850,030690,Durham Dales Centre - Tourist Information Centre,Supplies and Services,304221,Equipment and Materials,11-Sep-2019,000006585162872,A AND K HOSIERY LTD,5099,Direct materials,824.09,137.35,686.74
Children and Young Peoples Services,Head of Education and Skills,070264,EDC Premises,Supplies and Services,324117,Provisions E324,11-Sep-2019,000008810049885,FREEMAN CATERING BUTCH,5422,Catering costs - provisions,48.66,0.00,48.66
Children and Young Peoples Services,Head of Education and Skills,070264,EDC Premises,Premises,145009,Cleaning and Domestic Supplies,11-Sep-2019,000008810049893,ALLIANCE DISPOSABLES L,2842,Other cleaning and domestic costs,159.08,26.51,132.57
Children and Young Peoples Services,Head of Childrens Social Care,085100,SGO and CAO costs,Supplies and Services,384199,Miscellaneous Expenses,11-Sep-2019,000008810049927,DARLINGTON BC INTERNET,9399,Other hired and contracted services,22.00,0.00,22.00
Regeneration and Local Services,Development and Housing,030773,CLLD North,Transport,235057,Public Transport,11-Sep-2019,000008810049935,GO NORTH EAST LIMITED,4131,Staff travelling,95.00,0.00,95.00
Children and Young Peoples Services,Head of Education and Skills,075021,Youth Employment Initiative,Supplies and Services,384199,Miscellaneous Expenses,11-Sep-2019,000008810049949,WWW.DURHAM.GOV.UK,9399,Other hired and contracted services,11.00,0.00,11.00
Children and Young Peoples Services,Head of Childrens Social Care,085342,9 Cedar Drive Aycliffe,Supplies and Services,324117,Provisions E324,11-Sep-2019,000008810050001,TESCO STORES 2916,5411,Catering costs - provisions,25.06,0.00,25.06
Children and Young Peoples Services,Head of Childrens Social Care,085333,Coxhoe Satelite Home,Employees,040149,Recruitment Instruction and Training,11-Sep-2019,000008810050035,PARENTPAY E-COM R,8220,Training-all costs,25.00,0.00,25.00
Children and Young Peoples Services,Head of Early Help Inclusion & Vulnerable Children.,071670,Willington Childrens Centre,Supplies and Services,308011,Furniture,11-Sep-2019,000008810050117,ARGOS RETAIL GROUP,5310,Furniture repair and replacement,32.00,0.00,32.00
Regeneration and Local Services,Development and Housing,030544,Rural Employability - Client Engagement,Supplies and Services,384700,Miscellaneous Expenses,11-Sep-2019,000008810050129,GO NORTH EAST LIMITED,4131,Miscellaneous grants,10.60,0.00,10.60
Regeneration and Local Services,Corporate Property and Land,021242,Catering - County Hall,Supplies and Services,324117,Provisions E324,11-Sep-2019,000008810050151,FREEMAN CATERING BUTCH,5422,Catering costs - provisions,155.68,0.00,155.68
Regeneration and Local Services,Corporate Property and Land,021242,Catering - County Hall,Premises,145009,Cleaning and Domestic Supplies,11-Sep-2019,000008810050161,ALLIANCE DISPOSABLES L,2842,Other cleaning and domestic costs,19.37,3.23,16.14
Regeneration and Local Services,Corporate Property and Land,021242,Catering - County Hall,Premises,145009,Cleaning and Domestic Supplies,11-Sep-2019,000008810050171,ALLIANCE DISPOSABLES L,2842,Other cleaning and domestic costs,3.78,0.63,3.15
Regeneration and Local Services,Corporate Property and Land,021242,Catering - County Hall,Supplies and Services,324117,Provisions E324,11-Sep-2019,000008810050179,JR HOLLAND FOODSERVICE,5499,Catering costs - provisions,31.51,0.00,31.51
Regeneration and Local Services,Corporate Property and Land,021242,Catering - County Hall,Supplies and Services,324117,Provisions E324,11-Sep-2019,000008810050185,JR HOLLAND FOODSERVICE,5499,Catering costs - provisions,219.19,0.00,219.19
Regeneration and Local Services,Corporate Property and Land,021242,Catering - County Hall,Supplies and Services,324117,Provisions E324,11-Sep-2019,000008810050195,JR HOLLAND FOODSERVICE,5499,Catering costs - provisions,194.38,0.00,194.38
Regeneration and Local Services,Corporate Property and Land,021242,Catering - County Hall,Supplies and Services,324117,Provisions E324,11-Sep-2019,000008810050201,JR HOLLAND FOODSERVICE,5499,Catering costs - provisions,134.09,0.00,134.09
Regeneration and Local Services,Corporate Property and Land,021242,Catering - County Hall,Supplies and Services,324117,Provisions E324,11-Sep-2019,000008810050207,JR HOLLAND FOODSERVICE,5499,Catering costs - provisions,13.80,0.00,13.80
Children and Young Peoples Services,Head of Childrens Social Care,085332,Middlestone Moor CU,Supplies and Services,304403,Equipment and Materials,11-Sep-2019,000008810050213,AMZNMktplace,5999,Other consumables,7.49,0.00,7.49
Children and Young Peoples Services,Head of Childrens Social Care,085332,Middlestone Moor CU,Supplies and Services,324117,Provisions E324,11-Sep-2019,000008810050221,ASDA SUPERSTORE 4987,5411,Catering costs - provisions,26.67,0.00,26.67
Children and Young Peoples Services,Head of Childrens Social Care,085332,Middlestone Moor CU,Supplies and Services,328041,Clothing uniforms and laundry E328,11-Sep-2019,000008810050229,ASDA SUPERSTORE 4987,5411,Clothing uniforms and laundry,16.50,0.00,16.50
Regeneration and Local Services,Culture Sport and Tourism,054812,Gala Theatre - Catering etc,Supplies and Services,324117,Provisions E324,11-Sep-2019,000008810050249,JR HOLLAND FOODSERVICE,5499,Catering costs - provisions,57.76,0.00,57.76
Regeneration and Local Services,Development and Housing,030773,CLLD North,Supplies and Services,344033,Telephones,11-Sep-2019,000008810050305,o2 Bishop Auckland,4812,Telephones general-all costs,35.00,0.00,35.00
Regeneration and Local Services,Environmental Services,010561,Fleet - Morrison Busty Fleet,Transport,215013,Running Costs of Vehicles,11-Sep-2019,000008810050379,DVLA VEHICLE TAX,9399,Vehicle Excise Duty (VED),262.50,0.00,262.50
Regeneration and Local Services,Environmental Services,010900,Fleet - Meadowfield Fleet,Transport,215013,Running Costs of Vehicles,11-Sep-2019,000008810050387,DVLA VEHICLE TAX,9399,Vehicle Excise Duty (VED),262.50,0.00,262.50
Regeneration and Local Services,Environmental Services,010900,Fleet - Meadowfield Fleet,Transport,215013,Running Costs of Vehicles,11-Sep-2019,000008810050393,DVLA VEHICLE TAX,9399,Vehicle Excise Duty (VED),262.50,0.00,262.50
Regeneration and Local Services,Environmental Services,010551,Fleet - Chilton Fleet,Transport,215013,Running Costs of Vehicles,11-Sep-2019,000008810050397,DVLA VEHICLE TAX,9399,Vehicle Excise Duty (VED),262.50,0.00,262.50
Regeneration and Local Services,Environmental Services,010864,Fleet - Hackworth Road Fleet,Transport,215013,Running Costs of Vehicles,11-Sep-2019,000008810050405,DVLA VEHICLE TAX,9399,Vehicle Excise Duty (VED),262.50,0.00,262.50
Regeneration and Local Services,Environmental Services,010900,Fleet - Meadowfield Fleet,Transport,215013,Running Costs of Vehicles,11-Sep-2019,000008810050411,DVLA VEHICLE TAX,9399,Vehicle Excise Duty (VED),617.50,0.00,617.50
Regeneration and Local Services,Environmental Services,010864,Fleet - Hackworth Road Fleet,Transport,215013,Running Costs of Vehicles,11-Sep-2019,000008810050417,DVLA VEHICLE TAX,9399,Vehicle Excise Duty (VED),617.50,0.00,617.50
Regeneration and Local Services,Environmental Services,010900,Fleet - Meadowfield Fleet,Transport,215013,Running Costs of Vehicles,11-Sep-2019,000008810050423,DVLA VEHICLE TAX,9399,Vehicle Excise Duty (VED),262.50,0.00,262.50
Regeneration and Local Services,Environmental Services,010864,Fleet - Hackworth Road Fleet,Transport,215013,Running Costs of Vehicles,11-Sep-2019,000008810050431,DVLA VEHICLE TAX,9399,Vehicle Excise Duty (VED),262.50,0.00,262.50
Regeneration and Local Services,Environmental Services,010551,Fleet - Chilton Fleet,Transport,215013,Running Costs of Vehicles,11-Sep-2019,000008810050443,DVLA VEHICLE TAX,9399,Vehicle Excise Duty (VED),262.50,0.00,262.50
Regeneration and Local Services,Environmental Services,010561,Fleet - Morrison Busty Fleet,Transport,215013,Running Costs of Vehicles,11-Sep-2019,000008810050449,DVLA VEHICLE TAX,9399,Vehicle Excise Duty (VED),262.50,0.00,262.50
Regeneration and Local Services,Environmental Services,010551,Fleet - Chilton Fleet,Transport,215013,Running Costs of Vehicles,11-Sep-2019,000008810050457,DVLA VEHICLE TAX,9399,Vehicle Excise Duty (VED),262.50,0.00,262.50
Regeneration and Local Services,Environmental Services,010551,Fleet - Chilton Fleet,Transport,215013,Running Costs of Vehicles,11-Sep-2019,000008810050461,DVLA VEHICLE TAX,9399,Vehicle Excise Duty (VED),262.50,0.00,262.50
Regeneration and Local Services,Environmental Services,010900,Fleet - Meadowfield Fleet,Transport,215013,Running Costs of Vehicles,11-Sep-2019,000008810050471,DVLA VEHICLE TAX,9399,Vehicle Excise Duty (VED),262.50,0.00,262.50
Regeneration and Local Services,Environmental Services,010551,Fleet - Chilton Fleet,Transport,215013,Running Costs of Vehicles,11-Sep-2019,000008810050481,DVLA VEHICLE TAX,9399,Vehicle Excise Duty (VED),262.50,0.00,262.50
Regeneration and Local Services,Environmental Services,010900,Fleet - Meadowfield Fleet,Transport,215013,Running Costs of Vehicles,11-Sep-2019,000008810050489,DVLA VEHICLE TAX,9399,Vehicle Excise Duty (VED),262.50,0.00,262.50
Regeneration and Local Services,Environmental Services,010900,Fleet - Meadowfield Fleet,Transport,215013,Running Costs of Vehicles,11-Sep-2019,000008810050493,DVLA VEHICLE TAX,9399,Vehicle Excise Duty (VED),262.50,0.00,262.50
Regeneration and Local Services,Environmental Services,010864,Fleet - Hackworth Road Fleet,Transport,215013,Running Costs of Vehicles,11-Sep-2019,000008810050501,DVLA VEHICLE TAX,9399,Vehicle Excise Duty (VED),617.50,0.00,617.50
Regeneration and Local Services,Environmental Services,010561,Fleet - Morrison Busty Fleet,Transport,215013,Running Costs of Vehicles,11-Sep-2019,000008810050511,DVLA VEHICLE TAX,9399,Vehicle Excise Duty (VED),617.50,0.00,617.50
Regeneration and Local Services,Environmental Services,010551,Fleet - Chilton Fleet,Transport,215013,Running Costs of Vehicles,11-Sep-2019,000008810050517,DVLA VEHICLE TAX,9399,Vehicle Excise Duty (VED),262.50,0.00,262.50
Regeneration and Local Services,Environmental Services,010561,Fleet - Morrison Busty Fleet,Transport,215013,Running Costs of Vehicles,11-Sep-2019,000008810050523,DVLA VEHICLE TAX,9399,Vehicle Excise Duty (VED),262.50,0.00,262.50
Regeneration and Local Services,Environmental Services,010561,Fleet - Morrison Busty Fleet,Transport,215013,Running Costs of Vehicles,11-Sep-2019,000008810050531,DVLA VEHICLE TAX,9399,Vehicle Excise Duty (VED),262.50,0.00,262.50
Regeneration and Local Services,Environmental Services,010900,Fleet - Meadowfield Fleet,Transport,215013,Running Costs of Vehicles,11-Sep-2019,000008810050537,DVLA VEHICLE TAX,9399,Vehicle Excise Duty (VED),262.50,0.00,262.50
Regeneration and Local Services,Environmental Services,010551,Fleet - Chilton Fleet,Transport,215013,Running Costs of Vehicles,11-Sep-2019,000008810050543,DVLA VEHICLE TAX,9399,Vehicle Excise Duty (VED),262.50,0.00,262.50
Regeneration and Local Services,Environmental Services,010561,Fleet - Morrison Busty Fleet,Transport,215013,Running Costs of Vehicles,11-Sep-2019,000008810050551,DVLA VEHICLE TAX,9399,Vehicle Excise Duty (VED),262.50,0.00,262.50
Regeneration and Local Services,Environmental Services,010551,Fleet - Chilton Fleet,Transport,215013,Running Costs of Vehicles,11-Sep-2019,000008810050555,DVLA VEHICLE TAX,9399,Vehicle Excise Duty (VED),262.50,0.00,262.50
Children and Young Peoples Services,Head of Education and Skills,071732,Dean Bank Childcare,Supplies and Services,328041,Clothing uniforms and laundry E328,11-Sep-2019,000008810050577,B & M RETAIL,5310,Clothing uniforms and laundry,44.94,0.00,44.94
Regeneration and Local Services,Culture Sport and Tourism,054813,Gala Theatre - Technical,Supplies and Services,304403,Equipment and Materials,11-Sep-2019,000008810050583,AMZNMktplace,5999,Other consumables,37.80,0.00,37.80
Regeneration and Local Services,Culture Sport and Tourism,054813,Gala Theatre - Technical,Supplies and Services,304403,Equipment and Materials,11-Sep-2019,000008810050601,AMZNMktplace,5999,Other consumables,26.90,0.00,26.90
Children and Young Peoples Services,Head of Childrens Social Care,085334,West Rainton Satelite Home,Supplies and Services,324117,Provisions E324,11-Sep-2019,000008810050607,TESCO STORES 2371,5411,Catering costs - provisions,11.00,0.00,11.00
Children and Young Peoples Services,Head of Childrens Social Care,085363,LAC & Permanence Team 3,Supplies and Services,304259,Equipment and Materials,11-Sep-2019,000008810050871,DARLINGTON BC INTERNET,9399,Equipment-purchase and rental,22.00,0.00,22.00
Children and Young Peoples Services,Head of Early Help Inclusion & Vulnerable Children.,085962,Aycliffe Secure - Durham,Supplies and Services,324117,Provisions E324,11-Sep-2019,000008810050879,TESCO STORES 6329,5411,Catering costs - provisions,65.24,0.00,65.24
Children and Young Peoples Services,Head of Early Help Inclusion & Vulnerable Children.,085952,Secure Education,Supplies and Services,312009,Newspapers books and periodicals E312,11-Sep-2019,000008810050891,Amazon.co.uk MA22I2B04,5969,Newspapers books and periodicals,17.48,0.00,17.48
Children and Young Peoples Services,Head of Early Help Inclusion & Vulnerable Children.,085952,Secure Education,Supplies and Services,312009,Newspapers books and periodicals E312,11-Sep-2019,000008810050897,Amazon.co.uk MA82Y6BB4,5969,Newspapers books and periodicals,8.99,0.00,8.99
Children and Young Peoples Services,Head of Early Help Inclusion & Vulnerable Children.,085965,Barnard,Supplies and Services,384999,Miscellaneous Expenses,11-Sep-2019,000008810050905,Amazon.co.uk MA5NP1B04,5969,Other expenses,31.56,5.28,26.28
Regeneration and Local Services,Environmental Services,011060,C&G - Hardwick Park Catering,Supplies and Services,324117,Provisions E324,11-Sep-2019,000008810050911,FREEMAN CATERING BUTCH,5422,Catering costs - provisions,72.27,0.00,72.27
Regeneration and Local Services,Environmental Services,011060,C&G - Hardwick Park Catering,Supplies and Services,324117,Provisions E324,11-Sep-2019,000008810050923,FREEMAN CATERING BUTCH,5422,Catering costs - provisions,51.29,0.00,51.29
Regeneration and Local Services,Environmental Services,011060,C&G - Hardwick Park Catering,Supplies and Services,324117,Provisions E324,11-Sep-2019,000008810050929,FREEMAN CATERING BUTCH,5422,Catering costs - provisions,25.93,0.00,25.93
Regeneration and Local Services,Environmental Services,011060,C&G - Hardwick Park Catering,Supplies and Services,324117,Provisions E324,11-Sep-2019,000008810050939,JR HOLLAND FOODSERVICE,5499,Catering costs - provisions,14.41,0.00,14.41
Regeneration and Local Services,Environmental Services,011060,C&G - Hardwick Park Catering,Supplies and Services,324117,Provisions E324,11-Sep-2019,000008810050949,JR HOLLAND FOODSERVICE,5499,Catering costs - provisions,20.68,0.00,20.68
Regeneration and Local Services,Environmental Services,011060,C&G - Hardwick Park Catering,Supplies and Services,324117,Provisions E324,11-Sep-2019,000008810050959,JR HOLLAND FOODSERVICE,5499,Catering costs - provisions,92.73,0.00,92.73
Regeneration and Local Services,Environmental Services,011060,C&G - Hardwick Park Catering,Supplies and Services,324117,Provisions E324,11-Sep-2019,000008810050965,JR HOLLAND FOODSERVICE,5499,Catering costs - provisions,14.24,0.00,14.24
Regeneration and Local Services,Environmental Services,011060,C&G - Hardwick Park Catering,Supplies and Services,324117,Provisions E324,11-Sep-2019,000008810050971,JR HOLLAND FOODSERVICE,5499,Catering costs - provisions,53.21,0.00,53.21
Regeneration and Local Services,Environmental Services,011060,C&G - Hardwick Park Catering,Supplies and Services,324117,Provisions E324,11-Sep-2019,000008810050977,JR HOLLAND FOODSERVICE,5499,Catering costs - provisions,6.85,0.00,6.85
Regeneration and Local Services,Environmental Services,011060,C&G - Hardwick Park Catering,Supplies and Services,324117,Provisions E324,11-Sep-2019,000008810050985,JR HOLLAND FOODSERVICE,5499,Catering costs - provisions,46.93,0.00,46.93
Regeneration and Local Services,Environmental Services,011060,C&G - Hardwick Park Catering,Supplies and Services,324117,Provisions E324,11-Sep-2019,000008810050993,JR HOLLAND FOODSERVICE,5499,Catering costs - provisions,36.29,0.00,36.29
Regeneration and Local Services,Environmental Services,011060,C&G - Hardwick Park Catering,Supplies and Services,324117,Provisions E324,11-Sep-2019,000008810050995,JR HOLLAND FOODSERVICE,5499,Catering costs - provisions,93.43,0.00,93.43
Regeneration and Local Services,Environmental Services,011060,C&G - Hardwick Park Catering,Supplies and Services,324117,Provisions E324,11-Sep-2019,000008810051001,JR HOLLAND FOODSERVICE,5499,Catering costs - provisions,38.84,0.00,38.84
Regeneration and Local Services,Environmental Services,011060,C&G - Hardwick Park Catering,Supplies and Services,324117,Provisions E324,11-Sep-2019,000008810051007,JR HOLLAND FOODSERVICE,5499,Catering costs - provisions,226.61,0.00,226.61
Regeneration and Local Services,Development and Housing,030755,Durham Employment & Skills - Other Training,Employees,040149,Recruitment Instruction and Training,11-Sep-2019,000008810051027,WWW.CSKILLS.ORG,8249,Training-all costs,36.00,6.00,30.00
Regeneration and Local Services,Development and Housing,030755,Durham Employment & Skills - Other Training,Employees,040149,Recruitment Instruction and Training,11-Sep-2019,000008810051035,WWW.CSKILLS.ORG,8249,Training-all costs,36.00,6.00,30.00
Regeneration and Local Services,Corporate Property and Land,021234,Catering - Locomotion,Supplies and Services,324117,Provisions E324,11-Sep-2019,000008810051047,FREEMAN CATERING BUTCH,5422,Catering costs - provisions,40.00,0.00,40.00
Regeneration and Local Services,Corporate Property and Land,021234,Catering - Locomotion,Supplies and Services,324117,Provisions E324,11-Sep-2019,000008810051053,JR HOLLAND FOODSERVICE,5499,Catering costs - provisions,21.00,0.00,21.00
Regeneration and Local Services,Corporate Property and Land,021234,Catering - Locomotion,Supplies and Services,324117,Provisions E324,11-Sep-2019,000008810051061,JR HOLLAND FOODSERVICE,5499,Catering costs - provisions,57.15,0.00,57.15
Regeneration and Local Services,Corporate Property and Land,021234,Catering - Locomotion,Supplies and Services,324117,Provisions E324,11-Sep-2019,000008810051067,JR HOLLAND FOODSERVICE,5499,Catering costs - provisions,123.23,0.00,123.23
Regeneration and Local Services,Corporate Property and Land,021234,Catering - Locomotion,Supplies and Services,324117,Provisions E324,11-Sep-2019,000008810051073,JR HOLLAND FOODSERVICE,5499,Catering costs - provisions,90.81,0.00,90.81
Regeneration and Local Services,Corporate Property and Land,021234,Catering - Locomotion,Supplies and Services,324117,Provisions E324,11-Sep-2019,000008810051079,JR HOLLAND FOODSERVICE,5499,Catering costs - provisions,25.80,0.00,25.80
Regeneration and Local Services,Corporate Property and Land,021234,Catering - Locomotion,Supplies and Services,324117,Provisions E324,11-Sep-2019,000008810051085,JR HOLLAND FOODSERVICE,5499,Catering costs - provisions,11.00,0.00,11.00
Regeneration and Local Services,Corporate Property and Land,021234,Catering - Locomotion,Supplies and Services,324117,Provisions E324,11-Sep-2019,000008810051091,JR HOLLAND FOODSERVICE,5499,Catering costs - provisions,59.26,0.00,59.26
Regeneration and Local Services,Corporate Property and Land,010525,Catering - Green Lane,Supplies and Services,324117,Provisions E324,11-Sep-2019,000008810051105,FREEMAN CATERING BUTCH,5422,Catering costs - provisions,63.67,0.00,63.67
Regeneration and Local Services,Corporate Property and Land,010525,Catering - Green Lane,Supplies and Services,324117,Provisions E324,11-Sep-2019,000008810051115,JR HOLLAND FOODSERVICE,5499,Catering costs - provisions,72.38,0.00,72.38
Regeneration and Local Services,Development and Housing,030771,Durham Advance Flexible Fund,Supplies and Services,324117,Provisions E324,11-Sep-2019,000008810051125,BRADLEY BURN FARM SHOP,5411,Catering costs - provisions,5.30,0.00,5.30
Children and Young Peoples Services,Head of Childrens Social Care,085551,Short Break Services-Park Hse Sher,Supplies and Services,324117,Provisions E324,11-Sep-2019,000008810051145,WWW.GREATBRITISHMEAT.C,5422,Catering costs - provisions,49.32,0.00,49.32
Children and Young Peoples Services,Head of Childrens Social Care,085626,Families First Shildon/Chilton,Supplies and Services,328041,Clothing uniforms and laundry E328,11-Sep-2019,000008810051181,WWW.ARGOS.CO.UK,5310,Clothing uniforms and laundry,174.99,0.00,174.99
Children and Young Peoples Services,Head of Childrens Social Care,085626,Families First Shildon/Chilton,Supplies and Services,308011,Furniture,11-Sep-2019,000008810051187,WWW.ARGOS.CO.UK,5310,Furniture repair and replacement,79.99,0.00,79.99
Children and Young Peoples Services,Head of Early Help Inclusion & Vulnerable Children.,085355,12 Brough Close Aycliffe,Supplies and Services,328041,Clothing uniforms and laundry E328,11-Sep-2019,000008810051261,HARDEDGE LIMITED 1,5661,Clothing uniforms and laundry,24.11,0.00,24.11
Regeneration and Local Services,Business Durham CL0850,030674,Business Services General,Supplies and Services,304403,Equipment and Materials,11-Sep-2019,000008810051281,DURHAM CATHEDRAL,5947,Other consumables,137.60,22.93,114.67
Regeneration and Local Services,Development and Housing,030771,Durham Advance Flexible Fund,Supplies and Services,384700,Miscellaneous Expenses,11-Sep-2019,000008810051291,WALKERGATE CAR PAR,7523,Miscellaneous grants,1.80,0.30,1.50
Children and Young Peoples Services,Head of Childrens Social Care,085333,Coxhoe Satelite Home,Supplies and Services,324117,Provisions E324,11-Sep-2019,000008810051335,TESCO STORES 2916,5411,Catering costs - provisions,39.47,0.00,39.47
Children and Young Peoples Services,Head of Childrens Social Care,085333,Coxhoe Satelite Home,Supplies and Services,324117,Provisions E324,11-Sep-2019,000008810051337,TESCO STORES 2916,5411,Catering costs - provisions,30.25,0.00,30.25
Resources BK0010,Resources Management CK0450,069000,Resources Management 069000,Supplies and Services,324117,Provisions E324,11-Sep-2019,000008810051347,CO-OP GROUP 010592,5411,Catering costs - provisions,1.50,0.00,1.50
Regeneration and Local Services,Corporate Property and Land,030691,Catering - Durham Dales Centre,Supplies and Services,324117,Provisions E324,11-Sep-2019,000008810051423,FREEMAN CATERING BUTCH,5422,Catering costs - provisions,82.16,0.00,82.16
Regeneration and Local Services,Corporate Property and Land,030691,Catering - Durham Dales Centre,Supplies and Services,324117,Provisions E324,11-Sep-2019,000008810051429,FREEMAN CATERING BUTCH,5422,Catering costs - provisions,139.78,0.00,139.78
Adult and Health Services,Head of Adults,055302,Durham Pathways,Supplies and Services,324117,Provisions E324,11-Sep-2019,000008810051461,ASDA SUPERSTORE,5411,Catering costs - provisions,4.94,0.00,4.94
Regeneration and Local Services,Development and Housing,031576,B& B - Temp Accom,Supplies and Services,364320,Grants to Voluntary Organisations,11-Sep-2019,000008810051473,TRAVELODGE,3615,Accommodation assistance,123.00,0.00,123.00
Adult and Health Services,Head of Adults,055643,Hawthorn House LD Respite Unit,Supplies and Services,324117,Provisions E324,11-Sep-2019,000008810051481,FREEMAN CATERING BUTCH,5422,Catering costs - provisions,34.22,0.00,34.22
Adult and Health Services,Head of Adults,055643,Hawthorn House LD Respite Unit,Supplies and Services,324117,Provisions E324,11-Sep-2019,000008810051493,JR HOLLAND FOODSERVICE,5499,Catering costs - provisions,13.05,0.00,13.05
Adult and Health Services,Head of Adults,055643,Hawthorn House LD Respite Unit,Supplies and Services,324117,Provisions E324,11-Sep-2019,000008810051501,JR HOLLAND FOODSERVICE,5499,Catering costs - provisions,17.38,0.00,17.38
Regeneration and Local Services,Culture Sport and Tourism,011215,Museums Heritage & Collections 011215,Supplies and Services,332047,Printing Stationery and Gen Off Exps,11-Sep-2019,000008810051509,CARTRIDGEPEOPLE.COM,5111,Stationery,49.50,0.00,49.50
Regeneration and Local Services,Culture Sport and Tourism,054399,Local Delivery-Libraries,Supplies and Services,312009,Newspapers books and periodicals E312,11-Sep-2019,000008810051517,WWW.JKP.COM/UK/TERMS/,5965,Newspapers books and periodicals,33.69,0.00,33.69
Children and Young Peoples Services,Head of Early Help Inclusion & Vulnerable Children.,088101,CLS 0-19 Community Family Hub,Supplies and Services,328041,Clothing uniforms and laundry E328,11-Sep-2019,000008810051535,WWW.THEWORKS.CO.UK,5310,Clothing uniforms and laundry,37.50,0.00,37.50
Children and Young Peoples Services,Head of Early Help Inclusion & Vulnerable Children.,074000,TTF-Attachment and Results,Transfer Payments,525033,Other,11-Sep-2019,000008810051563,AMZNMktplace,5999,Grants to individuals,238.20,0.00,238.20
Children and Young Peoples Services,Head of Early Help Inclusion & Vulnerable Children.,074000,TTF-Attachment and Results,Transfer Payments,525033,Other,11-Sep-2019,000008810051571,FRANKS THE FLOORING ST,5713,Grants to individuals,150.00,0.00,150.00
Children and Young Peoples Services,Head of Early Help Inclusion & Vulnerable Children.,088101,CLS 0-19 Community Family Hub,Supplies and Services,324117,Provisions E324,11-Sep-2019,000008810051603,WWW.ICELAND.CO.UK,5411,Catering costs - provisions,42.75,0.00,42.75
Regeneration and Local Services,Development and Housing,031500,Housing Solutions - Core Team,Supplies and Services,352001,Conference Expenses,11-Sep-2019,000008810051639,GRAINGER HOTEL,7011,Conferencesseminars fees etc,60.00,0.00,60.00
Transformation and Partnerships,Business Support,052986,CYPS - Locality and Operational Support,Supplies and Services,328041,Clothing uniforms and laundry E328,11-Sep-2019,000008810051649,ARGOS RETAIL GROUP,5310,Clothing uniforms and laundry,24.99,0.00,24.99
Regeneration and Local Services,Corporate Property and Land,021324,Catering - Meadowfield,Supplies and Services,324117,Provisions E324,11-Sep-2019,000008810051711,FREEMAN CATERING BUTCH,5422,Catering costs - provisions,67.68,0.00,67.68
Regeneration and Local Services,Corporate Property and Land,021324,Catering - Meadowfield,Premises,145009,Cleaning and Domestic Supplies,11-Sep-2019,000008810051719,ALLIANCE DISPOSABLES L,2842,Other cleaning and domestic costs,141.19,23.53,117.66
Regeneration and Local Services,Corporate Property and Land,021324,Catering - Meadowfield,Supplies and Services,324117,Provisions E324,11-Sep-2019,000008810051727,JR HOLLAND FOODSERVICE,5499,Catering costs - provisions,43.77,0.00,43.77
Regeneration and Local Services,Corporate Property and Land,021324,Catering - Meadowfield,Supplies and Services,324117,Provisions E324,11-Sep-2019,000008810051733,JR HOLLAND FOODSERVICE,5499,Catering costs - provisions,14.19,0.00,14.19
Regeneration and Local Services,Corporate Property and Land,021324,Catering - Meadowfield,Supplies and Services,324117,Provisions E324,11-Sep-2019,000008810051741,JR HOLLAND FOODSERVICE,5499,Catering costs - provisions,75.16,0.00,75.16
Regeneration and Local Services,Corporate Property and Land,021324,Catering - Meadowfield,Supplies and Services,324117,Provisions E324,11-Sep-2019,000008810051747,JR HOLLAND FOODSERVICE,5499,Catering costs - provisions,89.01,0.00,89.01
Regeneration and Local Services,Corporate Property and Land,021324,Catering - Meadowfield,Supplies and Services,324117,Provisions E324,11-Sep-2019,000008810051751,JR HOLLAND FOODSERVICE,5499,Catering costs - provisions,30.82,0.00,30.82
Regeneration and Local Services,Corporate Property and Land,021324,Catering - Meadowfield,Supplies and Services,324117,Provisions E324,11-Sep-2019,000008810051757,JR HOLLAND FOODSERVICE,5499,Catering costs - provisions,14.19,0.00,14.19
Regeneration and Local Services,Corporate Property and Land,021324,Catering - Meadowfield,Supplies and Services,324117,Provisions E324,11-Sep-2019,000008810051765,JR HOLLAND FOODSERVICE,5499,Catering costs - provisions,14.19,0.00,14.19
Regeneration and Local Services,Corporate Property and Land,021324,Catering - Meadowfield,Supplies and Services,324117,Provisions E324,11-Sep-2019,000008810051771,JR HOLLAND FOODSERVICE,5499,Catering costs - provisions,10.35,0.00,10.35
Children and Young Peoples Services,Head of Childrens Social Care,085352,Tow Law CU,Supplies and Services,324117,Provisions E324,11-Sep-2019,000008810051857,TESCO STORES 2916,5411,Catering costs - provisions,100.54,0.00,100.54
Children and Young Peoples Services,Head of Childrens Social Care,085352,Tow Law CU,Supplies and Services,324117,Provisions E324,11-Sep-2019,000008810051867,ALDI 74 774,5411,Catering costs - provisions,6.53,0.00,6.53
Children and Young Peoples Services,Head of Education and Skills,071802,Louisa Cent Nursery,Supplies and Services,324117,Provisions E324,11-Sep-2019,000008810051875,ALDI STORES,5411,Catering costs - provisions,4.06,0.68,3.38
Children and Young Peoples Services,Head of Education and Skills,070169,Durham SSP,Supplies and Services,384199,Miscellaneous Expenses,11-Sep-2019,000008810051883,POUNDLAND LTD,5310,Other hired and contracted services,12.00,0.00,12.00
Adult and Health Services,Head of Adults,055310,Positive Journeys (Tudhoe),Supplies and Services,324117,Provisions E324,11-Sep-2019,000008810052085,ALDI 59 774,5411,Catering costs - provisions,3.32,0.00,3.32
Regeneration and Local Services,Development and Housing,030771,Durham Advance Flexible Fund,Transport,235057,Public Transport,11-Sep-2019,000008810052123,GO NORTH EAST LIMITED,4131,Staff travelling,7.00,0.00,7.00
Regeneration and Local Services,Corporate Property and Land,021235,Catering - Wharton Park,Supplies and Services,324117,Provisions E324,11-Sep-2019,000008810052131,JR HOLLAND FOODSERVICE,5499,Catering costs - provisions,37.38,0.00,37.38
Children and Young Peoples Services,Head of Education and Skills,076001,Music Service,Supplies and Services,304403,Equipment and Materials,11-Sep-2019,000008810052161,AMZ Yiyo,5999,Other consumables,-53.28,0.00,-53.28
Regeneration and Local Services,Development and Housing,030771,Durham Advance Flexible Fund,Supplies and Services,304259,Equipment and Materials,11-Sep-2019,000008810052211,KENT COUNTY COUNCIL,9399,Equipment-purchase and rental,11.00,0.00,11.00
Regeneration and Local Services,Business Durham CL0850,030694,Plexus 2,Supplies and Services,324117,Provisions E324,11-Sep-2019,000008810052225,SAINSBURYS SACAT (2303,5411,Catering costs - provisions,2.20,0.00,2.20
Regeneration and Local Services,Corporate Property and Land,030691,Catering - Durham Dales Centre,Supplies and Services,324117,Provisions E324,11-Sep-2019,000008810052243,Castle Bank Butchers,5422,Catering costs - provisions,9.00,0.00,9.00
Children and Young Peoples Services,Head of Early Help Inclusion & Vulnerable Children.,085810,CDYJS - Interventions Team,Supplies and Services,324117,Provisions E324,11-Sep-2019,000008810052261,SIDDLES FREEZER SHOP,5411,Catering costs - provisions,12.37,0.00,12.37
Children and Young Peoples Services,Head of Early Help Inclusion & Vulnerable Children.,071449,Ferryhill One Point Hub,Supplies and Services,340001,Postages E340,11-Sep-2019,000008816056081,WWW.POSTOFFICESHOP.CO.,5111,Postages,11.39,0.00,11.39
Regeneration and Local Services,Development and Housing,031576,B& B - Temp Accom,Supplies and Services,364320,Grants to Voluntary Organisations,11-Sep-2019,000008816056255,PREMIER INN,3811,Accommodation assistance,67.00,11.17,55.83
Regeneration and Local Services,Development and Housing,031500,Housing Solutions - Core Team,Employees,040149,Recruitment Instruction and Training,11-Sep-2019,000008816056457,PREMIER INN,3811,Training-all costs,170.00,0.00,170.00
Regeneration and Local Services,Business Durham CL0850,030674,Business Services General,Supplies and Services,304259,Equipment and Materials,11-Sep-2019,000008816056487,CANVA 02437-6927661,7221,Equipment-purchase and rental,-10.99,0.00,-10.99
Regeneration and Local Services,Corporate Property and Land,021242,Catering - County Hall,Supplies and Services,324117,Provisions E324,12-Sep-2019,000006585161034,BATLEYS PERTH,5300,Catering costs - provisions,428.82,71.47,357.35
Regeneration and Local Services,Corporate Property and Land,021242,Catering - County Hall,Supplies and Services,324117,Provisions E324,12-Sep-2019,000006585161034 - 1,BATLEYS PERTH,5300,Catering costs - provisions,287.38,,287.38
Regeneration and Local Services,Environmental Services,011060,C&G - Hardwick Park Catering,Supplies and Services,324117,Provisions E324,12-Sep-2019,000006585161940,BATLEYS PERTH,5300,Catering costs - provisions,277.32,46.22,231.10
Regeneration and Local Services,Environmental Services,011060,C&G - Hardwick Park Catering,Supplies and Services,324117,Provisions E324,12-Sep-2019,000006585161940 - 1,BATLEYS PERTH,5300,Catering costs - provisions,261.51,,261.51
Regeneration and Local Services,Environmental Services,011060,C&G - Hardwick Park Catering,Supplies and Services,324117,Provisions E324,12-Sep-2019,000006585161962,BATLEYS PERTH,5300,Catering costs - provisions,7.30,0.00,7.30
Regeneration and Local Services,Corporate Property and Land,010525,Catering - Green Lane,Supplies and Services,324117,Provisions E324,12-Sep-2019,000006585162148,BATLEYS PERTH,5300,Catering costs - provisions,-2.26,0.00,-2.26
Regeneration and Local Services,Corporate Property and Land,021324,Catering - Meadowfield,Supplies and Services,324117,Provisions E324,12-Sep-2019,000006585162970,BATLEYS PERTH,5300,Catering costs - provisions,97.68,16.28,81.40
Regeneration and Local Services,Corporate Property and Land,021324,Catering - Meadowfield,Supplies and Services,324117,Provisions E324,12-Sep-2019,000006585162970 - 1,BATLEYS PERTH,5300,Catering costs - provisions,76.61,,76.61
Regeneration and Local Services,Development and Housing,030508,Erasmas plus Grant,Supplies and Services,384926,Miscellaneous Expenses,12-Sep-2019,000006585163176,BRITISH A,3005,International visits,425.82,0.00,425.82
Regeneration and Local Services,Corporate Property and Land,021235,Catering - Wharton Park,Supplies and Services,324117,Provisions E324,12-Sep-2019,000006585163406,BATLEYS PERTH,5300,Catering costs - provisions,30.54,5.09,25.45
Regeneration and Local Services,Corporate Property and Land,021235,Catering - Wharton Park,Supplies and Services,324117,Provisions E324,12-Sep-2019,000006585163406 - 1,BATLEYS PERTH,5300,Catering costs - provisions,38.33,,38.33
Children and Young Peoples Services,Head of Education and Skills,071801,Selby Cottage Childcare Centre,Supplies and Services,328041,Clothing uniforms and laundry E328,12-Sep-2019,000008816055709,ARGOS RETAIL GROUP,5310,Clothing uniforms and laundry,20.00,0.00,20.00
Resources BK0010,Digital and Customer Services,011103,Service Improvement 011103,Supplies and Services,304335,Equipment and Materials,12-Sep-2019,000008816055733,AMZNMktplace,5999,ICT supplies etc,21.97,5.32,16.65
Regeneration and Local Services,Development and Housing,030773,CLLD North,Supplies and Services,304403,Equipment and Materials,12-Sep-2019,000008816055775,ELTONS FOOTWEAR,7251,Other consumables,17.50,0.00,17.50
Regeneration and Local Services,Environmental Services,031202,North Pennines - Peatscapes,Supplies and Services,304259,Equipment and Materials,12-Sep-2019,000008816055825,WWW.GOOUTDOORS.CO.UK,5941,Equipment-purchase and rental,197.99,33.00,164.99
Children and Young Peoples Services,Head of Childrens Social Care,085621,Families First Aycliffe,Supplies and Services,304259,Equipment and Materials,12-Sep-2019,000008816055867,SOUTHEND BOROUGH,9399,Equipment-purchase and rental,11.00,0.00,11.00
Children and Young Peoples Services,Head of Childrens Social Care,085621,Families First Aycliffe,Supplies and Services,304259,Equipment and Materials,12-Sep-2019,000008816055873,SOUTHEND BOROUGH,9399,Equipment-purchase and rental,11.00,0.00,11.00
Children and Young Peoples Services,Head of Childrens Social Care,085621,Families First Aycliffe,Supplies and Services,304259,Equipment and Materials,12-Sep-2019,000008816055881,DARLINGTON BC INTERNET,9399,Equipment-purchase and rental,11.00,0.00,11.00
Regeneration and Local Services,Corporate Property and Land,021242,Catering - County Hall,Supplies and Services,324117,Provisions E324,12-Sep-2019,000008816056067,JR HOLLAND FOODSERVICE,5499,Catering costs - provisions,176.37,0.00,176.37
Regeneration and Local Services,Corporate Property and Land,021242,Catering - County Hall,Supplies and Services,324117,Provisions E324,12-Sep-2019,000008816056073,JR HOLLAND FOODSERVICE,5499,Catering costs - provisions,5.52,0.00,5.52
Regeneration and Local Services,Culture Sport and Tourism,054812,Gala Theatre - Catering etc,Premises,145009,Cleaning and Domestic Supplies,12-Sep-2019,000008816056107,ALLIANCE DISPOSABLES L,2842,Other cleaning and domestic costs,204.72,34.12,170.60
Regeneration and Local Services,Culture Sport and Tourism,054812,Gala Theatre - Catering etc,Premises,145009,Cleaning and Domestic Supplies,12-Sep-2019,000008816056107 - 1,ALLIANCE DISPOSABLES L,2842,Other cleaning and domestic costs,0.17,,0.17
Children and Young Peoples Services,Head of Childrens Social Care,085362,LAC & Permanence Team 2,Supplies and Services,304403,Equipment and Materials,12-Sep-2019,000008816056173,HM PASSPORT OFFICE,9399,Other consumables,49.00,0.00,49.00
Children and Young Peoples Services,Head of Childrens Social Care,085362,LAC & Permanence Team 2,Supplies and Services,304403,Equipment and Materials,12-Sep-2019,000008816056181,HM PASSPORT OFFICE,9399,Other consumables,49.00,0.00,49.00
Regeneration and Local Services,Environmental Services,010900,Fleet - Meadowfield Fleet,Transport,215013,Running Costs of Vehicles,12-Sep-2019,000008816056279,DVLA VEHICLE TAX,9399,Vehicle Excise Duty (VED),262.50,0.00,262.50
Regeneration and Local Services,Environmental Services,010900,Fleet - Meadowfield Fleet,Transport,215013,Running Costs of Vehicles,12-Sep-2019,000008816056291,DVLA VEHICLE TAX,9399,Vehicle Excise Duty (VED),262.50,0.00,262.50
Regeneration and Local Services,Development and Housing,030771,Durham Advance Flexible Fund,Transport,235057,Public Transport,12-Sep-2019,000008816056415,Trainline,4112,Staff travelling,10.12,0.00,10.12
Regeneration and Local Services,Development and Housing,030771,Durham Advance Flexible Fund,Transport,235057,Public Transport,12-Sep-2019,000008816056421,ARRIVA NORTH EAST,4131,Staff travelling,29.90,0.00,29.90
Regeneration and Local Services,Development and Housing,031500,Housing Solutions - Core Team,Supplies and Services,352001,Conference Expenses,12-Sep-2019,000008816056465,HOTEL 52,7011,Conferencesseminars fees etc,114.95,0.00,114.95
Regeneration and Local Services,Development and Housing,031500,Housing Solutions - Core Team,Supplies and Services,352001,Conference Expenses,12-Sep-2019,000008816056473,TRAVELODGE,3615,Conferencesseminars fees etc,261.25,0.00,261.25
Regeneration and Local Services,Development and Housing,031500,Housing Solutions - Core Team,Employees,040149,Recruitment Instruction and Training,12-Sep-2019,000008816056479,PREMIER INN,3811,Training-all costs,-83.50,0.00,-83.50
Children and Young Peoples Services,Head of Early Help Inclusion & Vulnerable Children.,085955,Auckland,Supplies and Services,304403,Equipment and Materials,12-Sep-2019,000008816056513,AMZNMktplace,5999,Other consumables,13.90,0.00,13.90
Children and Young Peoples Services,Head of Early Help Inclusion & Vulnerable Children.,085955,Auckland,Supplies and Services,324117,Provisions E324,12-Sep-2019,000008816056519,TESCO STORES 6329,5411,Catering costs - provisions,104.64,0.00,104.64
Regeneration and Local Services,Environmental Services,011060,C&G - Hardwick Park Catering,Premises,145009,Cleaning and Domestic Supplies,12-Sep-2019,000008816056537,ALLIANCE DISPOSABLES L,2842,Other cleaning and domestic costs,101.90,16.98,84.92
Regeneration and Local Services,Environmental Services,011060,C&G - Hardwick Park Catering,Supplies and Services,324117,Provisions E324,12-Sep-2019,000008816056545,JR HOLLAND FOODSERVICE,5499,Catering costs - provisions,50.89,0.00,50.89
Regeneration and Local Services,Environmental Services,011060,C&G - Hardwick Park Catering,Supplies and Services,324117,Provisions E324,12-Sep-2019,000008816056553,JR HOLLAND FOODSERVICE,5499,Catering costs - provisions,-0.68,0.00,-0.68
Children and Young Peoples Services,Head of Early Help Inclusion & Vulnerable Children.,085962,Aycliffe Secure - Durham,Supplies and Services,304403,Equipment and Materials,12-Sep-2019,000008816056557,AMZNMktplace,5999,Other consumables,32.88,0.00,32.88
Regeneration and Local Services,Development and Housing,031520,GRT Site Ash Green Way Bishop Auckland,Supplies and Services,384999,Miscellaneous Expenses,12-Sep-2019,000008816056569,WWW.VOUCHEREXPRESS.CO.,5947,Other expenses,70.00,0.00,70.00
Regeneration and Local Services,Corporate Property and Land,010525,Catering - Green Lane,Supplies and Services,324117,Provisions E324,12-Sep-2019,000008816056591,JR HOLLAND FOODSERVICE,5499,Catering costs - provisions,70.44,0.00,70.44
Children and Young Peoples Services,Head of Childrens Social Care,085551,Short Break Services-Park Hse Sher,Supplies and Services,324117,Provisions E324,12-Sep-2019,000008816056625,SAINSBURYS 2199,5411,Catering costs - provisions,8.00,0.00,8.00
Regeneration and Local Services,Development and Housing,030771,Durham Advance Flexible Fund,Transport,235057,Public Transport,12-Sep-2019,000008816056827,ARRIVA NORTH EAST,4131,Staff travelling,4.50,0.00,4.50
Regeneration and Local Services,Corporate Property and Land,030691,Catering - Durham Dales Centre,Supplies and Services,324117,Provisions E324,12-Sep-2019,000008816056947,JR HOLLAND FOODSERVICE,5499,Catering costs - provisions,191.74,0.00,191.74
Adult and Health Services,Head of Adults,055643,Hawthorn House LD Respite Unit,Supplies and Services,324117,Provisions E324,12-Sep-2019,000008816056993,JR HOLLAND FOODSERVICE,5499,Catering costs - provisions,10.55,0.00,10.55
Adult and Health Services,Head of Adults,055643,Hawthorn House LD Respite Unit,Supplies and Services,324117,Provisions E324,12-Sep-2019,000008816056999,JR HOLLAND FOODSERVICE,5499,Catering costs - provisions,7.23,0.00,7.23
Children and Young Peoples Services,Head of Early Help Inclusion & Vulnerable Children.,088101,CLS 0-19 Community Family Hub,Supplies and Services,304403,Equipment and Materials,12-Sep-2019,000008816057027,AMZNMktplace,5999,Other consumables,29.98,5.00,24.98
Children and Young Peoples Services,Head of Early Help Inclusion & Vulnerable Children.,088101,CLS 0-19 Community Family Hub,Employees,040149,Recruitment Instruction and Training,12-Sep-2019,000008816057035,MCCORQUODALE,8299,Training-all costs,85.94,0.00,85.94
Children and Young Peoples Services,Head of Early Help Inclusion & Vulnerable Children.,088101,CLS 0-19 Community Family Hub,Supplies and Services,328041,Clothing uniforms and laundry E328,12-Sep-2019,000008816057039,ARGOS RETAIL GROUP,5310,Clothing uniforms and laundry,26.49,0.00,26.49
Regeneration and Local Services,Development and Housing,030771,Durham Advance Flexible Fund,Supplies and Services,340001,Postages E340,12-Sep-2019,000008816057051,POST OFFICE COUNTER,9402,Postages,220.00,0.00,220.00
Transformation and Partnerships,Communications Management,060270,Communications and Marketing,Supplies and Services,372009,Subscriptions E372,12-Sep-2019,000008816057087,PAYPAL TEESDALEMER,5943,Subscriptions 372009,28.60,0.00,28.60
Regeneration and Local Services,Development and Housing,031500,Housing Solutions - Core Team,Supplies and Services,352001,Conference Expenses,12-Sep-2019,000008816057099,GRAINGER HOTEL,7011,Conferencesseminars fees etc,230.00,0.00,230.00
Children and Young Peoples Services,Head of Early Help Inclusion & Vulnerable Children.,079033,SEND LOOKED AFTER AND VULNERABLE MGT,Supplies and Services,324117,Provisions E324,12-Sep-2019,000008816057113,TESCO STORES 2371,5411,Catering costs - provisions,14.47,0.00,14.47
Transformation and Partnerships,Business Support,052986,CYPS - Locality and Operational Support,Supplies and Services,328041,Clothing uniforms and laundry E328,12-Sep-2019,000008816057121,ARGOS RETAIL GROUP,5310,Clothing uniforms and laundry,22.99,0.00,22.99
Regeneration and Local Services,Corporate Property and Land,021324,Catering - Meadowfield,Premises,145009,Cleaning and Domestic Supplies,12-Sep-2019,000008816057181,ALLIANCE DISPOSABLES L,2842,Other cleaning and domestic costs,53.90,8.98,44.92
Regeneration and Local Services,Corporate Property and Land,021324,Catering - Meadowfield,Supplies and Services,324117,Provisions E324,12-Sep-2019,000008816057191,JR HOLLAND FOODSERVICE,5499,Catering costs - provisions,10.35,0.00,10.35
Regeneration and Local Services,Corporate Property and Land,021324,Catering - Meadowfield,Supplies and Services,324117,Provisions E324,12-Sep-2019,000008816057197,JR HOLLAND FOODSERVICE,5499,Catering costs - provisions,37.30,0.00,37.30
Children and Young Peoples Services,Head of Childrens Social Care,085333,Coxhoe Satelite Home,Supplies and Services,324117,Provisions E324,12-Sep-2019,000008816057251,COOPLANDS BAKERY,5462,Catering costs - provisions,4.17,0.00,4.17
Children and Young Peoples Services,Head of Childrens Social Care,085333,Coxhoe Satelite Home,Supplies and Services,324117,Provisions E324,12-Sep-2019,000008816057263,WALKERS BUTCHERS & BAK,5499,Catering costs - provisions,28.42,0.00,28.42
Children and Young Peoples Services,Head of Education and Skills,071802,Louisa Cent Nursery,Supplies and Services,328041,Clothing uniforms and laundry E328,12-Sep-2019,000008816057275,POUNDSTRETCHER 354,5331,Clothing uniforms and laundry,4.87,0.00,4.87
Children and Young Peoples Services,Head of Childrens Social Care,085334,West Rainton Satelite Home,Supplies and Services,328041,Clothing uniforms and laundry E328,12-Sep-2019,000008816057547,POUNDLAND LTD,5310,Clothing uniforms and laundry,4.00,0.00,4.00
Regeneration and Local Services,Development and Housing,030771,Durham Advance Flexible Fund,Transport,215995,Running Costs of Vehicles,12-Sep-2019,000008816057625,CHESTER ROAD SERVICE S,5541,Vehicle running expenses,9.00,1.50,7.50
